{"text_format":"1","workbook":"xlsx","n_sheets":15,"sheets":["Navigacija","Pajamų prognozė","Fin_duomenys","Fizinis","SP_Fizinis","Gamybine","SP_Gamybine_su_VP","Gamybine_be_VP","SP_Gamybine_be_VP","Paslaugu","Klasifikatorius","SP_Paslaugu_su_VP","Paslaugu_be_VP","SP_Paslaugu_be_VP","Rodiklių aprašymas"],"not_rendered":{"charts":0,"images":4,"macros":1,"external_links":2,"defined_names":10,"comments":2,"pivot_tables":0},"unopened":[],"bounds":{"document_bytes":16777216,"sheet_cells":100000,"rows_first":2000,"rows_last":500,"rows_between":2000,"halvings":0,"cell_chars":16384,"cell_head_chars":4096},"cells_cut":0,"cells_raw":0,"read":"whole","date_system":"1900"}

{"sheet":"Navigacija","index":0,"n_rows":7,"n_cols":16,"rows_kept":7,"cut":false,"hidden":true,"merged":[[1,3,1,4],[3,3,3,5]]}
[null,null,null,null,null,null,null,null,null,null,null,null,null,null,null,"kjkjk"]
[null,"Gamybinė įmonė",null,"Einamieji metai",null,2020]
[]
[null,"Paslaugų įmonė",null,"Prognozuojamų metų skaičius"]
[]
[]
[null,"Rodyti pinigų srauto ir  rodiklių eilutes finansų duomenyse"]

{"sheet":"Pajamų prognozė","index":1,"n_rows":84,"n_cols":8,"rows_kept":84,"cut":false,"hidden":false,"merged":[[0,0,0,7],[1,0,1,7],[4,0,4,7]]}
["PROGNOZUOJAMI PARDAVIMAI GAVUS ES FINANSAVIMĄ"]
["1 lentelė. SUMINIS PROJEKTU SUKURTŲ PRODUKTŲ (PASLAUGŲ) AR JŲ DALIES PROGNOZUOJAMAS PELNAS"]
["EUR","2020 m. prognozė","2021 m. prognozė","2022 m. prognozė","2023 m. prognozė","2024 m. prognozė","2025 m. prognozė","2026 m. prognozė"]
["Iš viso projekto pajamų",{"$f":"+SUM(B9+B14+B19+B24+B29+B34+B39+B44+B49+B54+B59+B69+B74+B79+B84+B64)","v":0},{"$f":"+SUM(C9+C14+C19+C24+C29+C34+C39+C44+C49+C54+C59+C69+C74+C79+C84+C64)","v":0},0,0,0,0,0]
["2 lentelė. ATSKIRŲ PRODUKTŲ (PASLAUGŲ) AR JŲ DALIES, KURIŲ GAMYBAI SKIRTOS INVESTICIJOS, PARDAVIMO REZULTATAI"]
["Produktas xxx",{"$f":"+B3","v":"2020 m. prognozė"},"2021 m. prognozė","2022 m. prognozė","2023 m. prognozė","2024 m. prognozė","2025 m. prognozė","2026 m. prognozė"]
["Pardavimo kiekis, vnt."]
["Vieneto pardavimo kaina, EUR"]
["Iš viso pardavimo pajamų, EUR",{"$f":"+B7*B8","v":0},0,0,0,0,0,0]
[]
["Produktas xxx","2020 m. prognozė","2021 m. prognozė","2022 m. prognozė","2023 m. prognozė","2024 m. prognozė","2025 m. prognozė","2026 m. prognozė"]
["Pardavimo kiekis, vnt."]
["Vieneto pardavimo kaina, EUR"]
["Iš viso pardavimo pajamų, EUR",{"$f":"+B12*B13","v":0},0,0,0,0,0,0]
[]
["Produktas xxx","2020 m. prognozė","2021 m. prognozė","2022 m. prognozė","2023 m. prognozė","2024 m. prognozė","2025 m. prognozė","2026 m. prognozė"]
["Pardavimo kiekis, vnt."]
["Vieneto pardavimo kaina, EUR"]
["Iš viso pardavimo pajamų, EUR",{"$f":"+B17*B18","v":0},0,0,0,0,0,0]
[]
["Produktas xxx","2020 m. prognozė","2021 m. prognozė","2022 m. prognozė","2023 m. prognozė","2024 m. prognozė","2025 m. prognozė","2026 m. prognozė"]
["Pardavimo kiekis, vnt."]
["Vieneto pardavimo kaina, EUR"]
["Iš viso pardavimo pajamų, EUR",{"$f":"+B22*B23","v":0},0,0,0,0,0,0]
[]
["Produktas xxx","2020 m. prognozė","2021 m. prognozė","2022 m. prognozė","2023 m. prognozė","2024 m. prognozė","2025 m. prognozė","2026 m. prognozė"]
["Pardavimo kiekis, vnt."]
["Vieneto pardavimo kaina, EUR"]
["Iš viso pardavimo pajamų, EUR",{"$f":"+B27*B28","v":0},0,0,0,0,0,0]
[]
["Produktas xxx","2020 m. prognozė","2021 m. prognozė","2022 m. prognozė","2023 m. prognozė","2024 m. prognozė","2025 m. prognozė","2026 m. prognozė"]
["Pardavimo kiekis, vnt."]
["Vieneto pardavimo kaina, EUR"]
["Iš viso pardavimo pajamų, EUR",{"$f":"+B32*B33","v":0},0,0,0,0,0,0]
[]
["Produktas xxx","2020 m. prognozė","2021 m. prognozė","2022 m. prognozė","2023 m. prognozė","2024 m. prognozė","2025 m. prognozė","2026 m. prognozė"]
["Pardavimo kiekis, vnt."]
["Vieneto pardavimo kaina, EUR"]
["Iš viso pardavimo pajamų, EUR",{"$f":"+B37*B38","v":0},0,0,0,0,0,0]
[]
["Produktas xxx","2020 m. prognozė","2021 m. prognozė","2022 m. prognozė","2023 m. prognozė","2024 m. prognozė","2025 m. prognozė","2026 m. prognozė"]
["Pardavimo kiekis, vnt."]
["Vieneto pardavimo kaina, EUR"]
["Iš viso pardavimo pajamų, EUR",{"$f":"+B42*B43","v":0},0,0,0,0,0,0]
[]
["Produktas xxx","2020 m. prognozė","2021 m. prognozė","2022 m. prognozė","2023 m. prognozė","2024 m. prognozė","2025 m. prognozė","2026 m. prognozė"]
["Pardavimo kiekis, vnt."]
["Vieneto pardavimo kaina, EUR"]
["Iš viso pardavimo pajamų, EUR",{"$f":"+B47*B48","v":0},0,0,0,0,0,0]
[]
["Produktas xxx","2020 m. prognozė","2021 m. prognozė","2022 m. prognozė","2023 m. prognozė","2024 m. prognozė","2025 m. prognozė","2026 m. prognozė"]
["Pardavimo kiekis, vnt."]
["Vieneto pardavimo kaina, EUR"]
["Iš viso pardavimo pajamų, EUR",{"$f":"+B52*B53","v":0},0,0,0,0,0,0]
[]
["Produktas xxx","2020 m. prognozė","2021 m. prognozė","2022 m. prognozė","2023 m. prognozė","2024 m. prognozė","2025 m. prognozė","2026 m. prognozė"]
["Pardavimo kiekis, vnt."]
["Vieneto pardavimo kaina, EUR"]
["Iš viso pardavimo pajamų, EUR",{"$f":"+B57*B58","v":0},0,0,0,0,0,0]
[]
["Produktas xxx","2020 m. prognozė","2021 m. prognozė","2022 m. prognozė","2023 m. prognozė","2024 m. prognozė","2025 m. prognozė","2026 m. prognozė"]
["Pardavimo kiekis, vnt."]
["Vieneto pardavimo kaina, EUR"]
["Iš viso pardavimo pajamų, EUR",{"$f":"+B62*B63","v":0},0,0,0,0,0,0]
[]
["Produktas xxx","2020 m. prognozė","2021 m. prognozė","2022 m. prognozė","2023 m. prognozė","2024 m. prognozė","2025 m. prognozė","2026 m. prognozė"]
["Pardavimo kiekis, vnt."]
["Vieneto pardavimo kaina, EUR"]
["Iš viso pardavimo pajamų, EUR",{"$f":"+B67*B68","v":0},0,0,0,0,0,0]
[]
["Produktas xxx","2020 m. prognozė","2021 m. prognozė","2022 m. prognozė","2023 m. prognozė","2024 m. prognozė","2025 m. prognozė","2026 m. prognozė"]
["Pardavimo kiekis, vnt."]
["Vieneto pardavimo kaina, EUR"]
["Iš viso pardavimo pajamų, EUR",{"$f":"+B72*B73","v":0},0,0,0,0,0,0]
[]
["Produktas xxx","2020 m. prognozė","2021 m. prognozė","2022 m. prognozė","2023 m. prognozė","2024 m. prognozė","2025 m. prognozė","2026 m. prognozė"]
["Pardavimo kiekis, vnt."]
["Vieneto pardavimo kaina, EUR"]
["Iš viso pardavimo pajamų, EUR",{"$f":"+B77*B78","v":0},0,0,0,0,0,0]
[]
["Produktas xxx","2020 m. prognozė","2021 m. prognozė","2022 m. prognozė","2023 m. prognozė","2024 m. prognozė","2025 m. prognozė","2026 m. prognozė"]
["Pardavimo kiekis, vnt."]
["Vieneto pardavimo kaina, EUR"]
["Iš viso pardavimo pajamų, EUR",{"$f":"+B82*B83","v":0},0,0,0,0,0,0]

{"sheet":"Fin_duomenys","index":2,"n_rows":102,"n_cols":13,"rows_kept":102,"cut":false,"hidden":false,"merged":[[0,0,0,12]]}
["FINANSINIAI DUOMENYS"]
["EUR",{"$f":"+(Navigacija!F2-3)&\" m. faktas\"","v":"2017 m. faktas"},{"$f":"+(Navigacija!F2-2)&\" m. faktas\"","v":"2018 m. faktas"},{"$f":"+(Navigacija!F2-1)&\" m. faktas\"","v":"2019 m. faktas"},{"$f":"+(Navigacija!F2)&\" m. \"&Navigacija!H2&\" mėn.\"&\" faktas\"","v":"2020 m.  mėn. faktas"},{"$f":"+(Navigacija!F2)&\" m. prognozė\"","v":"2020 m. prognozė"},{"$f":"+(Navigacija!F2+1)&\" m. prognozė\"","v":"2021 m. prognozė"},{"$f":"+(Navigacija!F2+2)&\" m. prognozė\"","v":"2022 m. prognozė"},{"$f":"+(Navigacija!F2+3)&\" m. prognozė\"","v":"2023 m. prognozė"},{"$f":"+(Navigacija!F2+4)&\" m. prognozė\"","v":"2024 m. prognozė"},{"$f":"+(Navigacija!F2+5)&\" m. prognozė\"","v":"2025 m. prognozė"},{"$f":"+(Navigacija!F2+6)&\" m. prognozė\"","v":"2026 m. prognozė"},{"$f":"+(Navigacija!F2+7)&\" m. prognozė\"","v":"2027 m. prognozė"}]
["PELNO-NUOSTOLIO ATASKAITA"]
["Pardavimo pajamos"]
["Pardavimo savikaina"]
["BENDRAS PELNAS (NUOSTOLIS)",{"$f":"B4-B5","v":0},{"$f":"C4-C5","v":0},0,0,0,0,0,0,0,0,0,0]
["Pardavimo sąnaudos"]
["Bendrosios ir administracinės sąnaudos"]
["TIPINĖS VEIKLOS PELNAS (NUOSTOLIS)",{"$f":"B6-B7-B8","v":0},{"$f":"C6-C7-C8","v":0},0,0,0,0,0,0,0,0,0,0]
["Kitos veiklos rezultatas"]
["Finansinės ir investicinės veiklos pajamos"]
["Finansinės ir investicinės veiklos sąnaudos"]
["PELNAS (NUOSTOLIAI) PRIEŠ APMOKESTINIMĄ",{"$f":"B9+B10+B11-B12","v":0},{"$f":"C9+C10+C11-C12","v":0},0,0,0,0,0,0,0,0,0,0]
["Pelno mokestis"]
["GRYNASIS PELNAS (NUOSTOLIAI)",{"$f":"+B13-B14","v":0},{"$f":"+C13-C14","v":0},0,0,0,0,0,0,0,0,0,0]
["BALANSAS"]
["ILGALAIKIS TURTAS",{"$f":"SUM(B18:B21)","v":0},{"$f":"SUM(C18:C21)","v":0},0,0,0,0,0,0,0,0,0,0]
["NEMATERIALUSIS TURTAS"]
["MATERIALUSIS TURTAS"]
["FINANSINIS TURTAS"]
["KITAS ILGALAIKIS TURTAS"]
["TRUMPALAIKIS TURTAS",{"$f":"B23+B24+B28+B29","v":0},{"$f":"C23+C24+C28+C29","v":0},0,null,{"$f":"+F23+F24+F28+F29","v":0},0,0,0,0,0,0,0]
["ATSARGOS"]
["PER VIENERIUS METUS GAUTINOS SUMOS",{"$f":"SUM(B25:B27)","v":0},{"$f":"SUM(C25:C27)","v":0},0,null,{"$f":"SUM(F25:F27)","v":0},0,0,0,0,0,0,0]
["Pirkėjų įsiskolinimas"]
["Dukterinių ir asocijuotų įmonių skolos"]
["Kitos gautinos sumos"]
["TRUMPALAIKĖS INVESTICIJOS"]
["PINIGAI IR PINIGŲ EKVIVALENTAI"]
["ATEINANČIŲ LAIKOTARPIŲ SĄNAUDOS IR SUKAUPTOS PAJAMOS"]
["TURTO IŠ VISO:",{"$f":"B17+B22+B30","v":0},{"$f":"C17+C22+C30","v":0},{"$f":"D17+D22+D30","v":0},0,0,0,0,0,0,0,0,0]
["NUOSAVAS KAPITALAS",{"$f":"SUM(B33:B37)","v":0},{"$f":"SUM(C33:C37)","v":0},{"$f":"SUM(D33:D37)","v":0},0,0,0,0,0,0,0,0,0]
["KAPITALAS"]
["AKCIJŲ PRIEDAI"]
["PERKAINOJIMO REZERVAS (REZULTATAI)"]
["REZERVAI"]
["NEPASKIRSTYTASIS PELNAS (NUOSTOLIAI)"]
["DOTACIJOS, SUBSIDIJOS"]
["ATIDĖJINIAI"]
["MOKĖTINOS SUMOS IR ĮSIPAREIGOJIMAI",{"$f":"B41+B42","v":0},{"$f":"C41+C42","v":0},0,0,0,0,0,0,0,0,0,0]
["PO VIENERIŲ METŲ MOKĖTINOS SUMOS IR ILGALAIKIAI ĮSISPAREIGOJIMAI"]
["PER VIENERIUS METUS MOKĖTINOS SUMOS IR TRUMPALAIKIAI ĮSIPAREIGOJIMAI",{"$f":"SUM(B43:B52)","v":0},{"$f":"SUM(C43:C52)","v":0},0,0,0,0,0,0,0,0,0,0]
["Skoliniai įsipareigojimai"]
["Skolos kredito įstaigoms"]
["Gauti avansai"]
["Skolos tiekėjams"]
["Pagal vekselius ir čekius mokėtinos sumos"]
["Įmonių grupės įmonėms mokėtinos sumos"]
["Asocijuotosioms įmonėms mokėtinos sumos"]
["Pelno mokesčio įsipareigojimai"]
["Su darbo santykiais susiję įsipareigojimai"]
["Kitos mokėtinos sumos ir trumpalaikiai įsipareigojimai"]
["SUKAUPTOS SĄNAUDOS ATEINANČIŲ LAIKOTARPIŲ PAJAMOS"]
["NUOSAVO KAPITALO IR ĮSIPAREIGOJIMŲ IŠ VISO:",{"$f":"SUM(B32+B38+B39+B40+B53)","v":0},{"$f":"SUM(C32+C38+C39+C40+C53)","v":0},0,0,0,0,0,0,0,0,0,0]
["Ar balansuojasi?",{"$f":"IF(B54=B31, \"+\", \"(!) \"&B31-B54)","v":"+"},"+","+","+","+","+","+","+","+","+","+","+"]
["Nusidėvėjimas ir amortizacija"]
["PINIGŲ SRAUTAS"]
["EBITDA",null,{"$f":"C9+C10+C84","v":0},0,0,0,0,0,0,0,0,0,0]
["Apyvartinio kapitalo pokytis ",null,{"$f":"(B23+B24-B42)-(C23+C24-C42)","v":0},{"$f":"(C23+C24-C42)-(D23+D24-D42)","v":0},0,{"$f":"(D23+D24-D42)-(F23+F24-F42)","v":0},0,0,0,0,0,0,0]
["PS iš veiklos",null,{"$f":"SUM(C58:C59)","v":0},0,0,0,0,0,0,0,0,0,0]
["Finansinės veiklos rezultatas ",null,{"$f":"+C11-C12","v":0},0,0,0,0,0,0,0,0,0,0]
["Pelno mokestis",null,{"$f":"-C14","v":0},{"$f":"-D14","v":0},0,0,0,0,0,0,0,0,0]
["PS po finansinės veiklos, mokesčių",null,{"$f":"SUM(C60:C62)","v":0},0,0,0,0,0,0,0,0,0,0]
["Skolų dengimas ir palūkanos",null,{"$f":"SUM(C65:C66)","v":0},{"$f":"SUM(D65:D66)","v":0},{"$f":"SUM(E65:E66)","v":0},0,0,0,0,0,0,0,0]
["Palūkanos"]
["Numatyti paskolų dengimai",null,{"$f":"+C41-B41","v":0},{"$f":"+D41-C41","v":0},{"$f":"+E41-D41","v":0}]
["PS po paskolų dengimo",null,{"$f":"C63+C64","v":0},{"$f":"D63+D64","v":0},0,0,0,0,0,0,0,0,0]
["Grynosios plėtros investicijos",null,{"$f":"C17-(B17-C84)","v":0},{"$f":"D17-(C17-D84)","v":0},{"$f":"E17-(D17-E84)","v":0}]
["Turto pardavimas"]
["Palaikomosios investicijos"]
["PS po plėtros investicijų ir turto pardavimo ",null,{"$f":"C67-C68+C69-C70","v":0},{"$f":"D67-D68+D69-D70","v":0},{"$f":"E67-E68+E69-E70","v":0},0,0,0,0,0,0,0,0]
["Nuosavo kapitalo pokyčiai",null,{"$f":"C33+C34+C35+C36-B33-B34-B35-B36","v":0},{"$f":"D33+D34+D35+D36-C33-C34-C35-C36","v":0},0]
["PS po dividendų išmokėjimų",null,{"$f":"+C71+C72","v":0},{"$f":"+D71+D72","v":0},0,0,0,0,0,0,0,0,0]
["Dotacija",null,{"$f":"IF(D38-C38>0,D38-C38,0)","v":0},{"$f":"IF(F38-D38>0,F38-D38,0)","v":0},{"$f":"IF(G38-E38>0,G38-E38,0)","v":0}]
["Kita",null,16242,-334753]
["Pinigų pasikeitimas",null,{"$f":"SUM(C73:C75)","v":16242},{"$f":"SUM(D73:D75)","v":-334753},0,0,0,0,0,0,0,0,0]
["Pinigai laikotarpio pabaigoje",{"$f":"+B29","v":0},{"$f":"B77+C76","v":16242},{"$f":"C77+D76","v":-318511},-318511,{"$f":"D77+F76","v":-318511},-318511,-318511,-318511,-318511,-318511,-318511,-318511]
["Ar balansuojasi?",{"$f":"+B29","v":0},{"$f":"+C29","v":0},0,0,0,0,0,0,0,0,0,0]
["Korekcija",{"$f":"B78-B77","v":0},{"$f":"C78-C77","v":-16242},{"$f":"D78-D77","v":318511},318511,318511,318511,318511,318511,318511,318511,318511,318511]
["RODIKLIAI"]
["Pardavimai",null,{"$f":"C4","v":0},0,0,0,0,0,0,0,0,0,0]
["Bendras pelnas",null,{"$f":"C6","v":0},0,0,0,0,0,0,0,0,0,0]
["Tipinės veiklos pelnas",null,{"$f":"C9","v":0},0,0,0,0,0,0,0,0,0,0]
["Nusidėvėjimas",null,{"$f":"C56","v":0},{"$f":"D56","v":0},0,0,0,0,0]
["EBITDA",null,{"$f":"C58","v":0},0,0,0,0,0,0,0,0,0,0]
["Grynasis pelnas",null,{"$f":"C15","v":0},{"$f":"D15","v":0},{"$f":"E15","v":0},0,0,0,0,0,0,0,0]
["Bendrojo pelno marža (%)",null,{"$f":"C82/C81","v":{"$error":"#DIV/0!"}},{"$error":"#DIV/0!"},{"$error":"#DIV/0!"},{"$error":"#DIV/0!"},{"$error":"#DIV/0!"},{"$error":"#DIV/0!"},{"$error":"#DIV/0!"},{"$error":"#DIV/0!"},{"$error":"#DIV/0!"},{"$error":"#DIV/0!"},{"$error":"#DIV/0!"}]
["EBITDA marža (%)",null,{"$f":"C85/C81","v":{"$error":"#DIV/0!"}},{"$error":"#DIV/0!"},{"$error":"#DIV/0!"},{"$error":"#DIV/0!"},{"$error":"#DIV/0!"},{"$error":"#DIV/0!"},{"$error":"#DIV/0!"},{"$error":"#DIV/0!"},{"$error":"#DIV/0!"},{"$error":"#DIV/0!"},{"$error":"#DIV/0!"}]
["Grynojo pelno marža (%)",null,{"$f":"C86/C81","v":{"$error":"#DIV/0!"}},{"$error":"#DIV/0!"},{"$error":"#DIV/0!"},{"$error":"#DIV/0!"},{"$error":"#DIV/0!"},{"$error":"#DIV/0!"},{"$error":"#DIV/0!"},{"$error":"#DIV/0!"},{"$error":"#DIV/0!"},{"$error":"#DIV/0!"},{"$error":"#DIV/0!"}]
["Einamojo likvidumo koef.",null,{"$f":"C22/C42","v":{"$error":"#DIV/0!"}},{"$f":"D22/D42","v":{"$error":"#DIV/0!"}},{"$f":"E22/E42","v":{"$error":"#DIV/0!"}},{"$error":"#DIV/0!"},{"$error":"#DIV/0!"},{"$error":"#DIV/0!"},{"$error":"#DIV/0!"},{"$error":"#DIV/0!"},{"$error":"#DIV/0!"},{"$error":"#DIV/0!"},{"$error":"#DIV/0!"}]
["Kritinio likvidumo koef.",null,{"$f":"(C22-C23)/C42","v":{"$error":"#DIV/0!"}},{"$f":"(D22-D23)/D42","v":{"$error":"#DIV/0!"}},{"$f":"(E22-E23)/E42","v":{"$error":"#DIV/0!"}},{"$error":"#DIV/0!"},{"$error":"#DIV/0!"},{"$error":"#DIV/0!"},{"$error":"#DIV/0!"},{"$error":"#DIV/0!"},{"$error":"#DIV/0!"},{"$error":"#DIV/0!"},{"$error":"#DIV/0!"}]
["Svertas",null,{"$f":"C40/C54","v":{"$error":"#DIV/0!"}},{"$f":"D44/D32","v":{"$error":"#DIV/0!"}},{"$error":"#DIV/0!"},{"$error":"#DIV/0!"},{"$error":"#DIV/0!"},{"$error":"#DIV/0!"},{"$error":"#DIV/0!"},{"$error":"#DIV/0!"},{"$error":"#DIV/0!"},{"$error":"#DIV/0!"},{"$error":"#DIV/0!"}]
["Atsargų apyvartumas dienomis",null,{"$f":"(C23/C5)*360","v":{"$error":"#DIV/0!"}},{"$error":"#DIV/0!"},null,{"$error":"#DIV/0!"},{"$error":"#DIV/0!"},{"$error":"#DIV/0!"},{"$error":"#DIV/0!"},{"$error":"#DIV/0!"},{"$error":"#DIV/0!"},{"$error":"#DIV/0!"},{"$error":"#DIV/0!"}]
["Debitorių apyvartumas dienomis",null,{"$f":"(C25/C5)*360","v":{"$error":"#DIV/0!"}},{"$f":"(D25/D5)*360","v":{"$error":"#DIV/0!"}},null,{"$error":"#DIV/0!"},{"$error":"#DIV/0!"},{"$error":"#DIV/0!"},{"$error":"#DIV/0!"},{"$error":"#DIV/0!"},{"$error":"#DIV/0!"},{"$error":"#DIV/0!"},{"$error":"#DIV/0!"}]
["Kreditorių apyvartumas dienomis",null,{"$f":"(C46/C5)*360","v":{"$error":"#DIV/0!"}},{"$f":"(D46/D5)*360","v":{"$error":"#DIV/0!"}},null,{"$error":"#DIV/0!"},{"$error":"#DIV/0!"},{"$error":"#DIV/0!"},{"$error":"#DIV/0!"},{"$error":"#DIV/0!"},{"$error":"#DIV/0!"},{"$error":"#DIV/0!"},{"$error":"#DIV/0!"}]
["Apyvartinių lėšų perteklius (poreikis) dienomis",null,{"$f":"C93+C94-C95","v":{"$error":"#DIV/0!"}},{"$f":"D93+D94-D95","v":{"$error":"#DIV/0!"}},null,{"$error":"#DIV/0!"},{"$error":"#DIV/0!"},{"$error":"#DIV/0!"},{"$error":"#DIV/0!"},{"$error":"#DIV/0!"},{"$error":"#DIV/0!"},{"$error":"#DIV/0!"},{"$error":"#DIV/0!"}]
["Nuosavas kapitalas",null,{"$f":"+C32","v":0},{"$f":"+D32","v":0},0,0,0,0,0,0,0,0,0]
["Balanso apyvarta",null,{"$f":"C31","v":0},0,0,0,0,0,0,0,0,0,0]
["Nuosavo kapitalo rodiklis",null,{"$f":"+C97/C98","v":{"$error":"#DIV/0!"}},{"$f":"+D97/D98","v":{"$error":"#DIV/0!"}},{"$error":"#DIV/0!"},{"$error":"#DIV/0!"},{"$error":"#DIV/0!"},{"$error":"#DIV/0!"},{"$error":"#DIV/0!"},{"$error":"#DIV/0!"},{"$error":"#DIV/0!"},{"$error":"#DIV/0!"},{"$error":"#DIV/0!"}]
["Nuosavybės grąža (ROE)",null,{"$f":"C15/C32","v":{"$error":"#DIV/0!"}},{"$error":"#DIV/0!"},{"$error":"#DIV/0!"},{"$error":"#DIV/0!"},{"$error":"#DIV/0!"},{"$error":"#DIV/0!"},{"$error":"#DIV/0!"},{"$error":"#DIV/0!"},{"$error":"#DIV/0!"},{"$error":"#DIV/0!"},{"$error":"#DIV/0!"}]
["Turto grąža (ROA)",null,{"$f":"C15/C31","v":{"$error":"#DIV/0!"}},{"$error":"#DIV/0!"},{"$error":"#DIV/0!"},{"$error":"#DIV/0!"},{"$error":"#DIV/0!"},{"$error":"#DIV/0!"},{"$error":"#DIV/0!"},{"$error":"#DIV/0!"},{"$error":"#DIV/0!"},{"$error":"#DIV/0!"},{"$error":"#DIV/0!"}]
["Investicijų grąža (ROI)",null,{"$f":"C15/(C32+C41)","v":{"$error":"#DIV/0!"}},{"$error":"#DIV/0!"},{"$error":"#DIV/0!"},{"$error":"#DIV/0!"},{"$error":"#DIV/0!"},{"$error":"#DIV/0!"},{"$error":"#DIV/0!"},{"$error":"#DIV/0!"},{"$error":"#DIV/0!"},{"$error":"#DIV/0!"},{"$error":"#DIV/0!"}]

{"sheet":"Fizinis","index":3,"n_rows":34,"n_cols":3,"rows_kept":34,"cut":false,"hidden":true,"merged":[[8,1,8,2],[0,0,0,2]]}
["FIZINIS"]
["Kokia finansavimo nuosavomis lėšomis suma, kurią planuoja užtikrinti fizinis asmuo?",null,"EUR"]
["Kredito istorija"]
["Fizinio asmens kredito reitingas",null,"Proc."]
["Turimi įsipareigojimai",null,"EUR"]
["Iš jų per projekto laikotarpį:",null,"EUR"]
["Ar yra/buvo pradelstų įsipareigojimų?",null,"klasifikatorius"]
["Jei taip, kokia pradelstų įsipareigojimų suma? Detalizavimas",null,"EUR"]
["Pradelsti įsipareigojimai (detalizavimas):"]
[]
["Pinigų srautai"]
["Pajamos per paskutinius metus",null,"EUR"]
["Detalesnė informacija:"]
["Ar finansavimo lėšų šaltinis - turimos piniginės lėšos?",null,"klasifikatorius"]
["Jei taip, ar iš banko sąskaitų apyvartų matyti, kad tokių piniginių lėšų fizinis asmuo gali turėti?"]
[]
["Įsiskolinimo lygis "]
["Turimi įsipareigojimai",null,"EUR"]
["Iš jų per projekto laikotarpį:",null,"EUR"]
["Detali informacija (jei aktualu):"]
[]
["Turtas"]
["Ar finansavimo lėšų šaltinis - turimas turtas?",null,"klasifikatorius"]
["Jei taip, ar šio turto vertė pakankama?"]
[]
["Ar finansavimo lėšų šaltinis - turimi vertybiniai popieriai?",null,"klasifikatorius"]
["Jei taip, detalizuoti pastabų skiltyje:"]
[]
["Ar šiais vertybiniais popieriais prekiaujama viešai?",null,"klasifikatorius"]
["Jei taip, kokia jų dabartinė rinkos kaina?",null,"EUR"]
["Ar ši rinkos kaina yra pakankama lyginant su numatyta finansavimo suma?",null,"klasifikatorius"]
["Specifika"]
["Ar fizinis asmuo yra iš kitos mokestinės jurisdikcijos (ne Lietuvos)?",null,"klasifikatorius"]
["Jei taip, detalizuoti:"]

{"sheet":"SP_Fizinis","index":4,"n_rows":35,"n_cols":6,"rows_kept":35,"cut":false,"hidden":true,"merged":[[11,0,11,3],[0,0,0,5],[1,0,1,3],[2,0,2,3],[3,0,3,3],[4,0,4,3],[5,0,5,3],[6,0,6,3],[7,0,7,3],[8,0,8,3],[9,0,9,5],[10,0,10,3],[23,0,23,3],[12,0,12,3],[13,0,13,3],[14,0,14,3],[15,0,15,5],[16,0,16,3],[17,0,17,3],[18,0,18,3],[19,0,19,3],[20,0,20,5],[21,0,21,3],[22,0,22,3],[30,0,30,3],[31,0,31,3],[32,0,32,3],[34,0,34,5],[24,0,24,5],[25,0,25,3],[26,0,26,3],[27,0,27,5],[28,0,28,3],[29,0,29,3],[33,0,33,3]]}
["FIZINIS"]
[{"$f":"Fizinis!A2","v":"Kokia finansavimo nuosavomis lėšomis suma, kurią planuoja užtikrinti fizinis asmuo?"},null,null,null,{"$f":"Fizinis!B2","v":0},"EUR"]
[{"$f":"Fizinis!A3","v":"Kredito istorija"}]
[{"$f":"Fizinis!A4","v":"Fizinio asmens kredito reitingas"},null,null,null,{"$f":"Fizinis!B4","v":0},"PROC."]
[{"$f":"Fizinis!A5","v":"Turimi įsipareigojimai"},null,null,null,{"$f":"Fizinis!B5","v":0},"EUR"]
[{"$f":"Fizinis!A6","v":"Iš jų per projekto laikotarpį:"},null,null,null,{"$f":"Fizinis!B6","v":0},"EUR"]
[{"$f":"Fizinis!A7","v":"Ar yra/buvo pradelstų įsipareigojimų?"},null,null,null,{"$f":"Fizinis!B7","v":0},"Taip/Ne/N/A"]
[{"$f":"Fizinis!A8","v":"Jei taip, kokia pradelstų įsipareigojimų suma? Detalizavimas"},null,null,null,{"$f":"Fizinis!B8","v":0},"EUR"]
[{"$f":"Fizinis!A9","v":"Pradelsti įsipareigojimai (detalizavimas):"}]
[{"$f":"Fizinis!A10","v":0}]
[{"$f":"Fizinis!A11","v":"Pinigų srautai"}]
[{"$f":"Fizinis!A12","v":"Pajamos per paskutinius metus"},null,null,null,{"$f":"Fizinis!B12","v":0},"EUR"]
[{"$f":"Fizinis!A13","v":"Detalesnė informacija:"}]
[{"$f":"Fizinis!A14","v":"Ar finansavimo lėšų šaltinis - turimos piniginės lėšos?"},null,null,null,{"$f":"Fizinis!B14","v":0},"Taip/Ne/N/A /Kita"]
[{"$f":"Fizinis!A15","v":"Jei taip, ar iš banko sąskaitų apyvartų matyti, kad tokių piniginių lėšų fizinis asmuo gali turėti?"}]
[{"$f":"Fizinis!A16","v":0}]
[{"$f":"Fizinis!A17","v":"Įsiskolinimo lygis "}]
[{"$f":"Fizinis!A18","v":"Turimi įsipareigojimai"},null,null,null,{"$f":"Fizinis!B18","v":0},"EUR"]
[{"$f":"Fizinis!A19","v":"Iš jų per projekto laikotarpį:"},null,null,null,{"$f":"Fizinis!B19","v":0},"EUR"]
[{"$f":"Fizinis!A20","v":"Detali informacija (jei aktualu):"}]
[{"$f":"Fizinis!A21","v":0}]
[{"$f":"Fizinis!A22","v":"Turtas"}]
[{"$f":"Fizinis!A23","v":"Ar finansavimo lėšų šaltinis - turimas turtas?"},null,null,null,{"$f":"Fizinis!B23","v":0},"Taip/Ne"]
[{"$f":"Fizinis!A24","v":"Jei taip, ar šio turto vertė pakankama?"}]
[{"$f":"Fizinis!A25","v":0}]
[{"$f":"Fizinis!A26","v":"Ar finansavimo lėšų šaltinis - turimi vertybiniai popieriai?"},null,null,null,{"$f":"Fizinis!B26","v":0},"Taip/Ne/N/A /Kita"]
[{"$f":"Fizinis!A27","v":"Jei taip, detalizuoti pastabų skiltyje:"}]
[{"$f":"Fizinis!A28","v":0}]
[{"$f":"Fizinis!A29","v":"Ar šiais vertybiniais popieriais prekiaujama viešai?"},null,null,null,{"$f":"Fizinis!B29","v":0},"Taip/Ne"]
[{"$f":"Fizinis!A30","v":"Jei taip, kokia jų dabartinė rinkos kaina?"},null,null,null,{"$f":"Fizinis!B30","v":0},"EUR"]
[{"$f":"Fizinis!A31","v":"Ar ši rinkos kaina yra pakankama lyginant su numatyta finansavimo suma?"},null,null,null,{"$f":"Fizinis!B31","v":0},"Taip/Ne/N/A"]
[{"$f":"Fizinis!A32","v":"Specifika"}]
[{"$f":"Fizinis!A33","v":"Ar fizinis asmuo yra iš kitos mokestinės jurisdikcijos (ne Lietuvos)?"},null,null,null,{"$f":"Fizinis!B33","v":0},"Taip/Ne"]
[{"$f":"Fizinis!A34","v":"Jei taip, detalizuoti:"}]
[{"$f":"Fizinis!A35","v":0}]

{"sheet":"Gamybine","index":5,"n_rows":63,"n_cols":13,"rows_kept":63,"cut":false,"hidden":true,"merged":[[0,0,0,11]]}
["GAMYBINĖ SU VP"]
["Kokia finansavimo nuosavomis lėšomis suma, kurią planuoja užtikrinti juridinis asmuo?",null,"EUR"]
["Kaip paraiškoje pagrindžiamas nuosavų lėšų šaltinis?"]
[]
["Kredito istorija"]
["Išvados iš kredito istorijos vertinimo:"]
["Ar šis juridinis asmuo turi kitų projektų/paraiškų?",null,"Klasifikatotorius"]
["Jei taip, detalizuoti:"]
[]
["Pinigų srautai",{"$f":"Fin_duomenys!C2","v":"2018 m. faktas"},{"$f":"Fin_duomenys!D2","v":"2019 m. faktas"},{"$f":"+(Navigacija!F2)&\" m.        \" &Navigacija!H2&\" mėn.\"&\" faktas\"","v":"2020 m.         mėn. faktas"},{"$f":"Fin_duomenys!F2","v":"2020 m. prognozė"},{"$f":"Fin_duomenys!G2","v":"2021 m. prognozė"},{"$f":"Fin_duomenys!H2","v":"2022 m. prognozė"},{"$f":"Fin_duomenys!I2","v":"2023 m. prognozė"},{"$f":"Fin_duomenys!J2","v":"2024 m. prognozė"},{"$f":"Fin_duomenys!K2","v":"2025 m. prognozė"},{"$f":"Fin_duomenys!L2","v":"2026 m. prognozė"},{"$f":"Fin_duomenys!M2","v":"2027 m. prognozė"}]
["Pagrindinės veiklos pinigų srautas (metinis)",{"$f":"+Fin_duomenys!C60","v":0},{"$f":"+Fin_duomenys!D60","v":0},{"$f":"+Fin_duomenys!E60","v":0},{"$f":"+Fin_duomenys!F60","v":0},{"$f":"+Fin_duomenys!G60","v":0},{"$f":"+Fin_duomenys!H60","v":0},{"$f":"+Fin_duomenys!I60","v":0},{"$f":"+Fin_duomenys!J60","v":0},{"$f":"+Fin_duomenys!K60","v":0},{"$f":"+Fin_duomenys!L60","v":0},{"$f":"+Fin_duomenys!M60","v":0}]
["Teigiamas dydis reiškia, kad įmonė iš savo pagrindinės veiklos uždirba pinigų."]
["Jei šis dydis neigiamas arba mažėja, reikia analizuoti, kodėl."]
["Apyvartinis kapitalas",{"$f":"B15-B16","v":0},{"$f":"C15-C16","v":0},0,0,0,0,0,0,0,0,0]
["Trumpalaikis turtas",{"$f":"Fin_duomenys!C22","v":0},{"$f":"Fin_duomenys!D22","v":0},{"$f":"Fin_duomenys!E22","v":0},{"$f":"Fin_duomenys!F22","v":0},{"$f":"Fin_duomenys!G22","v":0},{"$f":"Fin_duomenys!H22","v":0},{"$f":"Fin_duomenys!I22","v":0},{"$f":"Fin_duomenys!J22","v":0},{"$f":"Fin_duomenys!K22","v":0},{"$f":"Fin_duomenys!L22","v":0},{"$f":"Fin_duomenys!M22","v":0}]
["Trumpalaikiai įsipareigojimai",{"$f":"Fin_duomenys!C42","v":0},{"$f":"Fin_duomenys!D42","v":0},{"$f":"Fin_duomenys!E42","v":0},{"$f":"Fin_duomenys!F42","v":0},{"$f":"Fin_duomenys!G42","v":0},{"$f":"Fin_duomenys!H42","v":0},{"$f":"Fin_duomenys!I42","v":0},{"$f":"Fin_duomenys!J42","v":0},{"$f":"Fin_duomenys!K42","v":0},{"$f":"Fin_duomenys!L42","v":0},{"$f":"Fin_duomenys!M42","v":0}]
["Jei šis dydis neigiamas, įmonei gali kilti problemų vykdant trumpalaikius įsipareigojimus."]
["Jei šis dydis mažėja, reikia analizuoti, kodėl."]
["Bendrojo trumpalaikio mokumo koeficientas",{"$f":"B15/B16","v":{"$error":"#DIV/0!"}},{"$error":"#DIV/0!"},{"$error":"#DIV/0!"},{"$error":"#DIV/0!"},{"$error":"#DIV/0!"},{"$error":"#DIV/0!"},{"$error":"#DIV/0!"},{"$error":"#DIV/0!"},{"$error":"#DIV/0!"},{"$error":"#DIV/0!"},{"$error":"#DIV/0!"},"<1,2 dega raudonai"]
["Rekomenduojamas rodiklio intervalas yra [1,2 ; 2]."]
["Jei šis rodiklis mažesnis nei 1,2 - įmonei gali kilti problemų vykdant trumpalaikius įsipareigojimus."]
["Greitojo trumpalaikio mokumo koeficientas",{"$f":"(B15-B23)/B16","v":{"$error":"#DIV/0!"}},{"$f":"(C15-C23)/C16","v":{"$error":"#DIV/0!"}},{"$error":"#DIV/0!"},{"$error":"#DIV/0!"},{"$error":"#DIV/0!"},{"$error":"#DIV/0!"},{"$error":"#DIV/0!"},{"$error":"#DIV/0!"},{"$error":"#DIV/0!"},{"$error":"#DIV/0!"},{"$error":"#DIV/0!"},"<1 dega raudonai"]
["Atsargos",{"$f":"Fin_duomenys!C23","v":0},{"$f":"Fin_duomenys!D23","v":0},{"$f":"Fin_duomenys!E23","v":0},{"$f":"Fin_duomenys!F23","v":0},{"$f":"Fin_duomenys!G23","v":0},{"$f":"Fin_duomenys!H23","v":0},{"$f":"Fin_duomenys!I23","v":0},{"$f":"Fin_duomenys!J23","v":0},{"$f":"Fin_duomenys!K23","v":0},{"$f":"Fin_duomenys!L23","v":0},{"$f":"Fin_duomenys!M23","v":0}]
["Gamybinėms įmonėms šis rodiklis turėtų būti ne mažesnis nei 1."]
["Įsiskolinimo lygis",{"$f":"B10","v":"2018 m. faktas"},{"$f":"C10","v":"2019 m. faktas"},{"$f":"D10","v":"2020 m.         mėn. faktas"},"2020 m. prognozė","2021 m. prognozė","2022 m. prognozė","2023 m. prognozė","2024 m. prognozė","2025 m. prognozė","2026 m. prognozė","2027 m. prognozė"]
["Bendrasis skolos koeficientas",{"$f":"B27/B28","v":{"$error":"#DIV/0!"}},{"$f":"C27/C28","v":{"$error":"#DIV/0!"}},{"$error":"#DIV/0!"},{"$error":"#DIV/0!"},{"$error":"#DIV/0!"},{"$error":"#DIV/0!"},{"$error":"#DIV/0!"},{"$error":"#DIV/0!"},{"$error":"#DIV/0!"},{"$error":"#DIV/0!"},{"$error":"#DIV/0!"},">0,6 dega raudonai"]
["Visi įsipareigojimai",{"$f":"Fin_duomenys!C40","v":0},{"$f":"Fin_duomenys!D40","v":0},{"$f":"Fin_duomenys!E40","v":0},{"$f":"Fin_duomenys!F40","v":0},{"$f":"Fin_duomenys!G40","v":0},{"$f":"Fin_duomenys!H40","v":0},{"$f":"Fin_duomenys!I40","v":0},{"$f":"Fin_duomenys!J40","v":0},{"$f":"Fin_duomenys!K40","v":0},{"$f":"Fin_duomenys!L40","v":0},{"$f":"Fin_duomenys!M40","v":0}]
["Visas turtas",{"$f":"Fin_duomenys!C31","v":0},{"$f":"Fin_duomenys!D31","v":0},{"$f":"Fin_duomenys!E31","v":0},{"$f":"Fin_duomenys!F31","v":0},{"$f":"Fin_duomenys!G31","v":0},{"$f":"Fin_duomenys!H31","v":0},{"$f":"Fin_duomenys!I31","v":0},{"$f":"Fin_duomenys!J31","v":0},{"$f":"Fin_duomenys!K31","v":0},{"$f":"Fin_duomenys!L31","v":0},{"$f":"Fin_duomenys!M31","v":0}]
["Parodo, kokia turto dalis finansuojama skolintu kapitalu (įsipareigojimais)."]
["Lyginti su sektoriaus ar pramonės šakos rodikliais - ar ne per didelis įsiskolinimas"]
["Palūkanų padengimo koeficientas",{"$f":"B32/B33","v":{"$error":"#DIV/0!"}},{"$f":"C32/C33","v":{"$error":"#DIV/0!"}},{"$error":"#DIV/0!"},{"$error":"#DIV/0!"},{"$error":"#DIV/0!"},{"$error":"#DIV/0!"},{"$error":"#DIV/0!"},{"$error":"#DIV/0!"},{"$error":"#DIV/0!"},{"$error":"#DIV/0!"},{"$error":"#DIV/0!"},"<1,5 dega raudonai"]
["Veiklos pelnas (EBIT)",{"$f":"Fin_duomenys!C9","v":0},{"$f":"Fin_duomenys!D9","v":0},{"$f":"Fin_duomenys!E9","v":0},{"$f":"Fin_duomenys!F9","v":0},{"$f":"Fin_duomenys!G9","v":0},{"$f":"Fin_duomenys!H9","v":0},{"$f":"Fin_duomenys!I9","v":0},{"$f":"Fin_duomenys!J9","v":0},{"$f":"Fin_duomenys!K9","v":0},{"$f":"Fin_duomenys!L9","v":0},{"$f":"Fin_duomenys!M9","v":0}]
["Palūkanų sąnaudos",{"$f":"+Fin_duomenys!C12","v":0},{"$f":"+Fin_duomenys!D12","v":0},{"$f":"+Fin_duomenys!E12","v":0},{"$f":"+Fin_duomenys!F12","v":0},{"$f":"+Fin_duomenys!G12","v":0},{"$f":"+Fin_duomenys!H12","v":0},{"$f":"+Fin_duomenys!I12","v":0},{"$f":"+Fin_duomenys!J12","v":0},{"$f":"+Fin_duomenys!K12","v":0},{"$f":"+Fin_duomenys!L12","v":0},{"$f":"+Fin_duomenys!M12","v":0}]
["Rekomenduojama, kad šis rodiklis būtų ne mažesnis nei 2,5"]
["Jei rodiklis yra 1,5 ar mažesnis, įmonei gali kilti sunkumų mokėti palūkanas"]
["Bankroto rizika pagal Altman Z-score",{"$f":"0.717*(B14/B28)+0.847*(B37/B28)+3.107*(B32/B28)+0.42*(B38/B27)+0.998*(B39/B28)","v":{"$error":"#DIV/0!"}},{"$f":"0.717*(C14/C28)+0.847*(C37/C28)+3.107*(C32/C28)+0.42*(C38/C27)+0.998*(C39/C28)","v":{"$error":"#DIV/0!"}},{"$error":"#DIV/0!"},{"$error":"#DIV/0!"},{"$error":"#DIV/0!"},{"$error":"#DIV/0!"},{"$error":"#DIV/0!"},{"$error":"#DIV/0!"},{"$error":"#DIV/0!"},{"$error":"#DIV/0!"},{"$error":"#DIV/0!"},"<2,9 dega raudonai"]
["Nepaskirstytasis pelnas",{"$f":"Fin_duomenys!C37","v":0},{"$f":"Fin_duomenys!D37","v":0},{"$f":"Fin_duomenys!E37","v":0},{"$f":"Fin_duomenys!F37","v":0},{"$f":"Fin_duomenys!G37","v":0},{"$f":"Fin_duomenys!H37","v":0},{"$f":"Fin_duomenys!I37","v":0},{"$f":"Fin_duomenys!J37","v":0},{"$f":"Fin_duomenys!K37","v":0},{"$f":"Fin_duomenys!L37","v":0},{"$f":"Fin_duomenys!M37","v":0}]
["Nuosavas kapitalas",{"$f":"Fin_duomenys!C32","v":0},{"$f":"Fin_duomenys!D32","v":0},{"$f":"Fin_duomenys!E32","v":0},{"$f":"Fin_duomenys!F32","v":0},{"$f":"Fin_duomenys!G32","v":0},{"$f":"Fin_duomenys!H32","v":0},{"$f":"Fin_duomenys!I32","v":0},{"$f":"Fin_duomenys!J32","v":0},{"$f":"Fin_duomenys!K32","v":0},{"$f":"Fin_duomenys!L32","v":0},{"$f":"Fin_duomenys!M32","v":0}]
["Pardavimų pajamos",{"$f":"Fin_duomenys!C4","v":0},{"$f":"Fin_duomenys!D4","v":0},{"$f":"Fin_duomenys!E4","v":0},{"$f":"Fin_duomenys!F4","v":0},{"$f":"Fin_duomenys!G4","v":0},{"$f":"Fin_duomenys!H4","v":0},{"$f":"Fin_duomenys!I4","v":0},{"$f":"Fin_duomenys!J4","v":0},{"$f":"Fin_duomenys!K4","v":0},{"$f":"Fin_duomenys!L4","v":0},{"$f":"Fin_duomenys!M4","v":0}]
["Jei Z-score yra mažiau nei 1,23 - gresia bankrotas"]
["Jei Z-score yra tarp 1,23 ir 2,9 - gali grėsti bankrotas"]
["Jei Z-score yra virš 2,9 - finansiškai stabili įmonė"]
["Turtas",{"$f":"B25","v":"2018 m. faktas"},{"$f":"C25","v":"2019 m. faktas"},{"$f":"D10","v":"2020 m.         mėn. faktas"},"2020 m. prognozė","2021 m. prognozė","2022 m. prognozė","2023 m. prognozė","2024 m. prognozė","2025 m. prognozė","2026 m. prognozė","2027 m. prognozė"]
["Piniginis turtas (near-cash assets)",{"$f":"B45+B46","v":0},{"$f":"C45+C46","v":0},0,0,0,0,0,0,0,0,0]
["Pinigai ir jų ekvivalentai",{"$f":"Fin_duomenys!C29","v":0},{"$f":"Fin_duomenys!D29","v":0},{"$f":"Fin_duomenys!E29","v":0},{"$f":"Fin_duomenys!F29","v":0},{"$f":"Fin_duomenys!G29","v":0},{"$f":"Fin_duomenys!H29","v":0},{"$f":"Fin_duomenys!I29","v":0},{"$f":"Fin_duomenys!J29","v":0},{"$f":"Fin_duomenys!K29","v":0},{"$f":"Fin_duomenys!L29","v":0},{"$f":"Fin_duomenys!M29","v":0}]
["Pirkėjų skolos",{"$f":"Fin_duomenys!C25","v":0},{"$f":"Fin_duomenys!D25","v":0},{"$f":"Fin_duomenys!E25","v":0},{"$f":"Fin_duomenys!F25","v":0},{"$f":"Fin_duomenys!G25","v":0},{"$f":"Fin_duomenys!H25","v":0},{"$f":"Fin_duomenys!I25","v":0},{"$f":"Fin_duomenys!J25","v":0},{"$f":"Fin_duomenys!K25","v":0},{"$f":"Fin_duomenys!L25","v":0},{"$f":"Fin_duomenys!M25","v":0}]
["Išvados iš kreditorių ir debitorių sąrašo:"]
[]
["Specifika",{"$f":"B43","v":"2018 m. faktas"},{"$f":"C43","v":"2019 m. faktas"},{"$f":"D10","v":"2020 m.         mėn. faktas"},"2020 m. prognozė","2021 m. prognozė","2022 m. prognozė","2023 m. prognozė","2024 m. prognozė","2025 m. prognozė","2026 m. prognozė","2027 m. prognozė"]
["Ar finansavimo šaltinis - prognozuojami juridinio asmens pinigų srautai?",null,"Klasifikatotorius"]
["Prognozuojamas įmonės (pardavimų) augimo tempas (proc.)",{"$f":"Fin_duomenys!C4/Fin_duomenys!B4","v":{"$error":"#DIV/0!"}},{"$f":"Fin_duomenys!D4/Fin_duomenys!C4","v":{"$error":"#DIV/0!"}},null,{"$f":"Fin_duomenys!F4/Fin_duomenys!E4","v":{"$error":"#DIV/0!"}},{"$f":"Fin_duomenys!G4/Fin_duomenys!F4","v":{"$error":"#DIV/0!"}},{"$f":"Fin_duomenys!H4/Fin_duomenys!G4","v":{"$error":"#DIV/0!"}},{"$f":"Fin_duomenys!I4/Fin_duomenys!H4","v":{"$error":"#DIV/0!"}},{"$f":"Fin_duomenys!J4/Fin_duomenys!I4","v":{"$error":"#DIV/0!"}},{"$f":"Fin_duomenys!K4/Fin_duomenys!J4","v":{"$error":"#DIV/0!"}},{"$f":"Fin_duomenys!L4/Fin_duomenys!K4","v":{"$error":"#DIV/0!"}},{"$f":"Fin_duomenys!M4/Fin_duomenys!L4","v":{"$error":"#DIV/0!"}}]
["Kuo grindžiamos pardavimų prognozės? Ar verslo plane tinkamai paaiškinta, kodėl planuojami būtent tokie pardavimai?"]
[]
["Vidinio augimo norma (proc.)",{"$f":"(B56/B55)/(1-B56/B55)","v":{"$error":"#DIV/0!"}},{"$f":"(C56/C55)/(1-C56/C55)","v":{"$error":"#DIV/0!"}},{"$error":"#DIV/0!"},{"$error":"#DIV/0!"},{"$error":"#DIV/0!"},{"$error":"#DIV/0!"},{"$error":"#DIV/0!"},{"$error":"#DIV/0!"},{"$error":"#DIV/0!"},{"$error":"#DIV/0!"},{"$error":"#DIV/0!"}]
["Visas turtas",{"$f":"Fin_duomenys!C31","v":0},{"$f":"Fin_duomenys!D31","v":0},{"$f":"Fin_duomenys!E31","v":0},{"$f":"Fin_duomenys!F31","v":0},{"$f":"Fin_duomenys!G31","v":0},{"$f":"Fin_duomenys!H31","v":0},{"$f":"Fin_duomenys!I31","v":0},{"$f":"Fin_duomenys!J31","v":0},{"$f":"Fin_duomenys!K31","v":0},{"$f":"Fin_duomenys!L31","v":0},{"$f":"Fin_duomenys!M31","v":0}]
["Grynasis pelnas",{"$f":"Fin_duomenys!C15","v":0},{"$f":"Fin_duomenys!D15","v":0},{"$f":"Fin_duomenys!E15","v":0},{"$f":"Fin_duomenys!F15","v":0},{"$f":"Fin_duomenys!G15","v":0},{"$f":"Fin_duomenys!H15","v":0},{"$f":"Fin_duomenys!I15","v":0},{"$f":"Fin_duomenys!J15","v":0},{"$f":"Fin_duomenys!K15","v":0},{"$f":"Fin_duomenys!L15","v":0},{"$f":"Fin_duomenys!M15","v":0}]
["Ar įmonės prognozuojamas pardavimų augimas viršija vidinio augimo normą?",null,"Klasifikatotorius"]
["Jei taip, ar detalizuotas išorinio finansavimo poreikis ir jo šaltinis?"]
[]
["Tvari augimo norma (proc.)",{"$f":"(B56/B61)/(1-B56/B61)","v":{"$error":"#DIV/0!"}},{"$error":"#DIV/0!"},{"$error":"#DIV/0!"},{"$error":"#DIV/0!"},{"$error":"#DIV/0!"},{"$error":"#DIV/0!"},{"$error":"#DIV/0!"},{"$error":"#DIV/0!"},{"$error":"#DIV/0!"},{"$error":"#DIV/0!"},{"$error":"#DIV/0!"}]
["Nuosavas kapitalas",{"$f":"Fin_duomenys!C32","v":0},{"$f":"Fin_duomenys!D32","v":0},{"$f":"Fin_duomenys!E32","v":0},{"$f":"Fin_duomenys!F32","v":0},{"$f":"Fin_duomenys!G32","v":0},{"$f":"Fin_duomenys!H32","v":0},{"$f":"Fin_duomenys!I32","v":0},{"$f":"Fin_duomenys!J32","v":0},{"$f":"Fin_duomenys!K32","v":0},{"$f":"Fin_duomenys!L32","v":0},{"$f":"Fin_duomenys!M32","v":0}]
["Ar įmonės prognozuojamas pardavimų augimas viršija tvarią augimo normą?",null,"Klasifikatotorius"]
["Jei taip, ar detalizuotas papildomo išorinio finansavimo poreikis ir jo šaltiniai?"]

{"sheet":"SP_Gamybine_su_VP","index":6,"n_rows":153,"n_cols":7,"rows_kept":153,"cut":false,"hidden":true,"merged":[[151,0,151,4],[152,0,152,4],[108,0,108,4],[109,0,109,4],[134,0,134,4],[133,0,133,4],[107,0,107,3],[141,0,141,4],[140,0,140,4],[147,0,147,4],[106,0,106,4],[145,0,145,2],[146,0,146,4],[101,0,101,6],[105,0,105,4],[104,0,104,4],[103,0,103,4],[102,0,102,3]]}
["PELNO - NUOSTOLIŲ ATASKAITA",{"$f":"Fin_duomenys!C2","v":"2018 m. faktas"},{"$f":"Fin_duomenys!D2","v":"2019 m. faktas"},{"$f":"+(Navigacija!F2)&\" m.                \" &Navigacija!H2&\" mėn.\"&\" faktas\"","v":"2020 m.                 mėn. faktas"},{"$f":"Fin_duomenys!F2","v":"2020 m. prognozė"},{"$f":"Fin_duomenys!G2","v":"2021 m. prognozė"},{"$f":"Fin_duomenys!H2","v":"2022 m. prognozė"}]
[{"$f":"Fin_duomenys!A4","v":"Pardavimo pajamos"},{"$f":"Fin_duomenys!C4","v":0},{"$f":"Fin_duomenys!D4","v":0},{"$f":"Fin_duomenys!E4","v":0},{"$f":"Fin_duomenys!F4","v":0},{"$f":"Fin_duomenys!G4","v":0},{"$f":"Fin_duomenys!H4","v":0}]
[{"$f":"Fin_duomenys!A5","v":"Pardavimo savikaina"},{"$f":"Fin_duomenys!C5","v":0},{"$f":"Fin_duomenys!D5","v":0},{"$f":"Fin_duomenys!E5","v":0},{"$f":"Fin_duomenys!F5","v":0},{"$f":"Fin_duomenys!G5","v":0},{"$f":"Fin_duomenys!H5","v":0}]
[{"$f":"Fin_duomenys!A6","v":"BENDRAS PELNAS (NUOSTOLIS)"},{"$f":"Fin_duomenys!C6","v":0},{"$f":"Fin_duomenys!D6","v":0},{"$f":"Fin_duomenys!E6","v":0},{"$f":"Fin_duomenys!F6","v":0},{"$f":"Fin_duomenys!G6","v":0},{"$f":"Fin_duomenys!H6","v":0}]
[{"$f":"Fin_duomenys!A7","v":"Pardavimo sąnaudos"},{"$f":"Fin_duomenys!C7","v":0},{"$f":"Fin_duomenys!D7","v":0},{"$f":"Fin_duomenys!E7","v":0},{"$f":"Fin_duomenys!F7","v":0},{"$f":"Fin_duomenys!G7","v":0},{"$f":"Fin_duomenys!H7","v":0}]
[{"$f":"Fin_duomenys!A8","v":"Bendrosios ir administracinės sąnaudos"},{"$f":"Fin_duomenys!C8","v":0},{"$f":"Fin_duomenys!D8","v":0},{"$f":"Fin_duomenys!E8","v":0},{"$f":"Fin_duomenys!F8","v":0},{"$f":"Fin_duomenys!G8","v":0},{"$f":"Fin_duomenys!H8","v":0}]
[{"$f":"Fin_duomenys!A9","v":"TIPINĖS VEIKLOS PELNAS (NUOSTOLIS)"},{"$f":"Fin_duomenys!C9","v":0},{"$f":"Fin_duomenys!D9","v":0},{"$f":"Fin_duomenys!E9","v":0},{"$f":"Fin_duomenys!F9","v":0},{"$f":"Fin_duomenys!G9","v":0},{"$f":"Fin_duomenys!H9","v":0}]
[{"$f":"Fin_duomenys!A10","v":"Kitos veiklos rezultatas"},{"$f":"Fin_duomenys!C10","v":0},{"$f":"Fin_duomenys!D10","v":0},{"$f":"Fin_duomenys!E10","v":0},{"$f":"Fin_duomenys!F10","v":0},{"$f":"Fin_duomenys!G10","v":0},{"$f":"Fin_duomenys!H10","v":0}]
[{"$f":"Fin_duomenys!A11","v":"Finansinės ir investicinės veiklos pajamos"},{"$f":"Fin_duomenys!C11","v":0},{"$f":"Fin_duomenys!D11","v":0},{"$f":"Fin_duomenys!E11","v":0},{"$f":"Fin_duomenys!F11","v":0},{"$f":"Fin_duomenys!G11","v":0},{"$f":"Fin_duomenys!H11","v":0}]
[{"$f":"Fin_duomenys!A12","v":"Finansinės ir investicinės veiklos sąnaudos"},{"$f":"Fin_duomenys!C12","v":0},{"$f":"Fin_duomenys!D12","v":0},{"$f":"Fin_duomenys!E12","v":0},{"$f":"Fin_duomenys!F12","v":0},{"$f":"Fin_duomenys!G12","v":0},{"$f":"Fin_duomenys!H12","v":0}]
[{"$f":"Fin_duomenys!A13","v":"PELNAS (NUOSTOLIAI) PRIEŠ APMOKESTINIMĄ"},{"$f":"Fin_duomenys!C13","v":0},{"$f":"Fin_duomenys!D13","v":0},{"$f":"Fin_duomenys!E13","v":0},{"$f":"Fin_duomenys!F13","v":0},{"$f":"Fin_duomenys!G13","v":0},{"$f":"Fin_duomenys!H13","v":0}]
[{"$f":"Fin_duomenys!A14","v":"Pelno mokestis"},{"$f":"Fin_duomenys!C14","v":0},{"$f":"Fin_duomenys!D14","v":0},{"$f":"Fin_duomenys!E14","v":0},{"$f":"Fin_duomenys!F14","v":0},{"$f":"Fin_duomenys!G14","v":0},{"$f":"Fin_duomenys!H14","v":0}]
[{"$f":"Fin_duomenys!A15","v":"GRYNASIS PELNAS (NUOSTOLIAI)"},{"$f":"Fin_duomenys!C15","v":0},{"$f":"Fin_duomenys!D15","v":0},{"$f":"Fin_duomenys!E15","v":0},{"$f":"Fin_duomenys!F15","v":0},{"$f":"Fin_duomenys!G15","v":0},{"$f":"Fin_duomenys!H15","v":0}]
[{"$f":"Fin_duomenys!A16","v":"BALANSAS"},{"$f":"B1","v":"2018 m. faktas"},{"$f":"C1","v":"2019 m. faktas"},{"$f":"D1","v":"2020 m.                 mėn. faktas"},"2020 m. prognozė","2021 m. prognozė","2022 m. prognozė"]
[{"$f":"Fin_duomenys!A17","v":"ILGALAIKIS TURTAS"},{"$f":"Fin_duomenys!C17","v":0},{"$f":"Fin_duomenys!D17","v":0},{"$f":"Fin_duomenys!E17","v":0},{"$f":"Fin_duomenys!F17","v":0},{"$f":"Fin_duomenys!G17","v":0},{"$f":"Fin_duomenys!H17","v":0}]
[{"$f":"Fin_duomenys!A18","v":"NEMATERIALUSIS TURTAS"},{"$f":"Fin_duomenys!C18","v":0},{"$f":"Fin_duomenys!D18","v":0},{"$f":"Fin_duomenys!E18","v":0},{"$f":"Fin_duomenys!F18","v":0},{"$f":"Fin_duomenys!G18","v":0},{"$f":"Fin_duomenys!H18","v":0}]
[{"$f":"Fin_duomenys!A19","v":"MATERIALUSIS TURTAS"},{"$f":"Fin_duomenys!C19","v":0},{"$f":"Fin_duomenys!D19","v":0},{"$f":"Fin_duomenys!E19","v":0},{"$f":"Fin_duomenys!F19","v":0},{"$f":"Fin_duomenys!G19","v":0},{"$f":"Fin_duomenys!H19","v":0}]
[{"$f":"Fin_duomenys!A20","v":"FINANSINIS TURTAS"},{"$f":"Fin_duomenys!C20","v":0},{"$f":"Fin_duomenys!D20","v":0},{"$f":"Fin_duomenys!E20","v":0},{"$f":"Fin_duomenys!F20","v":0},{"$f":"Fin_duomenys!G20","v":0},{"$f":"Fin_duomenys!H20","v":0}]
[{"$f":"Fin_duomenys!A21","v":"KITAS ILGALAIKIS TURTAS"},{"$f":"Fin_duomenys!C21","v":0},{"$f":"Fin_duomenys!D21","v":0},{"$f":"Fin_duomenys!E21","v":0},{"$f":"Fin_duomenys!F21","v":0},{"$f":"Fin_duomenys!G21","v":0},{"$f":"Fin_duomenys!H21","v":0}]
[{"$f":"Fin_duomenys!A22","v":"TRUMPALAIKIS TURTAS"},{"$f":"Fin_duomenys!C22","v":0},{"$f":"Fin_duomenys!D22","v":0},{"$f":"Fin_duomenys!E22","v":0},{"$f":"Fin_duomenys!F22","v":0},{"$f":"Fin_duomenys!G22","v":0},{"$f":"Fin_duomenys!H22","v":0}]
[{"$f":"Fin_duomenys!A23","v":"ATSARGOS"},{"$f":"Fin_duomenys!C23","v":0},{"$f":"Fin_duomenys!D23","v":0},{"$f":"Fin_duomenys!E23","v":0},{"$f":"Fin_duomenys!F23","v":0},{"$f":"Fin_duomenys!G23","v":0},{"$f":"Fin_duomenys!H23","v":0}]
[{"$f":"Fin_duomenys!A24","v":"PER VIENERIUS METUS GAUTINOS SUMOS"},{"$f":"Fin_duomenys!C24","v":0},{"$f":"Fin_duomenys!D24","v":0},{"$f":"Fin_duomenys!E24","v":0},{"$f":"Fin_duomenys!F24","v":0},{"$f":"Fin_duomenys!G24","v":0},{"$f":"Fin_duomenys!H24","v":0}]
[{"$f":"Fin_duomenys!A25","v":"Pirkėjų įsiskolinimas"},{"$f":"Fin_duomenys!C25","v":0},{"$f":"Fin_duomenys!D25","v":0},{"$f":"Fin_duomenys!E25","v":0},{"$f":"Fin_duomenys!F25","v":0},{"$f":"Fin_duomenys!G25","v":0},{"$f":"Fin_duomenys!H25","v":0}]
[{"$f":"Fin_duomenys!A26","v":"Dukterinių ir asocijuotų įmonių skolos"},{"$f":"Fin_duomenys!C26","v":0},{"$f":"Fin_duomenys!D26","v":0},{"$f":"Fin_duomenys!E26","v":0},{"$f":"Fin_duomenys!F26","v":0},{"$f":"Fin_duomenys!G26","v":0},{"$f":"Fin_duomenys!H26","v":0}]
[{"$f":"Fin_duomenys!A27","v":"Kitos gautinos sumos"},{"$f":"Fin_duomenys!C27","v":0},{"$f":"Fin_duomenys!D27","v":0},{"$f":"Fin_duomenys!E27","v":0},{"$f":"Fin_duomenys!F27","v":0},{"$f":"Fin_duomenys!G27","v":0},{"$f":"Fin_duomenys!H27","v":0}]
[{"$f":"Fin_duomenys!A28","v":"TRUMPALAIKĖS INVESTICIJOS"},{"$f":"Fin_duomenys!C28","v":0},{"$f":"Fin_duomenys!D28","v":0},{"$f":"Fin_duomenys!E28","v":0},{"$f":"Fin_duomenys!F28","v":0},{"$f":"Fin_duomenys!G28","v":0},{"$f":"Fin_duomenys!H28","v":0}]
[{"$f":"Fin_duomenys!A29","v":"PINIGAI IR PINIGŲ EKVIVALENTAI"},{"$f":"Fin_duomenys!C29","v":0},{"$f":"Fin_duomenys!D29","v":0},{"$f":"Fin_duomenys!E29","v":0},{"$f":"Fin_duomenys!F29","v":0},{"$f":"Fin_duomenys!G29","v":0},{"$f":"Fin_duomenys!H29","v":0}]
[{"$f":"Fin_duomenys!A30","v":"ATEINANČIŲ LAIKOTARPIŲ SĄNAUDOS IR SUKAUPTOS PAJAMOS"},{"$f":"Fin_duomenys!C30","v":0},{"$f":"Fin_duomenys!D30","v":0},{"$f":"Fin_duomenys!E30","v":0},{"$f":"Fin_duomenys!F30","v":0},{"$f":"Fin_duomenys!G30","v":0},{"$f":"Fin_duomenys!H30","v":0}]
[{"$f":"Fin_duomenys!A31","v":"TURTO IŠ VISO:"},{"$f":"Fin_duomenys!C31","v":0},{"$f":"Fin_duomenys!D31","v":0},{"$f":"Fin_duomenys!E31","v":0},{"$f":"Fin_duomenys!F31","v":0},{"$f":"Fin_duomenys!G31","v":0},{"$f":"Fin_duomenys!H31","v":0}]
[{"$f":"Fin_duomenys!A32","v":"NUOSAVAS KAPITALAS"},{"$f":"Fin_duomenys!C32","v":0},{"$f":"Fin_duomenys!D32","v":0},{"$f":"Fin_duomenys!E32","v":0},{"$f":"Fin_duomenys!F32","v":0},{"$f":"Fin_duomenys!G32","v":0},{"$f":"Fin_duomenys!H32","v":0}]
[{"$f":"Fin_duomenys!A33","v":"KAPITALAS"},{"$f":"Fin_duomenys!C33","v":0},{"$f":"Fin_duomenys!D33","v":0},{"$f":"Fin_duomenys!E33","v":0},{"$f":"Fin_duomenys!F33","v":0},{"$f":"Fin_duomenys!G33","v":0},{"$f":"Fin_duomenys!H33","v":0}]
[{"$f":"Fin_duomenys!A34","v":"AKCIJŲ PRIEDAI"},{"$f":"Fin_duomenys!C34","v":0},{"$f":"Fin_duomenys!D34","v":0},{"$f":"Fin_duomenys!E34","v":0},{"$f":"Fin_duomenys!F34","v":0},{"$f":"Fin_duomenys!G34","v":0},{"$f":"Fin_duomenys!H34","v":0}]
[{"$f":"Fin_duomenys!A35","v":"PERKAINOJIMO REZERVAS (REZULTATAI)"},{"$f":"Fin_duomenys!C35","v":0},{"$f":"Fin_duomenys!D35","v":0},{"$f":"Fin_duomenys!E35","v":0},{"$f":"Fin_duomenys!F35","v":0},{"$f":"Fin_duomenys!G35","v":0},{"$f":"Fin_duomenys!H35","v":0}]
[{"$f":"Fin_duomenys!A36","v":"REZERVAI"},{"$f":"Fin_duomenys!C36","v":0},{"$f":"Fin_duomenys!D36","v":0},{"$f":"Fin_duomenys!E36","v":0},{"$f":"Fin_duomenys!F36","v":0},{"$f":"Fin_duomenys!G36","v":0},{"$f":"Fin_duomenys!H36","v":0}]
[{"$f":"Fin_duomenys!A37","v":"NEPASKIRSTYTASIS PELNAS (NUOSTOLIAI)"},{"$f":"Fin_duomenys!C37","v":0},{"$f":"Fin_duomenys!D37","v":0},{"$f":"Fin_duomenys!E37","v":0},{"$f":"Fin_duomenys!F37","v":0},{"$f":"Fin_duomenys!G37","v":0},{"$f":"Fin_duomenys!H37","v":0}]
[{"$f":"Fin_duomenys!A38","v":"DOTACIJOS, SUBSIDIJOS"},{"$f":"Fin_duomenys!C38","v":0},{"$f":"Fin_duomenys!D38","v":0},{"$f":"Fin_duomenys!E38","v":0},{"$f":"Fin_duomenys!F38","v":0},{"$f":"Fin_duomenys!G38","v":0},{"$f":"Fin_duomenys!H38","v":0}]
[{"$f":"Fin_duomenys!A39","v":"ATIDĖJINIAI"},{"$f":"Fin_duomenys!C39","v":0},{"$f":"Fin_duomenys!D39","v":0},{"$f":"Fin_duomenys!E39","v":0},{"$f":"Fin_duomenys!F39","v":0},{"$f":"Fin_duomenys!G39","v":0},{"$f":"Fin_duomenys!H39","v":0}]
[{"$f":"Fin_duomenys!A40","v":"MOKĖTINOS SUMOS IR ĮSIPAREIGOJIMAI"},{"$f":"Fin_duomenys!C40","v":0},{"$f":"Fin_duomenys!D40","v":0},{"$f":"Fin_duomenys!E40","v":0},{"$f":"Fin_duomenys!F40","v":0},{"$f":"Fin_duomenys!G40","v":0},{"$f":"Fin_duomenys!H40","v":0}]
[{"$f":"Fin_duomenys!A41","v":"PO VIENERIŲ METŲ MOKĖTINOS SUMOS IR ILGALAIKIAI ĮSISPAREIGOJIMAI"},{"$f":"Fin_duomenys!C41","v":0},{"$f":"Fin_duomenys!D41","v":0},{"$f":"Fin_duomenys!E41","v":0},{"$f":"Fin_duomenys!F41","v":0},{"$f":"Fin_duomenys!G41","v":0},{"$f":"Fin_duomenys!H41","v":0}]
[{"$f":"Fin_duomenys!A42","v":"PER VIENERIUS METUS MOKĖTINOS SUMOS IR TRUMPALAIKIAI ĮSIPAREIGOJIMAI"},{"$f":"Fin_duomenys!C42","v":0},{"$f":"Fin_duomenys!D42","v":0},{"$f":"Fin_duomenys!E42","v":0},{"$f":"Fin_duomenys!F42","v":0},{"$f":"Fin_duomenys!G42","v":0},{"$f":"Fin_duomenys!H42","v":0}]
[{"$f":"Fin_duomenys!A43","v":"Skoliniai įsipareigojimai"},{"$f":"Fin_duomenys!C43","v":0},{"$f":"Fin_duomenys!D43","v":0},{"$f":"Fin_duomenys!E43","v":0},{"$f":"Fin_duomenys!F43","v":0},{"$f":"Fin_duomenys!G43","v":0},{"$f":"Fin_duomenys!H43","v":0}]
[{"$f":"Fin_duomenys!A44","v":"Skolos kredito įstaigoms"},{"$f":"Fin_duomenys!C44","v":0},{"$f":"Fin_duomenys!D44","v":0},{"$f":"Fin_duomenys!E44","v":0},{"$f":"Fin_duomenys!F44","v":0},{"$f":"Fin_duomenys!G44","v":0},{"$f":"Fin_duomenys!H44","v":0}]
[{"$f":"Fin_duomenys!A45","v":"Gauti avansai"},{"$f":"Fin_duomenys!C45","v":0},{"$f":"Fin_duomenys!D45","v":0},{"$f":"Fin_duomenys!E45","v":0},{"$f":"Fin_duomenys!F45","v":0},{"$f":"Fin_duomenys!G45","v":0},{"$f":"Fin_duomenys!H45","v":0}]
[{"$f":"Fin_duomenys!A46","v":"Skolos tiekėjams"},{"$f":"Fin_duomenys!C46","v":0},{"$f":"Fin_duomenys!D46","v":0},{"$f":"Fin_duomenys!E46","v":0},{"$f":"Fin_duomenys!F46","v":0},{"$f":"Fin_duomenys!G46","v":0},{"$f":"Fin_duomenys!H46","v":0}]
[{"$f":"Fin_duomenys!A47","v":"Pagal vekselius ir čekius mokėtinos sumos"},{"$f":"Fin_duomenys!C47","v":0},{"$f":"Fin_duomenys!D47","v":0},{"$f":"Fin_duomenys!E47","v":0},{"$f":"Fin_duomenys!F47","v":0},{"$f":"Fin_duomenys!G47","v":0},{"$f":"Fin_duomenys!H47","v":0}]
[{"$f":"Fin_duomenys!A48","v":"Įmonių grupės įmonėms mokėtinos sumos"},{"$f":"Fin_duomenys!C48","v":0},{"$f":"Fin_duomenys!D48","v":0},{"$f":"Fin_duomenys!E48","v":0},{"$f":"Fin_duomenys!F48","v":0},{"$f":"Fin_duomenys!G48","v":0},{"$f":"Fin_duomenys!H48","v":0}]
[{"$f":"Fin_duomenys!A49","v":"Asocijuotosioms įmonėms mokėtinos sumos"},{"$f":"Fin_duomenys!C49","v":0},{"$f":"Fin_duomenys!D49","v":0},{"$f":"Fin_duomenys!E49","v":0},{"$f":"Fin_duomenys!F49","v":0},{"$f":"Fin_duomenys!G49","v":0},{"$f":"Fin_duomenys!H49","v":0}]
[{"$f":"Fin_duomenys!A50","v":"Pelno mokesčio įsipareigojimai"},{"$f":"Fin_duomenys!C50","v":0},{"$f":"Fin_duomenys!D50","v":0},{"$f":"Fin_duomenys!E50","v":0},{"$f":"Fin_duomenys!F50","v":0},{"$f":"Fin_duomenys!G50","v":0},{"$f":"Fin_duomenys!H50","v":0}]
[{"$f":"Fin_duomenys!A51","v":"Su darbo santykiais susiję įsipareigojimai"},{"$f":"Fin_duomenys!C51","v":0},{"$f":"Fin_duomenys!D51","v":0},{"$f":"Fin_duomenys!E51","v":0},{"$f":"Fin_duomenys!F51","v":0},{"$f":"Fin_duomenys!G51","v":0},{"$f":"Fin_duomenys!H51","v":0}]
[{"$f":"Fin_duomenys!A52","v":"Kitos mokėtinos sumos ir trumpalaikiai įsipareigojimai"},{"$f":"Fin_duomenys!C52","v":0},{"$f":"Fin_duomenys!D52","v":0},{"$f":"Fin_duomenys!E52","v":0},{"$f":"Fin_duomenys!F52","v":0},{"$f":"Fin_duomenys!G52","v":0},{"$f":"Fin_duomenys!H52","v":0}]
[{"$f":"Fin_duomenys!A53","v":"SUKAUPTOS SĄNAUDOS ATEINANČIŲ LAIKOTARPIŲ PAJAMOS"},{"$f":"Fin_duomenys!C53","v":0},{"$f":"Fin_duomenys!D53","v":0},{"$f":"Fin_duomenys!E53","v":0},{"$f":"Fin_duomenys!F53","v":0},{"$f":"Fin_duomenys!G53","v":0},{"$f":"Fin_duomenys!H53","v":0}]
[{"$f":"Fin_duomenys!A54","v":"NUOSAVO KAPITALO IR ĮSIPAREIGOJIMŲ IŠ VISO:"},{"$f":"Fin_duomenys!C54","v":0},{"$f":"Fin_duomenys!D54","v":0},{"$f":"Fin_duomenys!E54","v":0},{"$f":"Fin_duomenys!F54","v":0},{"$f":"Fin_duomenys!G54","v":0},{"$f":"Fin_duomenys!H54","v":0}]
[{"$f":"Fin_duomenys!A55","v":"Ar balansuojasi?"},{"$f":"Fin_duomenys!C55","v":"+"},{"$f":"Fin_duomenys!D55","v":"+"},{"$f":"Fin_duomenys!E55","v":"+"},{"$f":"Fin_duomenys!F55","v":"+"},{"$f":"Fin_duomenys!G55","v":"+"},{"$f":"Fin_duomenys!H55","v":"+"}]
["PINIGŲ SRAUTAS",{"$f":"B14","v":"2018 m. faktas"},{"$f":"C14","v":"2019 m. faktas"},{"$f":"D1","v":"2020 m.                 mėn. faktas"},"2020 m. prognozė","2021 m. prognozė","2022 m. prognozė"]
[{"$f":"Fin_duomenys!A58","v":"EBITDA"},{"$f":"Fin_duomenys!C58","v":0},{"$f":"Fin_duomenys!D58","v":0},{"$f":"Fin_duomenys!E58","v":0},{"$f":"Fin_duomenys!F58","v":0},{"$f":"Fin_duomenys!G58","v":0},{"$f":"Fin_duomenys!H58","v":0}]
[{"$f":"Fin_duomenys!A59","v":"Apyvartinio kapitalo pokytis "},{"$f":"Fin_duomenys!C59","v":0},{"$f":"Fin_duomenys!D59","v":0},{"$f":"Fin_duomenys!E59","v":0},{"$f":"Fin_duomenys!F59","v":0},{"$f":"Fin_duomenys!G59","v":0},{"$f":"Fin_duomenys!H59","v":0}]
[{"$f":"Fin_duomenys!A60","v":"PS iš veiklos"},{"$f":"Fin_duomenys!C60","v":0},{"$f":"Fin_duomenys!D60","v":0},{"$f":"Fin_duomenys!E60","v":0},{"$f":"Fin_duomenys!F60","v":0},{"$f":"Fin_duomenys!G60","v":0},{"$f":"Fin_duomenys!H60","v":0}]
[{"$f":"Fin_duomenys!A61","v":"Finansinės veiklos rezultatas "},{"$f":"Fin_duomenys!C61","v":0},{"$f":"Fin_duomenys!D61","v":0},{"$f":"Fin_duomenys!E61","v":0},{"$f":"Fin_duomenys!F61","v":0},{"$f":"Fin_duomenys!G61","v":0},{"$f":"Fin_duomenys!H61","v":0}]
[{"$f":"Fin_duomenys!A62","v":"Pelno mokestis"},{"$f":"Fin_duomenys!C62","v":0},{"$f":"Fin_duomenys!D62","v":0},{"$f":"Fin_duomenys!E62","v":0},{"$f":"Fin_duomenys!F62","v":0},{"$f":"Fin_duomenys!G62","v":0},{"$f":"Fin_duomenys!H62","v":0}]
[{"$f":"Fin_duomenys!A63","v":"PS po finansinės veiklos, mokesčių"},{"$f":"Fin_duomenys!C63","v":0},{"$f":"Fin_duomenys!D63","v":0},{"$f":"Fin_duomenys!E63","v":0},{"$f":"Fin_duomenys!F63","v":0},{"$f":"Fin_duomenys!G63","v":0},{"$f":"Fin_duomenys!H63","v":0}]
[{"$f":"Fin_duomenys!A64","v":"Skolų dengimas ir palūkanos"},{"$f":"Fin_duomenys!C64","v":0},{"$f":"Fin_duomenys!D64","v":0},{"$f":"Fin_duomenys!E64","v":0},{"$f":"Fin_duomenys!F64","v":0},{"$f":"Fin_duomenys!G64","v":0},{"$f":"Fin_duomenys!H64","v":0}]
[{"$f":"Fin_duomenys!A65","v":"Palūkanos"},{"$f":"Fin_duomenys!C65","v":0},{"$f":"Fin_duomenys!D65","v":0},{"$f":"Fin_duomenys!E65","v":0},{"$f":"Fin_duomenys!F65","v":0},{"$f":"Fin_duomenys!G65","v":0},{"$f":"Fin_duomenys!H65","v":0}]
[{"$f":"Fin_duomenys!A66","v":"Numatyti paskolų dengimai"},{"$f":"Fin_duomenys!C66","v":0},{"$f":"Fin_duomenys!D66","v":0},{"$f":"Fin_duomenys!E66","v":0},{"$f":"Fin_duomenys!F66","v":0},{"$f":"Fin_duomenys!G66","v":0},{"$f":"Fin_duomenys!H66","v":0}]
[{"$f":"Fin_duomenys!A67","v":"PS po paskolų dengimo"},{"$f":"Fin_duomenys!C67","v":0},{"$f":"Fin_duomenys!D67","v":0},{"$f":"Fin_duomenys!E67","v":0},{"$f":"Fin_duomenys!F67","v":0},{"$f":"Fin_duomenys!G67","v":0},{"$f":"Fin_duomenys!H67","v":0}]
[{"$f":"Fin_duomenys!A68","v":"Grynosios plėtros investicijos"},{"$f":"Fin_duomenys!C68","v":0},{"$f":"Fin_duomenys!D68","v":0},{"$f":"Fin_duomenys!E68","v":0},{"$f":"Fin_duomenys!F68","v":0},{"$f":"Fin_duomenys!G68","v":0},{"$f":"Fin_duomenys!H68","v":0}]
[{"$f":"Fin_duomenys!A69","v":"Turto pardavimas"},{"$f":"Fin_duomenys!C69","v":0},{"$f":"Fin_duomenys!D69","v":0},{"$f":"Fin_duomenys!E69","v":0},{"$f":"Fin_duomenys!F69","v":0},{"$f":"Fin_duomenys!G69","v":0},{"$f":"Fin_duomenys!H69","v":0}]
[{"$f":"Fin_duomenys!A70","v":"Palaikomosios investicijos"},{"$f":"Fin_duomenys!C70","v":0},{"$f":"Fin_duomenys!D70","v":0},{"$f":"Fin_duomenys!E70","v":0},{"$f":"Fin_duomenys!F70","v":0},{"$f":"Fin_duomenys!G70","v":0},{"$f":"Fin_duomenys!H70","v":0}]
[{"$f":"Fin_duomenys!A71","v":"PS po plėtros investicijų ir turto pardavimo "},{"$f":"Fin_duomenys!C71","v":0},{"$f":"Fin_duomenys!D71","v":0},{"$f":"Fin_duomenys!E71","v":0},{"$f":"Fin_duomenys!F71","v":0},{"$f":"Fin_duomenys!G71","v":0},{"$f":"Fin_duomenys!H71","v":0}]
[{"$f":"Fin_duomenys!A72","v":"Nuosavo kapitalo pokyčiai"},{"$f":"Fin_duomenys!C72","v":0},{"$f":"Fin_duomenys!D72","v":0},{"$f":"Fin_duomenys!E72","v":0},{"$f":"Fin_duomenys!F72","v":0},{"$f":"Fin_duomenys!G72","v":0},{"$f":"Fin_duomenys!H72","v":0}]
[{"$f":"Fin_duomenys!A73","v":"PS po dividendų išmokėjimų"},{"$f":"Fin_duomenys!C73","v":0},{"$f":"Fin_duomenys!D73","v":0},{"$f":"Fin_duomenys!E73","v":0},{"$f":"Fin_duomenys!F73","v":0},{"$f":"Fin_duomenys!G73","v":0},{"$f":"Fin_duomenys!H73","v":0}]
[{"$f":"Fin_duomenys!A74","v":"Dotacija"},{"$f":"Fin_duomenys!C74","v":0},{"$f":"Fin_duomenys!D74","v":0},{"$f":"Fin_duomenys!E74","v":0},{"$f":"Fin_duomenys!F74","v":0},{"$f":"Fin_duomenys!G74","v":0},{"$f":"Fin_duomenys!H74","v":0}]
[{"$f":"Fin_duomenys!A75","v":"Kita"},{"$f":"Fin_duomenys!C75","v":16242},{"$f":"Fin_duomenys!D75","v":-334753},{"$f":"Fin_duomenys!E75","v":0},{"$f":"Fin_duomenys!F75","v":0},{"$f":"Fin_duomenys!G75","v":0},{"$f":"Fin_duomenys!H75","v":0}]
[{"$f":"Fin_duomenys!A76","v":"Pinigų pasikeitimas"},{"$f":"Fin_duomenys!C76","v":16242},{"$f":"Fin_duomenys!D76","v":-334753},{"$f":"Fin_duomenys!E76","v":0},{"$f":"Fin_duomenys!F76","v":0},{"$f":"Fin_duomenys!G76","v":0},{"$f":"Fin_duomenys!H76","v":0}]
[{"$f":"Fin_duomenys!A77","v":"Pinigai laikotarpio pabaigoje"},{"$f":"Fin_duomenys!C77","v":16242},{"$f":"Fin_duomenys!D77","v":-318511},{"$f":"Fin_duomenys!E77","v":-318511},{"$f":"Fin_duomenys!F77","v":-318511},{"$f":"Fin_duomenys!G77","v":-318511},{"$f":"Fin_duomenys!H77","v":-318511}]
[{"$f":"Fin_duomenys!A78","v":"Ar balansuojasi?"},{"$f":"Fin_duomenys!C78","v":0},{"$f":"Fin_duomenys!D78","v":0},{"$f":"Fin_duomenys!E78","v":0},{"$f":"Fin_duomenys!F78","v":0},{"$f":"Fin_duomenys!G78","v":0},{"$f":"Fin_duomenys!H78","v":0}]
[{"$f":"Fin_duomenys!A79","v":"Korekcija"},{"$f":"Fin_duomenys!C79","v":-16242},{"$f":"Fin_duomenys!D79","v":318511},{"$f":"Fin_duomenys!E79","v":318511},{"$f":"Fin_duomenys!F79","v":318511},{"$f":"Fin_duomenys!G79","v":318511},{"$f":"Fin_duomenys!H79","v":318511}]
[{"$f":"Fin_duomenys!A80","v":"RODIKLIAI"},{"$f":"B54","v":"2018 m. faktas"},{"$f":"C54","v":"2019 m. faktas"},{"$f":"D1","v":"2020 m.                 mėn. faktas"},"2020 m. prognozė","2021 m. prognozė","2022 m. prognozė"]
[{"$f":"Fin_duomenys!A81","v":"Pardavimai"},{"$f":"Fin_duomenys!C81","v":0},{"$f":"Fin_duomenys!D81","v":0},{"$f":"Fin_duomenys!E81","v":0},{"$f":"Fin_duomenys!F81","v":0},{"$f":"Fin_duomenys!G81","v":0},{"$f":"Fin_duomenys!H81","v":0}]
[{"$f":"Fin_duomenys!A82","v":"Bendras pelnas"},{"$f":"Fin_duomenys!C82","v":0},{"$f":"Fin_duomenys!D82","v":0},{"$f":"Fin_duomenys!E82","v":0},{"$f":"Fin_duomenys!F82","v":0},{"$f":"Fin_duomenys!G82","v":0},{"$f":"Fin_duomenys!H82","v":0}]
[{"$f":"Fin_duomenys!A83","v":"Tipinės veiklos pelnas"},{"$f":"Fin_duomenys!C83","v":0},{"$f":"Fin_duomenys!D83","v":0},{"$f":"Fin_duomenys!E83","v":0},{"$f":"Fin_duomenys!F83","v":0},{"$f":"Fin_duomenys!G83","v":0},{"$f":"Fin_duomenys!H83","v":0}]
[{"$f":"Fin_duomenys!A84","v":"Nusidėvėjimas"},{"$f":"Fin_duomenys!C84","v":0},{"$f":"Fin_duomenys!D84","v":0},{"$f":"Fin_duomenys!E84","v":0},{"$f":"Fin_duomenys!F84","v":0},{"$f":"Fin_duomenys!G84","v":0},{"$f":"Fin_duomenys!H84","v":0}]
[{"$f":"Fin_duomenys!A85","v":"EBITDA"},{"$f":"Fin_duomenys!C85","v":0},{"$f":"Fin_duomenys!D85","v":0},{"$f":"Fin_duomenys!E85","v":0},{"$f":"Fin_duomenys!F85","v":0},{"$f":"Fin_duomenys!G85","v":0},{"$f":"Fin_duomenys!H85","v":0}]
[{"$f":"Fin_duomenys!A86","v":"Grynasis pelnas"},{"$f":"Fin_duomenys!C86","v":0},{"$f":"Fin_duomenys!D86","v":0},{"$f":"Fin_duomenys!E86","v":0},{"$f":"Fin_duomenys!F86","v":0},{"$f":"Fin_duomenys!G86","v":0},{"$f":"Fin_duomenys!H86","v":0}]
[{"$f":"Fin_duomenys!A87","v":"Bendrojo pelno marža (%)"},{"$f":"Fin_duomenys!C87","v":{"$error":"#DIV/0!"}},{"$f":"Fin_duomenys!D87","v":{"$error":"#DIV/0!"}},{"$f":"Fin_duomenys!E87","v":{"$error":"#DIV/0!"}},{"$f":"Fin_duomenys!F87","v":{"$error":"#DIV/0!"}},{"$f":"Fin_duomenys!G87","v":{"$error":"#DIV/0!"}},{"$f":"Fin_duomenys!H87","v":{"$error":"#DIV/0!"}}]
[{"$f":"Fin_duomenys!A88","v":"EBITDA marža (%)"},{"$f":"Fin_duomenys!C88","v":{"$error":"#DIV/0!"}},{"$f":"Fin_duomenys!D88","v":{"$error":"#DIV/0!"}},{"$f":"Fin_duomenys!E88","v":{"$error":"#DIV/0!"}},{"$f":"Fin_duomenys!F88","v":{"$error":"#DIV/0!"}},{"$f":"Fin_duomenys!G88","v":{"$error":"#DIV/0!"}},{"$f":"Fin_duomenys!H88","v":{"$error":"#DIV/0!"}}]
[{"$f":"Fin_duomenys!A89","v":"Grynojo pelno marža (%)"},{"$f":"Fin_duomenys!C89","v":{"$error":"#DIV/0!"}},{"$f":"Fin_duomenys!D89","v":{"$error":"#DIV/0!"}},{"$f":"Fin_duomenys!E89","v":{"$error":"#DIV/0!"}},{"$f":"Fin_duomenys!F89","v":{"$error":"#DIV/0!"}},{"$f":"Fin_duomenys!G89","v":{"$error":"#DIV/0!"}},{"$f":"Fin_duomenys!H89","v":{"$error":"#DIV/0!"}}]
[{"$f":"Fin_duomenys!A90","v":"Einamojo likvidumo koef."},{"$f":"Fin_duomenys!C90","v":{"$error":"#DIV/0!"}},{"$f":"Fin_duomenys!D90","v":{"$error":"#DIV/0!"}},{"$f":"Fin_duomenys!E90","v":{"$error":"#DIV/0!"}},{"$f":"Fin_duomenys!F90","v":{"$error":"#DIV/0!"}},{"$f":"Fin_duomenys!G90","v":{"$error":"#DIV/0!"}},{"$f":"Fin_duomenys!H90","v":{"$error":"#DIV/0!"}}]
[{"$f":"Fin_duomenys!A91","v":"Kritinio likvidumo koef."},{"$f":"Fin_duomenys!C91","v":{"$error":"#DIV/0!"}},{"$f":"Fin_duomenys!D91","v":{"$error":"#DIV/0!"}},{"$f":"Fin_duomenys!E91","v":{"$error":"#DIV/0!"}},{"$f":"Fin_duomenys!F91","v":{"$error":"#DIV/0!"}},{"$f":"Fin_duomenys!G91","v":{"$error":"#DIV/0!"}},{"$f":"Fin_duomenys!H91","v":{"$error":"#DIV/0!"}}]
[{"$f":"Fin_duomenys!A92","v":"Svertas"},{"$f":"Fin_duomenys!C92","v":{"$error":"#DIV/0!"}},{"$f":"Fin_duomenys!D92","v":{"$error":"#DIV/0!"}},{"$f":"Fin_duomenys!E92","v":{"$error":"#DIV/0!"}},{"$f":"Fin_duomenys!F92","v":{"$error":"#DIV/0!"}},{"$f":"Fin_duomenys!G92","v":{"$error":"#DIV/0!"}},{"$f":"Fin_duomenys!H92","v":{"$error":"#DIV/0!"}}]
[{"$f":"Fin_duomenys!A93","v":"Atsargų apyvartumas dienomis"},{"$f":"Fin_duomenys!C93","v":{"$error":"#DIV/0!"}},{"$f":"Fin_duomenys!D93","v":{"$error":"#DIV/0!"}},{"$f":"Fin_duomenys!E93","v":0},{"$f":"Fin_duomenys!F93","v":{"$error":"#DIV/0!"}},{"$f":"Fin_duomenys!G93","v":{"$error":"#DIV/0!"}},{"$f":"Fin_duomenys!H93","v":{"$error":"#DIV/0!"}}]
[{"$f":"Fin_duomenys!A94","v":"Debitorių apyvartumas dienomis"},{"$f":"Fin_duomenys!C94","v":{"$error":"#DIV/0!"}},{"$f":"Fin_duomenys!D94","v":{"$error":"#DIV/0!"}},{"$f":"Fin_duomenys!E94","v":0},{"$f":"Fin_duomenys!F94","v":{"$error":"#DIV/0!"}},{"$f":"Fin_duomenys!G94","v":{"$error":"#DIV/0!"}},{"$f":"Fin_duomenys!H94","v":{"$error":"#DIV/0!"}}]
[{"$f":"Fin_duomenys!A95","v":"Kreditorių apyvartumas dienomis"},{"$f":"Fin_duomenys!C95","v":{"$error":"#DIV/0!"}},{"$f":"Fin_duomenys!D95","v":{"$error":"#DIV/0!"}},{"$f":"Fin_duomenys!E95","v":0},{"$f":"Fin_duomenys!F95","v":{"$error":"#DIV/0!"}},{"$f":"Fin_duomenys!G95","v":{"$error":"#DIV/0!"}},{"$f":"Fin_duomenys!H95","v":{"$error":"#DIV/0!"}}]
[{"$f":"Fin_duomenys!A96","v":"Apyvartinių lėšų perteklius (poreikis) dienomis"},{"$f":"Fin_duomenys!C96","v":{"$error":"#DIV/0!"}},{"$f":"Fin_duomenys!D96","v":{"$error":"#DIV/0!"}},{"$f":"Fin_duomenys!E96","v":0},{"$f":"Fin_duomenys!F96","v":{"$error":"#DIV/0!"}},{"$f":"Fin_duomenys!G96","v":{"$error":"#DIV/0!"}},{"$f":"Fin_duomenys!H96","v":{"$error":"#DIV/0!"}}]
[{"$f":"Fin_duomenys!A97","v":"Nuosavas kapitalas"},{"$f":"Fin_duomenys!C97","v":0},{"$f":"Fin_duomenys!D97","v":0},{"$f":"Fin_duomenys!E97","v":0},{"$f":"Fin_duomenys!F97","v":0},{"$f":"Fin_duomenys!G97","v":0},{"$f":"Fin_duomenys!H97","v":0}]
[{"$f":"Fin_duomenys!A98","v":"Balanso apyvarta"},{"$f":"Fin_duomenys!C98","v":0},{"$f":"Fin_duomenys!D98","v":0},{"$f":"Fin_duomenys!E98","v":0},{"$f":"Fin_duomenys!F98","v":0},{"$f":"Fin_duomenys!G98","v":0},{"$f":"Fin_duomenys!H98","v":0}]
[{"$f":"Fin_duomenys!A99","v":"Nuosavo kapitalo rodiklis"},{"$f":"Fin_duomenys!C99","v":{"$error":"#DIV/0!"}},{"$f":"Fin_duomenys!D99","v":{"$error":"#DIV/0!"}},{"$f":"Fin_duomenys!E99","v":{"$error":"#DIV/0!"}},{"$f":"Fin_duomenys!F99","v":{"$error":"#DIV/0!"}},{"$f":"Fin_duomenys!G99","v":{"$error":"#DIV/0!"}},{"$f":"Fin_duomenys!H99","v":{"$error":"#DIV/0!"}}]
[{"$f":"Fin_duomenys!A100","v":"Nuosavybės grąža (ROE)"},{"$f":"Fin_duomenys!C100","v":{"$error":"#DIV/0!"}},{"$f":"Fin_duomenys!D100","v":{"$error":"#DIV/0!"}},{"$f":"Fin_duomenys!E100","v":{"$error":"#DIV/0!"}},{"$f":"Fin_duomenys!F100","v":{"$error":"#DIV/0!"}},{"$f":"Fin_duomenys!G100","v":{"$error":"#DIV/0!"}},{"$f":"Fin_duomenys!H100","v":{"$error":"#DIV/0!"}}]
[{"$f":"Fin_duomenys!A101","v":"Turto grąža (ROA)"},{"$f":"Fin_duomenys!C101","v":{"$error":"#DIV/0!"}},{"$f":"Fin_duomenys!D101","v":{"$error":"#DIV/0!"}},{"$f":"Fin_duomenys!E101","v":{"$error":"#DIV/0!"}},{"$f":"Fin_duomenys!F101","v":{"$error":"#DIV/0!"}},{"$f":"Fin_duomenys!G101","v":{"$error":"#DIV/0!"}},{"$f":"Fin_duomenys!H101","v":{"$error":"#DIV/0!"}}]
[{"$f":"Fin_duomenys!A102","v":"Investicijų grąža (ROI)"},{"$f":"Fin_duomenys!C102","v":{"$error":"#DIV/0!"}},{"$f":"Fin_duomenys!D102","v":{"$error":"#DIV/0!"}},{"$f":"Fin_duomenys!E102","v":{"$error":"#DIV/0!"}},{"$f":"Fin_duomenys!F102","v":{"$error":"#DIV/0!"}},{"$f":"Fin_duomenys!G102","v":{"$error":"#DIV/0!"}},{"$f":"Fin_duomenys!H102","v":{"$error":"#DIV/0!"}}]
[]
[]
["GAMYBINĖ SU VP"]
[{"$f":"Gamybine!A2","v":"Kokia finansavimo nuosavomis lėšomis suma, kurią planuoja užtikrinti juridinis asmuo?"},null,null,null,{"$f":"Gamybine!B2","v":0},"EUR"]
[{"$f":"Gamybine!A3","v":"Kaip paraiškoje pagrindžiamas nuosavų lėšų šaltinis?"}]
[{"$f":"Gamybine!A4","v":0}]
[{"$f":"Gamybine!A5","v":"Kredito istorija"}]
[{"$f":"Gamybine!A6","v":"Išvados iš kredito istorijos vertinimo:"}]
[{"$f":"Gamybine!A7","v":"Ar šis juridinis asmuo turi kitų projektų/paraiškų?"},null,null,null,{"$f":"Gamybine!B7","v":0},"Taip/Ne/N/A"]
[{"$f":"Gamybine!A8","v":"Jei taip, detalizuoti:"}]
[{"$f":"Gamybine!A9","v":0}]
["Pinigų srautai",{"$f":"Gamybine!B10","v":"2018 m. faktas"},{"$f":"Gamybine!C10","v":"2019 m. faktas"},{"$f":"D1","v":"2020 m.                 mėn. faktas"},{"$f":"Gamybine!E10","v":"2020 m. prognozė"},{"$f":"Gamybine!F10","v":"2021 m. prognozė"},{"$f":"Gamybine!G10","v":"2022 m. prognozė"}]
[{"$f":"Gamybine!A11","v":"Pagrindinės veiklos pinigų srautas (metinis)"},{"$f":"Gamybine!B11","v":0},{"$f":"Gamybine!C11","v":0},{"$f":"Gamybine!D11","v":0},{"$f":"Gamybine!E11","v":0},{"$f":"Gamybine!F11","v":0},{"$f":"Gamybine!G11","v":0}]
[{"$f":"Gamybine!A14","v":"Apyvartinis kapitalas"},{"$f":"Gamybine!B14","v":0},{"$f":"Gamybine!C14","v":0},{"$f":"Gamybine!D14","v":0},{"$f":"Gamybine!E14","v":0},{"$f":"Gamybine!F14","v":0},{"$f":"Gamybine!G14","v":0}]
[{"$f":"Gamybine!A15","v":"Trumpalaikis turtas"},{"$f":"Gamybine!B15","v":0},{"$f":"Gamybine!C15","v":0},{"$f":"Gamybine!D15","v":0},{"$f":"Gamybine!E15","v":0},{"$f":"Gamybine!F15","v":0},{"$f":"Gamybine!G15","v":0}]
[{"$f":"Gamybine!A16","v":"Trumpalaikiai įsipareigojimai"},{"$f":"Gamybine!B16","v":0},{"$f":"Gamybine!C16","v":0},{"$f":"Gamybine!D16","v":0},{"$f":"Gamybine!E16","v":0},{"$f":"Gamybine!F16","v":0},{"$f":"Gamybine!G16","v":0}]
[{"$f":"Gamybine!A19","v":"Bendrojo trumpalaikio mokumo koeficientas"},{"$f":"Gamybine!B19","v":{"$error":"#DIV/0!"}},{"$f":"Gamybine!C19","v":{"$error":"#DIV/0!"}},{"$f":"Gamybine!D19","v":{"$error":"#DIV/0!"}},{"$f":"Gamybine!E19","v":{"$error":"#DIV/0!"}},{"$f":"Gamybine!F19","v":{"$error":"#DIV/0!"}},{"$f":"Gamybine!G19","v":{"$error":"#DIV/0!"}}]
[{"$f":"Gamybine!A22","v":"Greitojo trumpalaikio mokumo koeficientas"},{"$f":"Gamybine!B22","v":{"$error":"#DIV/0!"}},{"$f":"Gamybine!C22","v":{"$error":"#DIV/0!"}},{"$f":"Gamybine!D22","v":{"$error":"#DIV/0!"}},{"$f":"Gamybine!E22","v":{"$error":"#DIV/0!"}},{"$f":"Gamybine!F22","v":{"$error":"#DIV/0!"}},{"$f":"Gamybine!G22","v":{"$error":"#DIV/0!"}}]
[{"$f":"Gamybine!A23","v":"Atsargos"},{"$f":"Gamybine!B23","v":0},{"$f":"Gamybine!C23","v":0},{"$f":"Gamybine!D23","v":0},{"$f":"Gamybine!E23","v":0},{"$f":"Gamybine!F23","v":0},{"$f":"Gamybine!G23","v":0}]
[{"$f":"Gamybine!A25","v":"Įsiskolinimo lygis"},{"$f":"B111","v":"2018 m. faktas"},{"$f":"C111","v":"2019 m. faktas"},{"$f":"D1","v":"2020 m.                 mėn. faktas"},"2020 m. prognozė","2021 m. prognozė","2022 m. prognozė"]
[{"$f":"Gamybine!A26","v":"Bendrasis skolos koeficientas"},{"$f":"Gamybine!B26","v":{"$error":"#DIV/0!"}},{"$f":"Gamybine!C26","v":{"$error":"#DIV/0!"}},{"$f":"Gamybine!D26","v":{"$error":"#DIV/0!"}},{"$f":"Gamybine!E26","v":{"$error":"#DIV/0!"}},{"$f":"Gamybine!F26","v":{"$error":"#DIV/0!"}},{"$f":"Gamybine!G26","v":{"$error":"#DIV/0!"}}]
[{"$f":"Gamybine!A27","v":"Visi įsipareigojimai"},{"$f":"Gamybine!B27","v":0},{"$f":"Gamybine!C27","v":0},{"$f":"Gamybine!D27","v":0},{"$f":"Gamybine!E27","v":0},{"$f":"Gamybine!F27","v":0},{"$f":"Gamybine!G27","v":0}]
[{"$f":"Gamybine!A28","v":"Visas turtas"},{"$f":"Gamybine!B28","v":0},{"$f":"Gamybine!C28","v":0},{"$f":"Gamybine!D28","v":0},{"$f":"Gamybine!E28","v":0},{"$f":"Gamybine!F28","v":0},{"$f":"Gamybine!G28","v":0}]
[{"$f":"Gamybine!A31","v":"Palūkanų padengimo koeficientas"},{"$f":"Gamybine!B31","v":{"$error":"#DIV/0!"}},{"$f":"Gamybine!C31","v":{"$error":"#DIV/0!"}},{"$f":"Gamybine!D31","v":{"$error":"#DIV/0!"}},{"$f":"Gamybine!E31","v":{"$error":"#DIV/0!"}},{"$f":"Gamybine!F31","v":{"$error":"#DIV/0!"}},{"$f":"Gamybine!G31","v":{"$error":"#DIV/0!"}}]
[{"$f":"Gamybine!A32","v":"Veiklos pelnas (EBIT)"},{"$f":"Gamybine!B32","v":0},{"$f":"Gamybine!C32","v":0},{"$f":"Gamybine!D32","v":0},{"$f":"Gamybine!E32","v":0},{"$f":"Gamybine!F32","v":0},{"$f":"Gamybine!G32","v":0}]
[{"$f":"Gamybine!A33","v":"Palūkanų sąnaudos"},{"$f":"Gamybine!B33","v":0},{"$f":"Gamybine!C33","v":0},{"$f":"Gamybine!D33","v":0},{"$f":"Gamybine!E33","v":0},{"$f":"Gamybine!F33","v":0},{"$f":"Gamybine!G33","v":0}]
[{"$f":"Gamybine!A36","v":"Bankroto rizika pagal Altman Z-score"},{"$f":"Gamybine!B36","v":{"$error":"#DIV/0!"}},{"$f":"Gamybine!C36","v":{"$error":"#DIV/0!"}},{"$f":"Gamybine!D36","v":{"$error":"#DIV/0!"}},{"$f":"Gamybine!E36","v":{"$error":"#DIV/0!"}},{"$f":"Gamybine!F36","v":{"$error":"#DIV/0!"}},{"$f":"Gamybine!G36","v":{"$error":"#DIV/0!"}}]
[{"$f":"Gamybine!A37","v":"Nepaskirstytasis pelnas"},{"$f":"Gamybine!B37","v":0},{"$f":"Gamybine!C37","v":0},{"$f":"Gamybine!D37","v":0},{"$f":"Gamybine!E37","v":0},{"$f":"Gamybine!F37","v":0},{"$f":"Gamybine!G37","v":0}]
[{"$f":"Gamybine!A38","v":"Nuosavas kapitalas"},{"$f":"Gamybine!B38","v":0},{"$f":"Gamybine!C38","v":0},{"$f":"Gamybine!D38","v":0},{"$f":"Gamybine!E38","v":0},{"$f":"Gamybine!F38","v":0},{"$f":"Gamybine!G38","v":0}]
[{"$f":"Gamybine!A39","v":"Pardavimų pajamos"},{"$f":"Gamybine!B39","v":0},{"$f":"Gamybine!C39","v":0},{"$f":"Gamybine!D39","v":0},{"$f":"Gamybine!E39","v":0},{"$f":"Gamybine!F39","v":0},{"$f":"Gamybine!G39","v":0}]
["Turtas",{"$f":"B119","v":"2018 m. faktas"},{"$f":"C119","v":"2019 m. faktas"},{"$f":"D1","v":"2020 m.                 mėn. faktas"},"2020 m. prognozė","2021 m. prognozė","2022 m. prognozė"]
[{"$f":"Gamybine!A44","v":"Piniginis turtas (near-cash assets)"},{"$f":"Gamybine!B44","v":0},{"$f":"Gamybine!C44","v":0},{"$f":"Gamybine!D44","v":0},{"$f":"Gamybine!E44","v":0},{"$f":"Gamybine!F44","v":0},{"$f":"Gamybine!G44","v":0}]
[{"$f":"Gamybine!A45","v":"Pinigai ir jų ekvivalentai"},{"$f":"Gamybine!B45","v":0},{"$f":"Gamybine!C45","v":0},{"$f":"Gamybine!D45","v":0},{"$f":"Gamybine!E45","v":0},{"$f":"Gamybine!F45","v":0},{"$f":"Gamybine!G45","v":0}]
[{"$f":"Gamybine!A46","v":"Pirkėjų skolos"},{"$f":"Gamybine!B46","v":0},{"$f":"Gamybine!C46","v":0},{"$f":"Gamybine!D46","v":0},{"$f":"Gamybine!E46","v":0},{"$f":"Gamybine!F46","v":0},{"$f":"Gamybine!G46","v":0}]
[{"$f":"Gamybine!A47","v":"Išvados iš kreditorių ir debitorių sąrašo:"}]
[{"$f":"Gamybine!A48","v":0}]
[]
[]
[{"$f":"Gamybine!A49","v":"Specifika"},{"$f":"B130","v":"2018 m. faktas"},{"$f":"C130","v":"2019 m. faktas"},{"$f":"D1","v":"2020 m.                 mėn. faktas"},"2020 m. prognozė","2021 m. prognozė","2022 m. prognozė"]
[{"$f":"Gamybine!A50","v":"Ar finansavimo šaltinis - prognozuojami juridinio asmens pinigų srautai?"},null,null,null,{"$f":"Gamybine!B50","v":0},"Taip/Ne"]
[{"$f":"Gamybine!A51","v":"Prognozuojamas įmonės (pardavimų) augimo tempas (proc.)"},{"$f":"Gamybine!B51","v":{"$error":"#DIV/0!"}},{"$f":"Gamybine!C51","v":{"$error":"#DIV/0!"}},{"$f":"Gamybine!D51","v":0},{"$f":"Gamybine!E51","v":{"$error":"#DIV/0!"}},{"$f":"Gamybine!F51","v":{"$error":"#DIV/0!"}},{"$f":"Gamybine!G51","v":{"$error":"#DIV/0!"}}]
[{"$f":"Gamybine!A52","v":"Kuo grindžiamos pardavimų prognozės? Ar verslo plane tinkamai paaiškinta, kodėl planuojami būtent tokie pardavimai?"}]
[{"$f":"Gamybine!A53","v":0}]
[{"$f":"Gamybine!A54","v":"Vidinio augimo norma (proc.)"},{"$f":"Gamybine!B54","v":{"$error":"#DIV/0!"}},{"$f":"Gamybine!C54","v":{"$error":"#DIV/0!"}},{"$f":"Gamybine!D54","v":{"$error":"#DIV/0!"}},{"$f":"Gamybine!E54","v":{"$error":"#DIV/0!"}},{"$f":"Gamybine!F54","v":{"$error":"#DIV/0!"}},{"$f":"Gamybine!G54","v":{"$error":"#DIV/0!"}}]
[{"$f":"Gamybine!A55","v":"Visas turtas"},{"$f":"Gamybine!B55","v":0},{"$f":"Gamybine!C55","v":0},{"$f":"Gamybine!D55","v":0},{"$f":"Gamybine!E55","v":0},{"$f":"Gamybine!F55","v":0},{"$f":"Gamybine!G55","v":0}]
[{"$f":"Gamybine!A56","v":"Grynasis pelnas"},{"$f":"Gamybine!B56","v":0},{"$f":"Gamybine!C56","v":0},{"$f":"Gamybine!D56","v":0},{"$f":"Gamybine!E56","v":0},{"$f":"Gamybine!F56","v":0},{"$f":"Gamybine!G56","v":0}]
[{"$f":"Gamybine!A57","v":"Ar įmonės prognozuojamas pardavimų augimas viršija vidinio augimo normą?"},null,null,null,{"$f":"Gamybine!B57","v":0},"Taip/ne"]
[{"$f":"Gamybine!A58","v":"Jei taip, ar detalizuotas išorinio finansavimo poreikis ir jo šaltinis?"}]
[{"$f":"Gamybine!A59","v":0}]
[{"$f":"Gamybine!A60","v":"Tvari augimo norma (proc.)"},{"$f":"Gamybine!B60","v":{"$error":"#DIV/0!"}},{"$f":"Gamybine!C60","v":{"$error":"#DIV/0!"}},{"$f":"Gamybine!D60","v":{"$error":"#DIV/0!"}},{"$f":"Gamybine!E60","v":{"$error":"#DIV/0!"}},{"$f":"Gamybine!F60","v":{"$error":"#DIV/0!"}},{"$f":"Gamybine!G60","v":{"$error":"#DIV/0!"}}]
[{"$f":"Gamybine!A61","v":"Nuosavas kapitalas"},{"$f":"Gamybine!B61","v":0},{"$f":"Gamybine!C61","v":0},{"$f":"Gamybine!D61","v":0},{"$f":"Gamybine!E61","v":0},{"$f":"Gamybine!F61","v":0},{"$f":"Gamybine!G61","v":0}]
[{"$f":"Gamybine!A62","v":"Ar įmonės prognozuojamas pardavimų augimas viršija tvarią augimo normą?"},null,null,null,{"$f":"Gamybine!B62","v":0},"Taip/Ne"]
[{"$f":"Gamybine!A63","v":"Jei taip, ar detalizuotas papildomo išorinio finansavimo poreikis ir jo šaltiniai?"}]
[{"$f":"Gamybine!A64","v":0}]

{"sheet":"Gamybine_be_VP","index":7,"n_rows":47,"n_cols":5,"rows_kept":47,"cut":false,"hidden":true,"merged":[[0,0,0,2]]}
["GAMYBINĖ BE VP"]
["Kokia finansavimo nuosavomis lėšomis suma, kurią planuoja užtikrinti juridinis asmuo?",null,"EUR"]
["Kaip paraiškoje pagrindžiamas nuosavų lėšų šaltinis?"]
[]
["Kredito istorija"]
["Išvados iš kredito istorijos vertinimo:"]
["Ar šis juridinis asmuo turi kitų projektų/paraiškų LVPA?",null,"Klasifikatotorius"]
["Jei taip, detalizuoti:"]
[]
["Pinigų srautai (jei pateikta ataskaita)",{"$f":"Fin_duomenys!C2","v":"2018 m. faktas"},{"$f":"Fin_duomenys!D2","v":"2019 m. faktas"},{"$f":"+(Navigacija!F2)&\" m.                  \" &Navigacija!H2&\" mėn.\"&\" faktas\"","v":"2020 m.                   mėn. faktas"}]
["Pagrindinės veiklos pinigų srautas (metinis)",{"$f":"Fin_duomenys!C60","v":0},{"$f":"Fin_duomenys!D60","v":0},{"$f":"Fin_duomenys!E60","v":0}]
["Teigiamas dydis reiškia, kad įmonė iš savo pagrindinės veiklos uždirba pinigų."]
["Jei šis dydis neigiamas arba mažėja, reikia analizuoti, kodėl."]
["Apyvartinis kapitalas",{"$f":"B15-B16","v":0},{"$f":"C15-C16","v":0},0]
["Trumpalaikis turtas",{"$f":"Fin_duomenys!C22","v":0},{"$f":"Fin_duomenys!D22","v":0},{"$f":"Fin_duomenys!E22","v":0}]
["Trumpalaikiai įsipareigojimai",{"$f":"Fin_duomenys!C42","v":0},{"$f":"Fin_duomenys!D42","v":0},{"$f":"Fin_duomenys!E42","v":0}]
["Jei šis dydis neigiamas, įmonei gali kilti problemų vykdant trumpalaikius įsipareigojimus."]
["Jei šis dydis mažėja, reikia analizuoti, kodėl."]
["Bendrojo trumpalaikio mokumo koeficientas",{"$f":"B15/B16","v":{"$error":"#DIV/0!"}},{"$f":"C15/C16","v":{"$error":"#DIV/0!"}},{"$f":"D15/D16","v":{"$error":"#DIV/0!"}},"<1,2 dega raudonai"]
["Rekomenduojamas rodiklio intervalas yra [1,2 ; 2]."]
["Jei šis rodiklis mažesnis nei 1,2 - įmonei gali kilti problemų vykdant trumpalaikius įsipareigojimus."]
["Greitojo trumpalaikio mokumo koeficientas",{"$f":"(B15-B23)/B16","v":{"$error":"#DIV/0!"}},{"$f":"(C15-C23)/C16","v":{"$error":"#DIV/0!"}},{"$f":"(D15-D23)/D16","v":{"$error":"#DIV/0!"}},"<1 dega raudonai"]
["Atsargos",{"$f":"Fin_duomenys!C23","v":0},{"$f":"Fin_duomenys!D23","v":0},{"$f":"Fin_duomenys!E23","v":0}]
["Gamybinėms įmonėms šis rodiklis turėtų būti ne mažesnis nei 1."]
["Įsiskolinimo lygis",{"$f":"B10","v":"2018 m. faktas"},{"$f":"C10","v":"2019 m. faktas"},{"$f":"D10","v":"2020 m.                   mėn. faktas"}]
["Bendrasis skolos koeficientas",{"$f":"B27/B28","v":{"$error":"#DIV/0!"}},{"$f":"C27/C28","v":{"$error":"#DIV/0!"}},{"$f":"D27/D28","v":{"$error":"#DIV/0!"}},">0,6 dega raudonai"]
["Visi įsipareigojimai",{"$f":"Fin_duomenys!C40","v":0},{"$f":"Fin_duomenys!D40","v":0},{"$f":"Fin_duomenys!E40","v":0}]
["Visas turtas",{"$f":"Fin_duomenys!C31","v":0},{"$f":"Fin_duomenys!D31","v":0},{"$f":"Fin_duomenys!E31","v":0}]
["Parodo, kokia turto dalis finansuojama skolintu kapitalu (įsipareigojimais)."]
["Lyginti su sektoriaus ar pramonės šakos rodikliais - ar ne per didelis įsiskolinimas"]
["Palūkanų padengimo koeficientas",{"$f":"B32/B33","v":{"$error":"#DIV/0!"}},{"$f":"C32/C33","v":{"$error":"#DIV/0!"}},{"$f":"D32/D33","v":{"$error":"#DIV/0!"}},"<1,5 dega raudonai"]
["Veiklos pelnas (EBIT)",{"$f":"Fin_duomenys!C9","v":0},{"$f":"Fin_duomenys!D9","v":0},{"$f":"Fin_duomenys!E9","v":0}]
["Palūkanų sąnaudos",{"$f":"Fin_duomenys!C12","v":0},{"$f":"Fin_duomenys!D12","v":0},{"$f":"Fin_duomenys!E12","v":0}]
["Rekomenduojama, kad šis rodiklis būtų ne mažesnis nei 2,5"]
["Jei rodiklis yra 1,5 ar mažesnis, įmonei gali kilti sunkumų mokėti palūkanas"]
["Bankroto rizika pagal Altman Z-score",{"$f":"0.717*(B14/B28)+0.847*(B37/B28)+3.107*(B32/B28)+0.42*(B38/B27)+0.998*(B39/B28)","v":{"$error":"#DIV/0!"}},{"$f":"0.717*(C14/C28)+0.847*(C37/C28)+3.107*(C32/C28)+0.42*(C38/C27)+0.998*(C39/C28)","v":{"$error":"#DIV/0!"}},{"$f":"0.717*(D14/D28)+0.847*(D37/D28)+3.107*(D32/D28)+0.42*(D38/D27)+0.998*(D39/D28)","v":{"$error":"#DIV/0!"}},"<2,9 dega raudonai"]
["Nepaskirstytasis pelnas",{"$f":"Fin_duomenys!C37","v":0},{"$f":"Fin_duomenys!D37","v":0},{"$f":"Fin_duomenys!E37","v":0}]
["Nuosavas kapitalas",{"$f":"Fin_duomenys!C32","v":0},{"$f":"Fin_duomenys!D32","v":0},{"$f":"Fin_duomenys!E32","v":0}]
["Pardavimų pajamos",{"$f":"Fin_duomenys!C4","v":0},{"$f":"Fin_duomenys!D4","v":0},{"$f":"Fin_duomenys!E4","v":0}]
["Jei Z-score yra mažiau nei 1,23 - gresia bankrotas"]
["Jei Z-score yra tarp 1,23 ir 2,9 - gali grėsti bankrotas"]
["Jei Z-score yra virš 2,9 - finansiškai stabili įmonė"]
["Turtas",{"$f":"B25","v":"2018 m. faktas"},{"$f":"C25","v":"2019 m. faktas"},{"$f":"D10","v":"2020 m.                   mėn. faktas"}]
["Piniginis turtas (near-cash assets)",{"$f":"B45+B46","v":0},{"$f":"C45+C46","v":0},0]
["Pinigai ir jų ekvivalentai",{"$f":"Fin_duomenys!C29","v":0},{"$f":"Fin_duomenys!D29","v":0},{"$f":"Fin_duomenys!E29","v":0}]
["Pirkėjų skolos",{"$f":"Fin_duomenys!C25","v":0},{"$f":"Fin_duomenys!D25","v":0},{"$f":"Fin_duomenys!E25","v":0}]
["Išvados iš kreditorių ir debitorių sąrašo:"]

{"sheet":"SP_Gamybine_be_VP","index":8,"n_rows":136,"n_cols":6,"rows_kept":136,"cut":false,"hidden":true,"merged":[[107,0,107,3],[108,0,108,3],[109,0,109,5],[110,0,110,5],[135,0,135,5],[102,0,102,5],[103,0,103,3],[104,0,104,5],[105,0,105,5],[106,0,106,3]]}
["PELNO - NUOSTOLIŲ ATASKAITA",{"$f":"Fin_duomenys!C2","v":"2018 m. faktas"},{"$f":"Fin_duomenys!D2","v":"2019 m. faktas"},{"$f":"+(Navigacija!F2)&\" m.                  \" &Navigacija!H2&\" mėn.\"&\" faktas\"","v":"2020 m.                   mėn. faktas"}]
[{"$f":"Fin_duomenys!A4","v":"Pardavimo pajamos"},{"$f":"Fin_duomenys!C4","v":0},{"$f":"Fin_duomenys!D4","v":0},{"$f":"Fin_duomenys!E4","v":0}]
[{"$f":"Fin_duomenys!A5","v":"Pardavimo savikaina"},{"$f":"Fin_duomenys!C5","v":0},{"$f":"Fin_duomenys!D5","v":0},{"$f":"Fin_duomenys!E5","v":0}]
[{"$f":"Fin_duomenys!A6","v":"BENDRAS PELNAS (NUOSTOLIS)"},{"$f":"Fin_duomenys!C6","v":0},{"$f":"Fin_duomenys!D6","v":0},{"$f":"Fin_duomenys!E6","v":0}]
[{"$f":"Fin_duomenys!A7","v":"Pardavimo sąnaudos"},{"$f":"Fin_duomenys!C7","v":0},{"$f":"Fin_duomenys!D7","v":0},{"$f":"Fin_duomenys!E7","v":0}]
[{"$f":"Fin_duomenys!A8","v":"Bendrosios ir administracinės sąnaudos"},{"$f":"Fin_duomenys!C8","v":0},{"$f":"Fin_duomenys!D8","v":0},{"$f":"Fin_duomenys!E8","v":0}]
[{"$f":"Fin_duomenys!A9","v":"TIPINĖS VEIKLOS PELNAS (NUOSTOLIS)"},{"$f":"Fin_duomenys!C9","v":0},{"$f":"Fin_duomenys!D9","v":0},{"$f":"Fin_duomenys!E9","v":0}]
[{"$f":"Fin_duomenys!A10","v":"Kitos veiklos rezultatas"},{"$f":"Fin_duomenys!C10","v":0},{"$f":"Fin_duomenys!D10","v":0},{"$f":"Fin_duomenys!E10","v":0}]
[{"$f":"Fin_duomenys!A11","v":"Finansinės ir investicinės veiklos pajamos"},{"$f":"Fin_duomenys!C11","v":0},{"$f":"Fin_duomenys!D11","v":0},{"$f":"Fin_duomenys!E11","v":0}]
[{"$f":"Fin_duomenys!A12","v":"Finansinės ir investicinės veiklos sąnaudos"},{"$f":"Fin_duomenys!C12","v":0},{"$f":"Fin_duomenys!D12","v":0},{"$f":"Fin_duomenys!E12","v":0}]
[{"$f":"Fin_duomenys!A13","v":"PELNAS (NUOSTOLIAI) PRIEŠ APMOKESTINIMĄ"},{"$f":"Fin_duomenys!C13","v":0},{"$f":"Fin_duomenys!D13","v":0},{"$f":"Fin_duomenys!E13","v":0}]
[{"$f":"Fin_duomenys!A14","v":"Pelno mokestis"},{"$f":"Fin_duomenys!C14","v":0},{"$f":"Fin_duomenys!D14","v":0},{"$f":"Fin_duomenys!E14","v":0}]
[{"$f":"Fin_duomenys!A15","v":"GRYNASIS PELNAS (NUOSTOLIAI)"},{"$f":"Fin_duomenys!C15","v":0},{"$f":"Fin_duomenys!D15","v":0},{"$f":"Fin_duomenys!E15","v":0}]
[{"$f":"Fin_duomenys!A16","v":"BALANSAS"},{"$f":"B1","v":"2018 m. faktas"},{"$f":"C1","v":"2019 m. faktas"},{"$f":"D1","v":"2020 m.                   mėn. faktas"}]
[{"$f":"Fin_duomenys!A17","v":"ILGALAIKIS TURTAS"},{"$f":"Fin_duomenys!C17","v":0},{"$f":"Fin_duomenys!D17","v":0},{"$f":"Fin_duomenys!E17","v":0}]
[{"$f":"Fin_duomenys!A18","v":"NEMATERIALUSIS TURTAS"},{"$f":"Fin_duomenys!C18","v":0},{"$f":"Fin_duomenys!D18","v":0},{"$f":"Fin_duomenys!E18","v":0}]
[{"$f":"Fin_duomenys!A19","v":"MATERIALUSIS TURTAS"},{"$f":"Fin_duomenys!C19","v":0},{"$f":"Fin_duomenys!D19","v":0},{"$f":"Fin_duomenys!E19","v":0}]
[{"$f":"Fin_duomenys!A20","v":"FINANSINIS TURTAS"},{"$f":"Fin_duomenys!C20","v":0},{"$f":"Fin_duomenys!D20","v":0},{"$f":"Fin_duomenys!E20","v":0}]
[{"$f":"Fin_duomenys!A21","v":"KITAS ILGALAIKIS TURTAS"},{"$f":"Fin_duomenys!C21","v":0},{"$f":"Fin_duomenys!D21","v":0},{"$f":"Fin_duomenys!E21","v":0}]
[{"$f":"Fin_duomenys!A22","v":"TRUMPALAIKIS TURTAS"},{"$f":"Fin_duomenys!C22","v":0},{"$f":"Fin_duomenys!D22","v":0},{"$f":"Fin_duomenys!E22","v":0}]
[{"$f":"Fin_duomenys!A23","v":"ATSARGOS"},{"$f":"Fin_duomenys!C23","v":0},{"$f":"Fin_duomenys!D23","v":0},{"$f":"Fin_duomenys!E23","v":0}]
[{"$f":"Fin_duomenys!A24","v":"PER VIENERIUS METUS GAUTINOS SUMOS"},{"$f":"Fin_duomenys!C24","v":0},{"$f":"Fin_duomenys!D24","v":0},{"$f":"Fin_duomenys!E24","v":0}]
[{"$f":"Fin_duomenys!A25","v":"Pirkėjų įsiskolinimas"},{"$f":"Fin_duomenys!C25","v":0},{"$f":"Fin_duomenys!D25","v":0},{"$f":"Fin_duomenys!E25","v":0}]
[{"$f":"Fin_duomenys!A26","v":"Dukterinių ir asocijuotų įmonių skolos"},{"$f":"Fin_duomenys!C26","v":0},{"$f":"Fin_duomenys!D26","v":0},{"$f":"Fin_duomenys!E26","v":0}]
[{"$f":"Fin_duomenys!A27","v":"Kitos gautinos sumos"},{"$f":"Fin_duomenys!C27","v":0},{"$f":"Fin_duomenys!D27","v":0},{"$f":"Fin_duomenys!E27","v":0}]
[{"$f":"Fin_duomenys!A28","v":"TRUMPALAIKĖS INVESTICIJOS"},{"$f":"Fin_duomenys!C28","v":0},{"$f":"Fin_duomenys!D28","v":0},{"$f":"Fin_duomenys!E28","v":0}]
[{"$f":"Fin_duomenys!A29","v":"PINIGAI IR PINIGŲ EKVIVALENTAI"},{"$f":"Fin_duomenys!C29","v":0},{"$f":"Fin_duomenys!D29","v":0},{"$f":"Fin_duomenys!E29","v":0}]
[{"$f":"Fin_duomenys!A30","v":"ATEINANČIŲ LAIKOTARPIŲ SĄNAUDOS IR SUKAUPTOS PAJAMOS"},{"$f":"Fin_duomenys!C30","v":0},{"$f":"Fin_duomenys!D30","v":0},{"$f":"Fin_duomenys!E30","v":0}]
[{"$f":"Fin_duomenys!A31","v":"TURTO IŠ VISO:"},{"$f":"Fin_duomenys!C31","v":0},{"$f":"Fin_duomenys!D31","v":0},{"$f":"Fin_duomenys!E31","v":0}]
[{"$f":"Fin_duomenys!A32","v":"NUOSAVAS KAPITALAS"},{"$f":"Fin_duomenys!C32","v":0},{"$f":"Fin_duomenys!D32","v":0},{"$f":"Fin_duomenys!E32","v":0}]
[{"$f":"Fin_duomenys!A33","v":"KAPITALAS"},{"$f":"Fin_duomenys!C33","v":0},{"$f":"Fin_duomenys!D33","v":0},{"$f":"Fin_duomenys!E33","v":0}]
[{"$f":"Fin_duomenys!A34","v":"AKCIJŲ PRIEDAI"},{"$f":"Fin_duomenys!C34","v":0},{"$f":"Fin_duomenys!D34","v":0},{"$f":"Fin_duomenys!E34","v":0}]
[{"$f":"Fin_duomenys!A35","v":"PERKAINOJIMO REZERVAS (REZULTATAI)"},{"$f":"Fin_duomenys!C35","v":0},{"$f":"Fin_duomenys!D35","v":0},{"$f":"Fin_duomenys!E35","v":0}]
[{"$f":"Fin_duomenys!A36","v":"REZERVAI"},{"$f":"Fin_duomenys!C36","v":0},{"$f":"Fin_duomenys!D36","v":0},{"$f":"Fin_duomenys!E36","v":0}]
[{"$f":"Fin_duomenys!A37","v":"NEPASKIRSTYTASIS PELNAS (NUOSTOLIAI)"},{"$f":"Fin_duomenys!C37","v":0},{"$f":"Fin_duomenys!D37","v":0},{"$f":"Fin_duomenys!E37","v":0}]
[{"$f":"Fin_duomenys!A38","v":"DOTACIJOS, SUBSIDIJOS"},{"$f":"Fin_duomenys!C38","v":0},{"$f":"Fin_duomenys!D38","v":0},{"$f":"Fin_duomenys!E38","v":0}]
[{"$f":"Fin_duomenys!A39","v":"ATIDĖJINIAI"},{"$f":"Fin_duomenys!C39","v":0},{"$f":"Fin_duomenys!D39","v":0},{"$f":"Fin_duomenys!E39","v":0}]
[{"$f":"Fin_duomenys!A40","v":"MOKĖTINOS SUMOS IR ĮSIPAREIGOJIMAI"},{"$f":"Fin_duomenys!C40","v":0},{"$f":"Fin_duomenys!D40","v":0},{"$f":"Fin_duomenys!E40","v":0}]
[{"$f":"Fin_duomenys!A41","v":"PO VIENERIŲ METŲ MOKĖTINOS SUMOS IR ILGALAIKIAI ĮSISPAREIGOJIMAI"},{"$f":"Fin_duomenys!C41","v":0},{"$f":"Fin_duomenys!D41","v":0},{"$f":"Fin_duomenys!E41","v":0}]
[{"$f":"Fin_duomenys!A42","v":"PER VIENERIUS METUS MOKĖTINOS SUMOS IR TRUMPALAIKIAI ĮSIPAREIGOJIMAI"},{"$f":"Fin_duomenys!C42","v":0},{"$f":"Fin_duomenys!D42","v":0},{"$f":"Fin_duomenys!E42","v":0}]
[{"$f":"Fin_duomenys!A43","v":"Skoliniai įsipareigojimai"},{"$f":"Fin_duomenys!C43","v":0},{"$f":"Fin_duomenys!D43","v":0},{"$f":"Fin_duomenys!E43","v":0}]
[{"$f":"Fin_duomenys!A44","v":"Skolos kredito įstaigoms"},{"$f":"Fin_duomenys!C44","v":0},{"$f":"Fin_duomenys!D44","v":0},{"$f":"Fin_duomenys!E44","v":0}]
[{"$f":"Fin_duomenys!A45","v":"Gauti avansai"},{"$f":"Fin_duomenys!C45","v":0},{"$f":"Fin_duomenys!D45","v":0},{"$f":"Fin_duomenys!E45","v":0}]
[{"$f":"Fin_duomenys!A46","v":"Skolos tiekėjams"},{"$f":"Fin_duomenys!C46","v":0},{"$f":"Fin_duomenys!D46","v":0},{"$f":"Fin_duomenys!E46","v":0}]
[{"$f":"Fin_duomenys!A47","v":"Pagal vekselius ir čekius mokėtinos sumos"},{"$f":"Fin_duomenys!C47","v":0},{"$f":"Fin_duomenys!D47","v":0},{"$f":"Fin_duomenys!E47","v":0}]
[{"$f":"Fin_duomenys!A48","v":"Įmonių grupės įmonėms mokėtinos sumos"},{"$f":"Fin_duomenys!C48","v":0},{"$f":"Fin_duomenys!D48","v":0},{"$f":"Fin_duomenys!E48","v":0}]
[{"$f":"Fin_duomenys!A49","v":"Asocijuotosioms įmonėms mokėtinos sumos"},{"$f":"Fin_duomenys!C49","v":0},{"$f":"Fin_duomenys!D49","v":0},{"$f":"Fin_duomenys!E49","v":0}]
[{"$f":"Fin_duomenys!A50","v":"Pelno mokesčio įsipareigojimai"},{"$f":"Fin_duomenys!C50","v":0},{"$f":"Fin_duomenys!D50","v":0},{"$f":"Fin_duomenys!E50","v":0}]
[{"$f":"Fin_duomenys!A51","v":"Su darbo santykiais susiję įsipareigojimai"},{"$f":"Fin_duomenys!C51","v":0},{"$f":"Fin_duomenys!D51","v":0},{"$f":"Fin_duomenys!E51","v":0}]
[{"$f":"Fin_duomenys!A52","v":"Kitos mokėtinos sumos ir trumpalaikiai įsipareigojimai"},{"$f":"Fin_duomenys!C52","v":0},{"$f":"Fin_duomenys!D52","v":0},{"$f":"Fin_duomenys!E52","v":0}]
[{"$f":"Fin_duomenys!A53","v":"SUKAUPTOS SĄNAUDOS ATEINANČIŲ LAIKOTARPIŲ PAJAMOS"},{"$f":"Fin_duomenys!C53","v":0},{"$f":"Fin_duomenys!D53","v":0},{"$f":"Fin_duomenys!E53","v":0}]
[{"$f":"Fin_duomenys!A54","v":"NUOSAVO KAPITALO IR ĮSIPAREIGOJIMŲ IŠ VISO:"},{"$f":"Fin_duomenys!C54","v":0},{"$f":"Fin_duomenys!D54","v":0},{"$f":"Fin_duomenys!E54","v":0}]
[{"$f":"Fin_duomenys!A55","v":"Ar balansuojasi?"},{"$f":"Fin_duomenys!C55","v":"+"},{"$f":"Fin_duomenys!D55","v":"+"},{"$f":"Fin_duomenys!E55","v":"+"}]
["PINIGŲ SRAUTAS",{"$f":"B14","v":"2018 m. faktas"},{"$f":"C14","v":"2019 m. faktas"},{"$f":"D1","v":"2020 m.                   mėn. faktas"}]
[{"$f":"Fin_duomenys!A58","v":"EBITDA"},{"$f":"Fin_duomenys!C58","v":0},{"$f":"Fin_duomenys!D58","v":0},{"$f":"Fin_duomenys!E58","v":0}]
[{"$f":"Fin_duomenys!A59","v":"Apyvartinio kapitalo pokytis "},{"$f":"Fin_duomenys!C59","v":0},{"$f":"Fin_duomenys!D59","v":0},{"$f":"Fin_duomenys!E59","v":0}]
[{"$f":"Fin_duomenys!A60","v":"PS iš veiklos"},{"$f":"Fin_duomenys!C60","v":0},{"$f":"Fin_duomenys!D60","v":0},{"$f":"Fin_duomenys!E60","v":0}]
[{"$f":"Fin_duomenys!A61","v":"Finansinės veiklos rezultatas "},{"$f":"Fin_duomenys!C61","v":0},{"$f":"Fin_duomenys!D61","v":0},{"$f":"Fin_duomenys!E61","v":0}]
[{"$f":"Fin_duomenys!A62","v":"Pelno mokestis"},{"$f":"Fin_duomenys!C62","v":0},{"$f":"Fin_duomenys!D62","v":0},{"$f":"Fin_duomenys!E62","v":0}]
[{"$f":"Fin_duomenys!A63","v":"PS po finansinės veiklos, mokesčių"},{"$f":"Fin_duomenys!C63","v":0},{"$f":"Fin_duomenys!D63","v":0},{"$f":"Fin_duomenys!E63","v":0}]
[{"$f":"Fin_duomenys!A64","v":"Skolų dengimas ir palūkanos"},{"$f":"Fin_duomenys!C64","v":0},{"$f":"Fin_duomenys!D64","v":0},{"$f":"Fin_duomenys!E64","v":0}]
[{"$f":"Fin_duomenys!A65","v":"Palūkanos"},{"$f":"Fin_duomenys!C65","v":0},{"$f":"Fin_duomenys!D65","v":0},{"$f":"Fin_duomenys!E65","v":0}]
[{"$f":"Fin_duomenys!A66","v":"Numatyti paskolų dengimai"},{"$f":"Fin_duomenys!C66","v":0},{"$f":"Fin_duomenys!D66","v":0},{"$f":"Fin_duomenys!E66","v":0}]
[{"$f":"Fin_duomenys!A67","v":"PS po paskolų dengimo"},{"$f":"Fin_duomenys!C67","v":0},{"$f":"Fin_duomenys!D67","v":0},{"$f":"Fin_duomenys!E67","v":0}]
[{"$f":"Fin_duomenys!A68","v":"Grynosios plėtros investicijos"},{"$f":"Fin_duomenys!C68","v":0},{"$f":"Fin_duomenys!D68","v":0},{"$f":"Fin_duomenys!E68","v":0}]
[{"$f":"Fin_duomenys!A69","v":"Turto pardavimas"},{"$f":"Fin_duomenys!C69","v":0},{"$f":"Fin_duomenys!D69","v":0},{"$f":"Fin_duomenys!E69","v":0}]
[{"$f":"Fin_duomenys!A70","v":"Palaikomosios investicijos"},{"$f":"Fin_duomenys!C70","v":0},{"$f":"Fin_duomenys!D70","v":0},{"$f":"Fin_duomenys!E70","v":0}]
[{"$f":"Fin_duomenys!A71","v":"PS po plėtros investicijų ir turto pardavimo "},{"$f":"Fin_duomenys!C71","v":0},{"$f":"Fin_duomenys!D71","v":0},{"$f":"Fin_duomenys!E71","v":0}]
[{"$f":"Fin_duomenys!A72","v":"Nuosavo kapitalo pokyčiai"},{"$f":"Fin_duomenys!C72","v":0},{"$f":"Fin_duomenys!D72","v":0},{"$f":"Fin_duomenys!E72","v":0}]
[{"$f":"Fin_duomenys!A73","v":"PS po dividendų išmokėjimų"},{"$f":"Fin_duomenys!C73","v":0},{"$f":"Fin_duomenys!D73","v":0},{"$f":"Fin_duomenys!E73","v":0}]
[{"$f":"Fin_duomenys!A74","v":"Dotacija"},{"$f":"Fin_duomenys!C74","v":0},{"$f":"Fin_duomenys!D74","v":0},{"$f":"Fin_duomenys!E74","v":0}]
[{"$f":"Fin_duomenys!A75","v":"Kita"},{"$f":"Fin_duomenys!C75","v":16242},{"$f":"Fin_duomenys!D75","v":-334753},{"$f":"Fin_duomenys!E75","v":0}]
[{"$f":"Fin_duomenys!A76","v":"Pinigų pasikeitimas"},{"$f":"Fin_duomenys!C76","v":16242},{"$f":"Fin_duomenys!D76","v":-334753},{"$f":"Fin_duomenys!E76","v":0}]
[{"$f":"Fin_duomenys!A77","v":"Pinigai laikotarpio pabaigoje"},{"$f":"Fin_duomenys!C77","v":16242},{"$f":"Fin_duomenys!D77","v":-318511},{"$f":"Fin_duomenys!E77","v":-318511}]
[{"$f":"Fin_duomenys!A78","v":"Ar balansuojasi?"},{"$f":"Fin_duomenys!C78","v":0},{"$f":"Fin_duomenys!D78","v":0},{"$f":"Fin_duomenys!E78","v":0}]
[{"$f":"Fin_duomenys!A79","v":"Korekcija"},{"$f":"Fin_duomenys!C79","v":-16242},{"$f":"Fin_duomenys!D79","v":318511},{"$f":"Fin_duomenys!E79","v":318511}]
[{"$f":"Fin_duomenys!A80","v":"RODIKLIAI"},{"$f":"B54","v":"2018 m. faktas"},{"$f":"C54","v":"2019 m. faktas"},{"$f":"D1","v":"2020 m.                   mėn. faktas"}]
[{"$f":"Fin_duomenys!A81","v":"Pardavimai"},{"$f":"Fin_duomenys!C81","v":0},{"$f":"Fin_duomenys!D81","v":0},{"$f":"Fin_duomenys!E81","v":0}]
[{"$f":"Fin_duomenys!A82","v":"Bendras pelnas"},{"$f":"Fin_duomenys!C82","v":0},{"$f":"Fin_duomenys!D82","v":0},{"$f":"Fin_duomenys!E82","v":0}]
[{"$f":"Fin_duomenys!A83","v":"Tipinės veiklos pelnas"},{"$f":"Fin_duomenys!C83","v":0},{"$f":"Fin_duomenys!D83","v":0},{"$f":"Fin_duomenys!E83","v":0}]
[{"$f":"Fin_duomenys!A84","v":"Nusidėvėjimas"},{"$f":"Fin_duomenys!C84","v":0},{"$f":"Fin_duomenys!D84","v":0},{"$f":"Fin_duomenys!E84","v":0}]
[{"$f":"Fin_duomenys!A85","v":"EBITDA"},{"$f":"Fin_duomenys!C85","v":0},{"$f":"Fin_duomenys!D85","v":0},{"$f":"Fin_duomenys!E85","v":0}]
[{"$f":"Fin_duomenys!A86","v":"Grynasis pelnas"},{"$f":"Fin_duomenys!C86","v":0},{"$f":"Fin_duomenys!D86","v":0},{"$f":"Fin_duomenys!E86","v":0}]
[{"$f":"Fin_duomenys!A87","v":"Bendrojo pelno marža (%)"},{"$f":"Fin_duomenys!C87","v":{"$error":"#DIV/0!"}},{"$f":"Fin_duomenys!D87","v":{"$error":"#DIV/0!"}},{"$f":"Fin_duomenys!E87","v":{"$error":"#DIV/0!"}}]
[{"$f":"Fin_duomenys!A88","v":"EBITDA marža (%)"},{"$f":"Fin_duomenys!C88","v":{"$error":"#DIV/0!"}},{"$f":"Fin_duomenys!D88","v":{"$error":"#DIV/0!"}},{"$f":"Fin_duomenys!E88","v":{"$error":"#DIV/0!"}}]
[{"$f":"Fin_duomenys!A89","v":"Grynojo pelno marža (%)"},{"$f":"Fin_duomenys!C89","v":{"$error":"#DIV/0!"}},{"$f":"Fin_duomenys!D89","v":{"$error":"#DIV/0!"}},{"$f":"Fin_duomenys!E89","v":{"$error":"#DIV/0!"}}]
[{"$f":"Fin_duomenys!A90","v":"Einamojo likvidumo koef."},{"$f":"Fin_duomenys!C90","v":{"$error":"#DIV/0!"}},{"$f":"Fin_duomenys!D90","v":{"$error":"#DIV/0!"}},{"$f":"Fin_duomenys!E90","v":{"$error":"#DIV/0!"}}]
[{"$f":"Fin_duomenys!A91","v":"Kritinio likvidumo koef."},{"$f":"Fin_duomenys!C91","v":{"$error":"#DIV/0!"}},{"$f":"Fin_duomenys!D91","v":{"$error":"#DIV/0!"}},{"$f":"Fin_duomenys!E91","v":{"$error":"#DIV/0!"}}]
[{"$f":"Fin_duomenys!A92","v":"Svertas"},{"$f":"Fin_duomenys!C92","v":{"$error":"#DIV/0!"}},{"$f":"Fin_duomenys!D92","v":{"$error":"#DIV/0!"}},{"$f":"Fin_duomenys!E92","v":{"$error":"#DIV/0!"}}]
[{"$f":"Fin_duomenys!A93","v":"Atsargų apyvartumas dienomis"},{"$f":"Fin_duomenys!C93","v":{"$error":"#DIV/0!"}},{"$f":"Fin_duomenys!D93","v":{"$error":"#DIV/0!"}},{"$f":"Fin_duomenys!E93","v":0}]
[{"$f":"Fin_duomenys!A94","v":"Debitorių apyvartumas dienomis"},{"$f":"Fin_duomenys!C94","v":{"$error":"#DIV/0!"}},{"$f":"Fin_duomenys!D94","v":{"$error":"#DIV/0!"}},{"$f":"Fin_duomenys!E94","v":0}]
[{"$f":"Fin_duomenys!A95","v":"Kreditorių apyvartumas dienomis"},{"$f":"Fin_duomenys!C95","v":{"$error":"#DIV/0!"}},{"$f":"Fin_duomenys!D95","v":{"$error":"#DIV/0!"}},{"$f":"Fin_duomenys!E95","v":0}]
[{"$f":"Fin_duomenys!A96","v":"Apyvartinių lėšų perteklius (poreikis) dienomis"},{"$f":"Fin_duomenys!C96","v":{"$error":"#DIV/0!"}},{"$f":"Fin_duomenys!D96","v":{"$error":"#DIV/0!"}},{"$f":"Fin_duomenys!E96","v":0}]
[{"$f":"Fin_duomenys!A97","v":"Nuosavas kapitalas"},{"$f":"Fin_duomenys!C97","v":0},{"$f":"Fin_duomenys!D97","v":0},{"$f":"Fin_duomenys!E97","v":0}]
[{"$f":"Fin_duomenys!A98","v":"Balanso apyvarta"},{"$f":"Fin_duomenys!C98","v":0},{"$f":"Fin_duomenys!D98","v":0},{"$f":"Fin_duomenys!E98","v":0}]
[{"$f":"Fin_duomenys!A99","v":"Nuosavo kapitalo rodiklis"},{"$f":"Fin_duomenys!C99","v":{"$error":"#DIV/0!"}},{"$f":"Fin_duomenys!D99","v":{"$error":"#DIV/0!"}},{"$f":"Fin_duomenys!E99","v":{"$error":"#DIV/0!"}}]
[{"$f":"Fin_duomenys!A100","v":"Nuosavybės grąža (ROE)"},{"$f":"Fin_duomenys!C100","v":{"$error":"#DIV/0!"}},{"$f":"Fin_duomenys!D100","v":{"$error":"#DIV/0!"}},{"$f":"Fin_duomenys!E100","v":{"$error":"#DIV/0!"}}]
[{"$f":"Fin_duomenys!A101","v":"Turto grąža (ROA)"},{"$f":"Fin_duomenys!C101","v":{"$error":"#DIV/0!"}},{"$f":"Fin_duomenys!D101","v":{"$error":"#DIV/0!"}},{"$f":"Fin_duomenys!E101","v":{"$error":"#DIV/0!"}}]
[{"$f":"Fin_duomenys!A102","v":"Investicijų grąža (ROI)"},{"$f":"Fin_duomenys!C102","v":{"$error":"#DIV/0!"}},{"$f":"Fin_duomenys!D102","v":{"$error":"#DIV/0!"}},{"$f":"Fin_duomenys!E102","v":{"$error":"#DIV/0!"}}]
[]
[]
[]
["GAMYBINĖ BE VP"]
[{"$f":"Gamybine_be_VP!A2","v":"Kokia finansavimo nuosavomis lėšomis suma, kurią planuoja užtikrinti juridinis asmuo?"},null,null,null,{"$f":"Gamybine_be_VP!B2","v":0},"EUR"]
[{"$f":"Gamybine_be_VP!A3","v":"Kaip paraiškoje pagrindžiamas nuosavų lėšų šaltinis?"}]
[{"$f":"Gamybine_be_VP!A4","v":0}]
[{"$f":"Gamybine_be_VP!A5","v":"Kredito istorija"}]
[{"$f":"Gamybine_be_VP!A6","v":"Išvados iš kredito istorijos vertinimo:"},null,null,null,{"$f":"Gamybine_be_VP!B7","v":0},"Taip/Ne/N/A"]
[{"$f":"Gamybine_be_VP!A7","v":"Ar šis juridinis asmuo turi kitų projektų/paraiškų LVPA?"}]
[{"$f":"Gamybine_be_VP!A8","v":"Jei taip, detalizuoti:"}]
[{"$f":"Gamybine_be_VP!A9","v":0}]
[{"$f":"Gamybine_be_VP!A10","v":"Pinigų srautai (jei pateikta ataskaita)"},{"$f":"Gamybine_be_VP!B10","v":"2018 m. faktas"},{"$f":"Gamybine_be_VP!C10","v":"2019 m. faktas"},{"$f":"D1","v":"2020 m.                   mėn. faktas"}]
[{"$f":"Gamybine_be_VP!A11","v":"Pagrindinės veiklos pinigų srautas (metinis)"},{"$f":"Gamybine_be_VP!B11","v":0},{"$f":"Gamybine_be_VP!C11","v":0},{"$f":"Gamybine_be_VP!D11","v":0}]
[{"$f":"Gamybine_be_VP!A14","v":"Apyvartinis kapitalas"},{"$f":"Gamybine_be_VP!B14","v":0},{"$f":"Gamybine_be_VP!C14","v":0},{"$f":"Gamybine_be_VP!D14","v":0}]
[{"$f":"Gamybine_be_VP!A15","v":"Trumpalaikis turtas"},{"$f":"Gamybine_be_VP!B15","v":0},{"$f":"Gamybine_be_VP!C15","v":0},{"$f":"Gamybine_be_VP!D15","v":0}]
[{"$f":"Gamybine_be_VP!A16","v":"Trumpalaikiai įsipareigojimai"},{"$f":"Gamybine_be_VP!B16","v":0},{"$f":"Gamybine_be_VP!C16","v":0},{"$f":"Gamybine_be_VP!D16","v":0}]
[{"$f":"Gamybine_be_VP!A19","v":"Bendrojo trumpalaikio mokumo koeficientas"},{"$f":"Gamybine_be_VP!B19","v":{"$error":"#DIV/0!"}},{"$f":"Gamybine_be_VP!C19","v":{"$error":"#DIV/0!"}},{"$f":"Gamybine_be_VP!D19","v":{"$error":"#DIV/0!"}}]
[{"$f":"Gamybine_be_VP!A22","v":"Greitojo trumpalaikio mokumo koeficientas"},{"$f":"Gamybine_be_VP!B22","v":{"$error":"#DIV/0!"}},{"$f":"Gamybine_be_VP!C22","v":{"$error":"#DIV/0!"}},{"$f":"Gamybine_be_VP!D22","v":{"$error":"#DIV/0!"}}]
[{"$f":"Gamybine_be_VP!A23","v":"Atsargos"},{"$f":"Gamybine_be_VP!B23","v":0},{"$f":"Gamybine_be_VP!C23","v":0},{"$f":"Gamybine_be_VP!D23","v":0}]
[{"$f":"Gamybine_be_VP!A25","v":"Įsiskolinimo lygis"},{"$f":"B112","v":"2018 m. faktas"},{"$f":"C112","v":"2019 m. faktas"},{"$f":"D1","v":"2020 m.                   mėn. faktas"}]
[{"$f":"Gamybine_be_VP!A26","v":"Bendrasis skolos koeficientas"},{"$f":"Gamybine_be_VP!B26","v":{"$error":"#DIV/0!"}},{"$f":"Gamybine_be_VP!C26","v":{"$error":"#DIV/0!"}},{"$f":"Gamybine_be_VP!D26","v":{"$error":"#DIV/0!"}}]
[{"$f":"Gamybine_be_VP!A27","v":"Visi įsipareigojimai"},{"$f":"Gamybine_be_VP!B27","v":0},{"$f":"Gamybine_be_VP!C27","v":0},{"$f":"Gamybine_be_VP!D27","v":0}]
[{"$f":"Gamybine_be_VP!A28","v":"Visas turtas"},{"$f":"Gamybine_be_VP!B28","v":0},{"$f":"Gamybine_be_VP!C28","v":0},{"$f":"Gamybine_be_VP!D28","v":0}]
[{"$f":"Gamybine_be_VP!A31","v":"Palūkanų padengimo koeficientas"},{"$f":"Gamybine_be_VP!B31","v":{"$error":"#DIV/0!"}},{"$f":"Gamybine_be_VP!C31","v":{"$error":"#DIV/0!"}},{"$f":"Gamybine_be_VP!D31","v":{"$error":"#DIV/0!"}}]
[{"$f":"Gamybine_be_VP!A32","v":"Veiklos pelnas (EBIT)"},{"$f":"Gamybine_be_VP!B32","v":0},{"$f":"Gamybine_be_VP!C32","v":0},{"$f":"Gamybine_be_VP!D32","v":0}]
[{"$f":"Gamybine_be_VP!A33","v":"Palūkanų sąnaudos"},{"$f":"Gamybine_be_VP!B33","v":0},{"$f":"Gamybine_be_VP!C33","v":0},{"$f":"Gamybine_be_VP!D33","v":0}]
[{"$f":"Gamybine_be_VP!A36","v":"Bankroto rizika pagal Altman Z-score"},{"$f":"Gamybine_be_VP!B36","v":{"$error":"#DIV/0!"}},{"$f":"Gamybine_be_VP!C36","v":{"$error":"#DIV/0!"}},{"$f":"Gamybine_be_VP!D36","v":{"$error":"#DIV/0!"}}]
[{"$f":"Gamybine_be_VP!A37","v":"Nepaskirstytasis pelnas"},{"$f":"Gamybine_be_VP!B37","v":0},{"$f":"Gamybine_be_VP!C37","v":0},{"$f":"Gamybine_be_VP!D37","v":0}]
[{"$f":"Gamybine_be_VP!A38","v":"Nuosavas kapitalas"},{"$f":"Gamybine_be_VP!B38","v":0},{"$f":"Gamybine_be_VP!C38","v":0},{"$f":"Gamybine_be_VP!D38","v":0}]
[{"$f":"Gamybine_be_VP!A39","v":"Pardavimų pajamos"},{"$f":"Gamybine_be_VP!B39","v":0},{"$f":"Gamybine_be_VP!C39","v":0},{"$f":"Gamybine_be_VP!D39","v":0}]
[{"$f":"Gamybine_be_VP!A43","v":"Turtas"},{"$f":"B120","v":"2018 m. faktas"},{"$f":"C120","v":"2019 m. faktas"},{"$f":"D1","v":"2020 m.                   mėn. faktas"}]
[{"$f":"Gamybine_be_VP!A44","v":"Piniginis turtas (near-cash assets)"},{"$f":"Gamybine_be_VP!B44","v":0},{"$f":"Gamybine_be_VP!C44","v":0},{"$f":"Gamybine_be_VP!D44","v":0}]
[{"$f":"Gamybine_be_VP!A45","v":"Pinigai ir jų ekvivalentai"},{"$f":"Gamybine_be_VP!B45","v":0},{"$f":"Gamybine_be_VP!C45","v":0},{"$f":"Gamybine_be_VP!D45","v":0}]
[{"$f":"Gamybine_be_VP!A46","v":"Pirkėjų skolos"},{"$f":"Gamybine_be_VP!B46","v":0},{"$f":"Gamybine_be_VP!C46","v":0},{"$f":"Gamybine_be_VP!D46","v":0}]
[{"$f":"Gamybine_be_VP!A47","v":"Išvados iš kreditorių ir debitorių sąrašo:"}]
[{"$f":"Gamybine_be_VP!A48","v":0}]

{"sheet":"Paslaugu","index":9,"n_rows":60,"n_cols":12,"rows_kept":60,"cut":false,"hidden":true,"merged":[[0,0,0,11]]}
["PASLAUGŲ SU VP"]
["Kokia finansavimo nuosavomis lėšomis suma, kurią planuoja užtikrinti juridinis asmuo?",null,"EUR"]
["Kaip paraiškoje pagrindžiamas nuosavų lėšų šaltinis?",null,"Klasifikatotorius"]
[]
["Kredito istorija"]
["Išvados iš kredito istorijos vertinimo:"]
["Ar šis juridinis asmuo turi kitų projektų/paraiškų LVPA?",null,"Klasifikatotorius"]
["Jei taip, detalizuoti:"]
[]
["Pinigų srautai",{"$f":"Fin_duomenys!C2","v":"2018 m. faktas"},{"$f":"Fin_duomenys!D2","v":"2019 m. faktas"},{"$f":"+(Navigacija!F2)&\" m.        \" &Navigacija!H2&\" mėn.\"&\" faktas\"","v":"2020 m.         mėn. faktas"},{"$f":"Fin_duomenys!F2","v":"2020 m. prognozė"},{"$f":"Fin_duomenys!G2","v":"2021 m. prognozė"},{"$f":"Fin_duomenys!H2","v":"2022 m. prognozė"},{"$f":"Fin_duomenys!I2","v":"2023 m. prognozė"},{"$f":"Fin_duomenys!J2","v":"2024 m. prognozė"},{"$f":"Fin_duomenys!K2","v":"2025 m. prognozė"},{"$f":"Fin_duomenys!L2","v":"2026 m. prognozė"},{"$f":"Fin_duomenys!M2","v":"2027 m. prognozė"}]
["Pagrindinės veiklos pinigų srautas (metinis)",{"$f":"Fin_duomenys!C60","v":0},{"$f":"Fin_duomenys!D60","v":0},{"$f":"Fin_duomenys!E60","v":0},{"$f":"Fin_duomenys!F60","v":0},{"$f":"Fin_duomenys!G60","v":0},{"$f":"Fin_duomenys!H60","v":0},{"$f":"Fin_duomenys!I60","v":0},{"$f":"Fin_duomenys!J60","v":0},{"$f":"Fin_duomenys!K60","v":0},{"$f":"Fin_duomenys!L60","v":0},{"$f":"Fin_duomenys!M60","v":0}]
["Teigiamas dydis reiškia, kad įmonė iš savo pagrindinės veiklos uždirba pinigų."]
["Jei šis dydis neigiamas arba mažėja, reikia analizuoti, kodėl."]
["Apyvartinis kapitalas",{"$f":"B15-B16","v":0},{"$f":"C15-C16","v":0},{"$f":"D15-D16","v":0},0,0,0,0,0,0,0,0]
["Trumpalaikis turtas",{"$f":"Fin_duomenys!C22","v":0},{"$f":"Fin_duomenys!D22","v":0},{"$f":"Fin_duomenys!E22","v":0},{"$f":"Fin_duomenys!F22","v":0},{"$f":"Fin_duomenys!G22","v":0},{"$f":"Fin_duomenys!H22","v":0},{"$f":"Fin_duomenys!I22","v":0},{"$f":"Fin_duomenys!J22","v":0},{"$f":"Fin_duomenys!K22","v":0},{"$f":"Fin_duomenys!L22","v":0},{"$f":"Fin_duomenys!M22","v":0}]
["Trumpalaikiai įsipareigojimai",{"$f":"Fin_duomenys!C42","v":0},{"$f":"Fin_duomenys!D42","v":0},{"$f":"Fin_duomenys!E42","v":0},{"$f":"Fin_duomenys!F42","v":0},{"$f":"Fin_duomenys!G42","v":0},{"$f":"Fin_duomenys!H42","v":0},{"$f":"Fin_duomenys!I42","v":0},{"$f":"Fin_duomenys!J42","v":0},{"$f":"Fin_duomenys!K42","v":0},{"$f":"Fin_duomenys!L42","v":0},{"$f":"Fin_duomenys!M42","v":0}]
["Jei šis dydis neigiamas, įmonei gali kilti problemų vykdant trumpalaikius įsipareigojimus."]
["Jei šis dydis mažėja, reikia analizuoti, kodėl."]
["Bendrojo trumpalaikio mokumo koeficientas",{"$f":"B15/B16","v":{"$error":"#DIV/0!"}},{"$error":"#DIV/0!"},{"$error":"#DIV/0!"},{"$error":"#DIV/0!"},{"$error":"#DIV/0!"},{"$error":"#DIV/0!"},{"$error":"#DIV/0!"},{"$error":"#DIV/0!"},{"$error":"#DIV/0!"},{"$error":"#DIV/0!"},{"$error":"#DIV/0!"}]
["Rekomenduojamas rodiklio intervalas yra [1,2 ; 2]."]
["Jei šis rodiklis mažesnis nei 1,2 - įmonei gali kilti problemų vykdant trumpalaikius įsipareigojimus."]
["Įsiskolinimo lygis",{"$f":"B10","v":"2018 m. faktas"},{"$f":"C10","v":"2019 m. faktas"},{"$f":"D10","v":"2020 m.         mėn. faktas"},"2020 m. prognozė","2021 m. prognozė","2022 m. prognozė","2023 m. prognozė","2024 m. prognozė","2025 m. prognozė","2026 m. prognozė","2027 m. prognozė"]
["Bendrasis skolos koeficientas",{"$f":"B24/B25","v":{"$error":"#DIV/0!"}},{"$f":"C24/C25","v":{"$error":"#DIV/0!"}},{"$error":"#DIV/0!"},{"$error":"#DIV/0!"},{"$error":"#DIV/0!"},{"$error":"#DIV/0!"},{"$error":"#DIV/0!"},{"$error":"#DIV/0!"},{"$error":"#DIV/0!"},{"$error":"#DIV/0!"},{"$error":"#DIV/0!"}]
["Visi įsipareigojimai",{"$f":"Fin_duomenys!C40","v":0},{"$f":"Fin_duomenys!D40","v":0},{"$f":"Fin_duomenys!E40","v":0},{"$f":"Fin_duomenys!F40","v":0},{"$f":"Fin_duomenys!G40","v":0},{"$f":"Fin_duomenys!H40","v":0},{"$f":"Fin_duomenys!I40","v":0},{"$f":"Fin_duomenys!J40","v":0},{"$f":"Fin_duomenys!K40","v":0},{"$f":"Fin_duomenys!L40","v":0},{"$f":"Fin_duomenys!M40","v":0}]
["Visas turtas",{"$f":"Fin_duomenys!C31","v":0},{"$f":"Fin_duomenys!D31","v":0},{"$f":"Fin_duomenys!E31","v":0},{"$f":"Fin_duomenys!F31","v":0},{"$f":"Fin_duomenys!G31","v":0},{"$f":"Fin_duomenys!H31","v":0},{"$f":"Fin_duomenys!I31","v":0},{"$f":"Fin_duomenys!J31","v":0},{"$f":"Fin_duomenys!K31","v":0},{"$f":"Fin_duomenys!L31","v":0},{"$f":"Fin_duomenys!M31","v":0}]
["Parodo, kokia turto dalis finansuojama skolintu kapitalu (įsipareigojimais)."]
["Lyginti su sektoriaus ar pramonės šakos rodikliais - ar ne per didelis įsiskolinimas"]
["Palūkanų padengimo koeficientas",{"$f":"B29/B30","v":{"$error":"#DIV/0!"}},{"$f":"C29/C30","v":{"$error":"#DIV/0!"}},{"$f":"D29/D30","v":{"$error":"#DIV/0!"}},{"$error":"#DIV/0!"},{"$error":"#DIV/0!"},{"$error":"#DIV/0!"},{"$error":"#DIV/0!"},{"$error":"#DIV/0!"},{"$error":"#DIV/0!"},{"$error":"#DIV/0!"},{"$error":"#DIV/0!"}]
["Veiklos pelnas (EBIT)",{"$f":"Fin_duomenys!C9","v":0},{"$f":"Fin_duomenys!D9","v":0},{"$f":"Fin_duomenys!E9","v":0},{"$f":"Fin_duomenys!F9","v":0},{"$f":"Fin_duomenys!G9","v":0},{"$f":"Fin_duomenys!H9","v":0},{"$f":"Fin_duomenys!I9","v":0},{"$f":"Fin_duomenys!J9","v":0},{"$f":"Fin_duomenys!K9","v":0},{"$f":"Fin_duomenys!L9","v":0},{"$f":"Fin_duomenys!M9","v":0}]
["Palūkanų sąnaudos",{"$f":"Fin_duomenys!C12","v":0},{"$f":"Fin_duomenys!D12","v":0},{"$f":"Fin_duomenys!E12","v":0},{"$f":"Fin_duomenys!F12","v":0},{"$f":"Fin_duomenys!G12","v":0},{"$f":"Fin_duomenys!H12","v":0},{"$f":"Fin_duomenys!I12","v":0},{"$f":"Fin_duomenys!J12","v":0},{"$f":"Fin_duomenys!K12","v":0},{"$f":"Fin_duomenys!L12","v":0},{"$f":"Fin_duomenys!M12","v":0}]
["Rekomenduojama, kad šis rodiklis būtų ne mažesnis nei 2,5"]
["Jei rodiklis yra 1,5 ar mažesnis, įmonei gali kilti sunkumų mokėti palūkanas"]
["Bankroto rizika pagal Altman Z-score (proc.)",{"$f":"6.56*(B14/B25)+3.26*(B34/B25)+6.72*(B29/B25)+1.05*(B36/B24)","v":{"$error":"#DIV/0!"}},{"$f":"6.56*(C14/C25)+3.26*(C34/C25)+6.72*(C29/C25)+1.05*(C36/C24)","v":{"$error":"#DIV/0!"}},{"$f":"6.56*(D14/D25)+3.26*(D34/D25)+6.72*(D29/D25)+1.05*(D36/D24)","v":{"$error":"#DIV/0!"}},{"$error":"#DIV/0!"},{"$error":"#DIV/0!"},{"$error":"#DIV/0!"},{"$error":"#DIV/0!"},{"$error":"#DIV/0!"},{"$error":"#DIV/0!"},{"$error":"#DIV/0!"},{"$error":"#DIV/0!"}]
["Nepaskirstytasis pelnas",{"$f":"Fin_duomenys!C37","v":0},{"$f":"Fin_duomenys!D37","v":0},{"$f":"Fin_duomenys!E37","v":0},{"$f":"Fin_duomenys!F37","v":0},{"$f":"Fin_duomenys!G37","v":0},{"$f":"Fin_duomenys!H37","v":0},{"$f":"Fin_duomenys!I37","v":0},{"$f":"Fin_duomenys!J37","v":0},{"$f":"Fin_duomenys!K37","v":0},{"$f":"Fin_duomenys!L37","v":0},{"$f":"Fin_duomenys!M37","v":0}]
["Nuosavas kapitalas",{"$f":"Fin_duomenys!C29","v":0},{"$f":"Fin_duomenys!D29","v":0},{"$f":"Fin_duomenys!E29","v":0},{"$f":"Fin_duomenys!F29","v":0},{"$f":"Fin_duomenys!G29","v":0},{"$f":"Fin_duomenys!H29","v":0},{"$f":"Fin_duomenys!I29","v":0},{"$f":"Fin_duomenys!J29","v":0},{"$f":"Fin_duomenys!K29","v":0},{"$f":"Fin_duomenys!L29","v":0},{"$f":"Fin_duomenys!M29","v":0}]
["Pardavimų pajamos",{"$f":"Fin_duomenys!C4","v":0},{"$f":"Fin_duomenys!D4","v":0},{"$f":"Fin_duomenys!E4","v":0},{"$f":"Fin_duomenys!F4","v":0},{"$f":"Fin_duomenys!G4","v":0},{"$f":"Fin_duomenys!H4","v":0},{"$f":"Fin_duomenys!I4","v":0},{"$f":"Fin_duomenys!J4","v":0},{"$f":"Fin_duomenys!K4","v":0},{"$f":"Fin_duomenys!L4","v":0},{"$f":"Fin_duomenys!M4","v":0}]
["Jei Z-score yra mažiau nei 1,1 - gresia bankrotas"]
["Jei Z-score yra tarp 1,1 ir 2,6 - gali grėsti bankrotas"]
["Jei Z-score yra virš 2,6 - finansiškai stabili įmonė"]
["Turtas",{"$f":"B22","v":"2018 m. faktas"},{"$f":"C22","v":"2019 m. faktas"},{"$f":"D10","v":"2020 m.         mėn. faktas"},"2020 m. prognozė","2021 m. prognozė","2022 m. prognozė","2023 m. prognozė","2024 m. prognozė","2025 m. prognozė","2026 m. prognozė","2027 m. prognozė"]
["Piniginis turtas (near-cash assets)",{"$f":"B42+B43","v":0},{"$f":"C42+C43","v":0},{"$f":"D42+D43","v":0},0,0,0,0,0,0,0,0]
["Pinigai ir jų ekvivalentai",{"$f":"Fin_duomenys!C29","v":0},{"$f":"Fin_duomenys!D29","v":0},{"$f":"Fin_duomenys!E29","v":0},{"$f":"Fin_duomenys!F29","v":0},{"$f":"Fin_duomenys!G29","v":0},{"$f":"Fin_duomenys!H29","v":0},{"$f":"Fin_duomenys!I29","v":0},{"$f":"Fin_duomenys!J29","v":0},{"$f":"Fin_duomenys!K29","v":0},{"$f":"Fin_duomenys!L29","v":0},{"$f":"Fin_duomenys!M29","v":0}]
["Pirkėjų skolos",{"$f":"Fin_duomenys!C25","v":0},{"$f":"Fin_duomenys!D25","v":0},{"$f":"Fin_duomenys!E25","v":0},{"$f":"Fin_duomenys!F25","v":0},{"$f":"Fin_duomenys!G25","v":0},{"$f":"Fin_duomenys!H25","v":0},{"$f":"Fin_duomenys!I25","v":0},{"$f":"Fin_duomenys!J25","v":0},{"$f":"Fin_duomenys!K25","v":0},{"$f":"Fin_duomenys!L25","v":0},{"$f":"Fin_duomenys!M25","v":0}]
["Išvados iš kreditorių ir debitorių sąrašo:"]
[]
["Specifika",{"$f":"B40","v":"2018 m. faktas"},{"$f":"C40","v":"2019 m. faktas"},{"$f":"D10","v":"2020 m.         mėn. faktas"},"2020 m. prognozė","2021 m. prognozė","2022 m. prognozė","2023 m. prognozė","2024 m. prognozė","2025 m. prognozė","2026 m. prognozė","2027 m. prognozė"]
["Ar finansavimo šaltinis - prognozuojami juridinio asmens pinigų srautai?",null,"Klasifikatotorius"]
["Prognozuojamas įmonės (pardavimų) augimo tempas (proc.)",{"$f":"Fin_duomenys!C4/Fin_duomenys!B4","v":{"$error":"#DIV/0!"}},{"$f":"Fin_duomenys!D4/Fin_duomenys!C4","v":{"$error":"#DIV/0!"}},null,{"$f":"Fin_duomenys!F4/Fin_duomenys!E4","v":{"$error":"#DIV/0!"}},{"$f":"Fin_duomenys!G4/Fin_duomenys!F4","v":{"$error":"#DIV/0!"}},{"$f":"Fin_duomenys!H4/Fin_duomenys!G4","v":{"$error":"#DIV/0!"}},{"$f":"Fin_duomenys!I4/Fin_duomenys!H4","v":{"$error":"#DIV/0!"}},{"$f":"Fin_duomenys!J4/Fin_duomenys!I4","v":{"$error":"#DIV/0!"}},{"$f":"Fin_duomenys!K4/Fin_duomenys!J4","v":{"$error":"#DIV/0!"}},{"$f":"Fin_duomenys!L4/Fin_duomenys!K4","v":{"$error":"#DIV/0!"}},{"$f":"Fin_duomenys!M4/Fin_duomenys!L4","v":{"$error":"#DIV/0!"}}]
["Kuo grindžiamos pardavimų prognozės? Ar verslo plane tinkamai paaiškinta, kodėl planuojami būtent tokie pardavimai?"]
[]
["Vidinio augimo norma (proc.)",{"$f":"(B53/B52)/(1-B53/B52)","v":{"$error":"#DIV/0!"}},{"$f":"(C53/C52)/(1-C53/C52)","v":{"$error":"#DIV/0!"}},{"$error":"#DIV/0!"},{"$error":"#DIV/0!"},{"$error":"#DIV/0!"},{"$error":"#DIV/0!"},{"$error":"#DIV/0!"},{"$error":"#DIV/0!"},{"$error":"#DIV/0!"},{"$error":"#DIV/0!"},{"$f":"(L53/L52)/(1-L53/L52)","v":{"$error":"#DIV/0!"}}]
["Visas turtas",{"$f":"Fin_duomenys!C31","v":0},{"$f":"Fin_duomenys!D31","v":0},{"$f":"Fin_duomenys!E31","v":0},{"$f":"Fin_duomenys!F31","v":0},{"$f":"Fin_duomenys!G31","v":0},{"$f":"Fin_duomenys!H31","v":0},{"$f":"Fin_duomenys!I31","v":0},{"$f":"Fin_duomenys!J31","v":0},{"$f":"Fin_duomenys!K31","v":0},{"$f":"Fin_duomenys!L31","v":0},{"$f":"Fin_duomenys!M31","v":0}]
["Grynasis pelnas",{"$f":"Fin_duomenys!C15","v":0},{"$f":"Fin_duomenys!D15","v":0},{"$f":"Fin_duomenys!E15","v":0},{"$f":"Fin_duomenys!F15","v":0},{"$f":"Fin_duomenys!G15","v":0},{"$f":"Fin_duomenys!H15","v":0},{"$f":"Fin_duomenys!I15","v":0},{"$f":"Fin_duomenys!J15","v":0},{"$f":"Fin_duomenys!K15","v":0},{"$f":"Fin_duomenys!L15","v":0},{"$f":"Fin_duomenys!M15","v":0}]
["Ar įmonės prognozuojamas pardavimų augimas viršija vidinio augimo normą?",null,"Klasifikatotorius"]
["Jei taip, ar detalizuotas išorinio finansavimo poreikis ir jo šaltinis?"]
[]
["Tvari augimo norma (proc.)",{"$f":"(B53/B58)/(1-B53/B58)","v":{"$error":"#DIV/0!"}},{"$f":"(C53/C58)/(1-C53/C58)","v":{"$error":"#DIV/0!"}},{"$error":"#DIV/0!"},{"$error":"#DIV/0!"},{"$error":"#DIV/0!"},{"$error":"#DIV/0!"},{"$error":"#DIV/0!"},{"$error":"#DIV/0!"},{"$error":"#DIV/0!"},{"$error":"#DIV/0!"},{"$error":"#DIV/0!"}]
["Nuosavas kapitalas",{"$f":"Fin_duomenys!C32","v":0},{"$f":"Fin_duomenys!D32","v":0},{"$f":"Fin_duomenys!E32","v":0},{"$f":"Fin_duomenys!F32","v":0},{"$f":"Fin_duomenys!G32","v":0},{"$f":"Fin_duomenys!H32","v":0},{"$f":"Fin_duomenys!I32","v":0},{"$f":"Fin_duomenys!J32","v":0},{"$f":"Fin_duomenys!K32","v":0},{"$f":"Fin_duomenys!L32","v":0},{"$f":"Fin_duomenys!M32","v":0}]
["Ar įmonės prognozuojamas pardavimų augimas viršija tvarią augimo normą?",null,"Klasifikatotorius"]
["Jei taip, ar detalizuotas papildomo išorinio finansavimo poreikis ir jo šaltiniai?"]

{"sheet":"Klasifikatorius","index":10,"n_rows":10,"n_cols":1,"rows_kept":10,"cut":false,"hidden":true,"merged":[]}
["Prognozuojamų metų skaičius"]
[0]
[1]
[2]
[3]
[4]
[5]
[6]
[7]
[8]

{"sheet":"SP_Paslaugu_su_VP","index":11,"n_rows":156,"n_cols":7,"rows_kept":156,"cut":false,"hidden":true,"merged":[[149,0,149,4],[150,0,150,4],[155,0,155,4],[154,0,154,4],[148,0,148,2],[143,0,143,4],[144,0,144,4],[101,0,101,6],[103,0,103,4],[105,0,105,4],[102,0,102,2],[104,0,104,4],[106,0,106,2],[107,0,107,4],[108,0,108,4],[109,0,109,4],[132,0,132,4],[131,0,131,4]]}
["PELNO - NUOSTOLIŲ ATASKAITA",{"$f":"Fin_duomenys!C2","v":"2018 m. faktas"},{"$f":"Fin_duomenys!D2","v":"2019 m. faktas"},{"$f":"+(Navigacija!F2)&\" m.               \" &Navigacija!H2&\" mėn.\"&\" faktas\"","v":"2020 m.                mėn. faktas"},{"$f":"Fin_duomenys!F2","v":"2020 m. prognozė"},{"$f":"Fin_duomenys!G2","v":"2021 m. prognozė"},{"$f":"Fin_duomenys!H2","v":"2022 m. prognozė"}]
[{"$f":"Fin_duomenys!A4","v":"Pardavimo pajamos"},{"$f":"Fin_duomenys!C4","v":0},{"$f":"Fin_duomenys!D4","v":0},{"$f":"Fin_duomenys!E4","v":0},{"$f":"Fin_duomenys!F4","v":0},{"$f":"Fin_duomenys!G4","v":0},{"$f":"Fin_duomenys!H4","v":0}]
[{"$f":"Fin_duomenys!A5","v":"Pardavimo savikaina"},{"$f":"Fin_duomenys!C5","v":0},{"$f":"Fin_duomenys!D5","v":0},{"$f":"Fin_duomenys!E5","v":0},{"$f":"Fin_duomenys!F5","v":0},{"$f":"Fin_duomenys!G5","v":0},{"$f":"Fin_duomenys!H5","v":0}]
[{"$f":"Fin_duomenys!A6","v":"BENDRAS PELNAS (NUOSTOLIS)"},{"$f":"Fin_duomenys!C6","v":0},{"$f":"Fin_duomenys!D6","v":0},{"$f":"Fin_duomenys!E6","v":0},{"$f":"Fin_duomenys!F6","v":0},{"$f":"Fin_duomenys!G6","v":0},{"$f":"Fin_duomenys!H6","v":0}]
[{"$f":"Fin_duomenys!A7","v":"Pardavimo sąnaudos"},{"$f":"Fin_duomenys!C7","v":0},{"$f":"Fin_duomenys!D7","v":0},{"$f":"Fin_duomenys!E7","v":0},{"$f":"Fin_duomenys!F7","v":0},{"$f":"Fin_duomenys!G7","v":0},{"$f":"Fin_duomenys!H7","v":0}]
[{"$f":"Fin_duomenys!A8","v":"Bendrosios ir administracinės sąnaudos"},{"$f":"Fin_duomenys!C8","v":0},{"$f":"Fin_duomenys!D8","v":0},{"$f":"Fin_duomenys!E8","v":0},{"$f":"Fin_duomenys!F8","v":0},{"$f":"Fin_duomenys!G8","v":0},{"$f":"Fin_duomenys!H8","v":0}]
[{"$f":"Fin_duomenys!A9","v":"TIPINĖS VEIKLOS PELNAS (NUOSTOLIS)"},{"$f":"Fin_duomenys!C9","v":0},{"$f":"Fin_duomenys!D9","v":0},{"$f":"Fin_duomenys!E9","v":0},{"$f":"Fin_duomenys!F9","v":0},{"$f":"Fin_duomenys!G9","v":0},{"$f":"Fin_duomenys!H9","v":0}]
[{"$f":"Fin_duomenys!A10","v":"Kitos veiklos rezultatas"},{"$f":"Fin_duomenys!C10","v":0},{"$f":"Fin_duomenys!D10","v":0},{"$f":"Fin_duomenys!E10","v":0},{"$f":"Fin_duomenys!F10","v":0},{"$f":"Fin_duomenys!G10","v":0},{"$f":"Fin_duomenys!H10","v":0}]
[{"$f":"Fin_duomenys!A11","v":"Finansinės ir investicinės veiklos pajamos"},{"$f":"Fin_duomenys!C11","v":0},{"$f":"Fin_duomenys!D11","v":0},{"$f":"Fin_duomenys!E11","v":0},{"$f":"Fin_duomenys!F11","v":0},{"$f":"Fin_duomenys!G11","v":0},{"$f":"Fin_duomenys!H11","v":0}]
[{"$f":"Fin_duomenys!A12","v":"Finansinės ir investicinės veiklos sąnaudos"},{"$f":"Fin_duomenys!C12","v":0},{"$f":"Fin_duomenys!D12","v":0},{"$f":"Fin_duomenys!E12","v":0},{"$f":"Fin_duomenys!F12","v":0},{"$f":"Fin_duomenys!G12","v":0},{"$f":"Fin_duomenys!H12","v":0}]
[{"$f":"Fin_duomenys!A13","v":"PELNAS (NUOSTOLIAI) PRIEŠ APMOKESTINIMĄ"},{"$f":"Fin_duomenys!C13","v":0},{"$f":"Fin_duomenys!D13","v":0},{"$f":"Fin_duomenys!E13","v":0},{"$f":"Fin_duomenys!F13","v":0},{"$f":"Fin_duomenys!G13","v":0},{"$f":"Fin_duomenys!H13","v":0}]
[{"$f":"Fin_duomenys!A14","v":"Pelno mokestis"},{"$f":"Fin_duomenys!C14","v":0},{"$f":"Fin_duomenys!D14","v":0},{"$f":"Fin_duomenys!E14","v":0},{"$f":"Fin_duomenys!F14","v":0},{"$f":"Fin_duomenys!G14","v":0},{"$f":"Fin_duomenys!H14","v":0}]
[{"$f":"Fin_duomenys!A15","v":"GRYNASIS PELNAS (NUOSTOLIAI)"},{"$f":"Fin_duomenys!C15","v":0},{"$f":"Fin_duomenys!D15","v":0},{"$f":"Fin_duomenys!E15","v":0},{"$f":"Fin_duomenys!F15","v":0},{"$f":"Fin_duomenys!G15","v":0},{"$f":"Fin_duomenys!H15","v":0}]
[{"$f":"Fin_duomenys!A16","v":"BALANSAS"},{"$f":"B1","v":"2018 m. faktas"},{"$f":"C1","v":"2019 m. faktas"},{"$f":"D1","v":"2020 m.                mėn. faktas"},"2020 m. prognozė","2021 m. prognozė","2022 m. prognozė"]
[{"$f":"Fin_duomenys!A17","v":"ILGALAIKIS TURTAS"},{"$f":"Fin_duomenys!C17","v":0},{"$f":"Fin_duomenys!D17","v":0},{"$f":"Fin_duomenys!E17","v":0},{"$f":"Fin_duomenys!F17","v":0},{"$f":"Fin_duomenys!G17","v":0},{"$f":"Fin_duomenys!H17","v":0}]
[{"$f":"Fin_duomenys!A18","v":"NEMATERIALUSIS TURTAS"},{"$f":"Fin_duomenys!C18","v":0},{"$f":"Fin_duomenys!D18","v":0},{"$f":"Fin_duomenys!E18","v":0},{"$f":"Fin_duomenys!F18","v":0},{"$f":"Fin_duomenys!G18","v":0},{"$f":"Fin_duomenys!H18","v":0}]
[{"$f":"Fin_duomenys!A19","v":"MATERIALUSIS TURTAS"},{"$f":"Fin_duomenys!C19","v":0},{"$f":"Fin_duomenys!D19","v":0},{"$f":"Fin_duomenys!E19","v":0},{"$f":"Fin_duomenys!F19","v":0},{"$f":"Fin_duomenys!G19","v":0},{"$f":"Fin_duomenys!H19","v":0}]
[{"$f":"Fin_duomenys!A20","v":"FINANSINIS TURTAS"},{"$f":"Fin_duomenys!C20","v":0},{"$f":"Fin_duomenys!D20","v":0},{"$f":"Fin_duomenys!E20","v":0},{"$f":"Fin_duomenys!F20","v":0},{"$f":"Fin_duomenys!G20","v":0},{"$f":"Fin_duomenys!H20","v":0}]
[{"$f":"Fin_duomenys!A21","v":"KITAS ILGALAIKIS TURTAS"},{"$f":"Fin_duomenys!C21","v":0},{"$f":"Fin_duomenys!D21","v":0},{"$f":"Fin_duomenys!E21","v":0},{"$f":"Fin_duomenys!F21","v":0},{"$f":"Fin_duomenys!G21","v":0},{"$f":"Fin_duomenys!H21","v":0}]
[{"$f":"Fin_duomenys!A22","v":"TRUMPALAIKIS TURTAS"},{"$f":"Fin_duomenys!C22","v":0},{"$f":"Fin_duomenys!D22","v":0},{"$f":"Fin_duomenys!E22","v":0},{"$f":"Fin_duomenys!F22","v":0},{"$f":"Fin_duomenys!G22","v":0},{"$f":"Fin_duomenys!H22","v":0}]
[{"$f":"Fin_duomenys!A23","v":"ATSARGOS"},{"$f":"Fin_duomenys!C23","v":0},{"$f":"Fin_duomenys!D23","v":0},{"$f":"Fin_duomenys!E23","v":0},{"$f":"Fin_duomenys!F23","v":0},{"$f":"Fin_duomenys!G23","v":0},{"$f":"Fin_duomenys!H23","v":0}]
[{"$f":"Fin_duomenys!A24","v":"PER VIENERIUS METUS GAUTINOS SUMOS"},{"$f":"Fin_duomenys!C24","v":0},{"$f":"Fin_duomenys!D24","v":0},{"$f":"Fin_duomenys!E24","v":0},{"$f":"Fin_duomenys!F24","v":0},{"$f":"Fin_duomenys!G24","v":0},{"$f":"Fin_duomenys!H24","v":0}]
[{"$f":"Fin_duomenys!A25","v":"Pirkėjų įsiskolinimas"},{"$f":"Fin_duomenys!C25","v":0},{"$f":"Fin_duomenys!D25","v":0},{"$f":"Fin_duomenys!E25","v":0},{"$f":"Fin_duomenys!F25","v":0},{"$f":"Fin_duomenys!G25","v":0},{"$f":"Fin_duomenys!H25","v":0}]
[{"$f":"Fin_duomenys!A26","v":"Dukterinių ir asocijuotų įmonių skolos"},{"$f":"Fin_duomenys!C26","v":0},{"$f":"Fin_duomenys!D26","v":0},{"$f":"Fin_duomenys!E26","v":0},{"$f":"Fin_duomenys!F26","v":0},{"$f":"Fin_duomenys!G26","v":0},{"$f":"Fin_duomenys!H26","v":0}]
[{"$f":"Fin_duomenys!A27","v":"Kitos gautinos sumos"},{"$f":"Fin_duomenys!C27","v":0},{"$f":"Fin_duomenys!D27","v":0},{"$f":"Fin_duomenys!E27","v":0},{"$f":"Fin_duomenys!F27","v":0},{"$f":"Fin_duomenys!G27","v":0},{"$f":"Fin_duomenys!H27","v":0}]
[{"$f":"Fin_duomenys!A28","v":"TRUMPALAIKĖS INVESTICIJOS"},{"$f":"Fin_duomenys!C28","v":0},{"$f":"Fin_duomenys!D28","v":0},{"$f":"Fin_duomenys!E28","v":0},{"$f":"Fin_duomenys!F28","v":0},{"$f":"Fin_duomenys!G28","v":0},{"$f":"Fin_duomenys!H28","v":0}]
[{"$f":"Fin_duomenys!A29","v":"PINIGAI IR PINIGŲ EKVIVALENTAI"},{"$f":"Fin_duomenys!C29","v":0},{"$f":"Fin_duomenys!D29","v":0},{"$f":"Fin_duomenys!E29","v":0},{"$f":"Fin_duomenys!F29","v":0},{"$f":"Fin_duomenys!G29","v":0},{"$f":"Fin_duomenys!H29","v":0}]
[{"$f":"Fin_duomenys!A30","v":"ATEINANČIŲ LAIKOTARPIŲ SĄNAUDOS IR SUKAUPTOS PAJAMOS"},{"$f":"Fin_duomenys!C30","v":0},{"$f":"Fin_duomenys!D30","v":0},{"$f":"Fin_duomenys!E30","v":0},{"$f":"Fin_duomenys!F30","v":0},{"$f":"Fin_duomenys!G30","v":0},{"$f":"Fin_duomenys!H30","v":0}]
[{"$f":"Fin_duomenys!A31","v":"TURTO IŠ VISO:"},{"$f":"Fin_duomenys!C31","v":0},{"$f":"Fin_duomenys!D31","v":0},{"$f":"Fin_duomenys!E31","v":0},{"$f":"Fin_duomenys!F31","v":0},{"$f":"Fin_duomenys!G31","v":0},{"$f":"Fin_duomenys!H31","v":0}]
[{"$f":"Fin_duomenys!A32","v":"NUOSAVAS KAPITALAS"},{"$f":"Fin_duomenys!C32","v":0},{"$f":"Fin_duomenys!D32","v":0},{"$f":"Fin_duomenys!E32","v":0},{"$f":"Fin_duomenys!F32","v":0},{"$f":"Fin_duomenys!G32","v":0},{"$f":"Fin_duomenys!H32","v":0}]
[{"$f":"Fin_duomenys!A33","v":"KAPITALAS"},{"$f":"Fin_duomenys!C33","v":0},{"$f":"Fin_duomenys!D33","v":0},{"$f":"Fin_duomenys!E33","v":0},{"$f":"Fin_duomenys!F33","v":0},{"$f":"Fin_duomenys!G33","v":0},{"$f":"Fin_duomenys!H33","v":0}]
[{"$f":"Fin_duomenys!A34","v":"AKCIJŲ PRIEDAI"},{"$f":"Fin_duomenys!C34","v":0},{"$f":"Fin_duomenys!D34","v":0},{"$f":"Fin_duomenys!E34","v":0},{"$f":"Fin_duomenys!F34","v":0},{"$f":"Fin_duomenys!G34","v":0},{"$f":"Fin_duomenys!H34","v":0}]
[{"$f":"Fin_duomenys!A35","v":"PERKAINOJIMO REZERVAS (REZULTATAI)"},{"$f":"Fin_duomenys!C35","v":0},{"$f":"Fin_duomenys!D35","v":0},{"$f":"Fin_duomenys!E35","v":0},{"$f":"Fin_duomenys!F35","v":0},{"$f":"Fin_duomenys!G35","v":0},{"$f":"Fin_duomenys!H35","v":0}]
[{"$f":"Fin_duomenys!A36","v":"REZERVAI"},{"$f":"Fin_duomenys!C36","v":0},{"$f":"Fin_duomenys!D36","v":0},{"$f":"Fin_duomenys!E36","v":0},{"$f":"Fin_duomenys!F36","v":0},{"$f":"Fin_duomenys!G36","v":0},{"$f":"Fin_duomenys!H36","v":0}]
[{"$f":"Fin_duomenys!A37","v":"NEPASKIRSTYTASIS PELNAS (NUOSTOLIAI)"},{"$f":"Fin_duomenys!C37","v":0},{"$f":"Fin_duomenys!D37","v":0},{"$f":"Fin_duomenys!E37","v":0},{"$f":"Fin_duomenys!F37","v":0},{"$f":"Fin_duomenys!G37","v":0},{"$f":"Fin_duomenys!H37","v":0}]
[{"$f":"Fin_duomenys!A38","v":"DOTACIJOS, SUBSIDIJOS"},{"$f":"Fin_duomenys!C38","v":0},{"$f":"Fin_duomenys!D38","v":0},{"$f":"Fin_duomenys!E38","v":0},{"$f":"Fin_duomenys!F38","v":0},{"$f":"Fin_duomenys!G38","v":0},{"$f":"Fin_duomenys!H38","v":0}]
[{"$f":"Fin_duomenys!A39","v":"ATIDĖJINIAI"},{"$f":"Fin_duomenys!C39","v":0},{"$f":"Fin_duomenys!D39","v":0},{"$f":"Fin_duomenys!E39","v":0},{"$f":"Fin_duomenys!F39","v":0},{"$f":"Fin_duomenys!G39","v":0},{"$f":"Fin_duomenys!H39","v":0}]
[{"$f":"Fin_duomenys!A40","v":"MOKĖTINOS SUMOS IR ĮSIPAREIGOJIMAI"},{"$f":"Fin_duomenys!C40","v":0},{"$f":"Fin_duomenys!D40","v":0},{"$f":"Fin_duomenys!E40","v":0},{"$f":"Fin_duomenys!F40","v":0},{"$f":"Fin_duomenys!G40","v":0},{"$f":"Fin_duomenys!H40","v":0}]
[{"$f":"Fin_duomenys!A41","v":"PO VIENERIŲ METŲ MOKĖTINOS SUMOS IR ILGALAIKIAI ĮSISPAREIGOJIMAI"},{"$f":"Fin_duomenys!C41","v":0},{"$f":"Fin_duomenys!D41","v":0},{"$f":"Fin_duomenys!E41","v":0},{"$f":"Fin_duomenys!F41","v":0},{"$f":"Fin_duomenys!G41","v":0},{"$f":"Fin_duomenys!H41","v":0}]
[{"$f":"Fin_duomenys!A42","v":"PER VIENERIUS METUS MOKĖTINOS SUMOS IR TRUMPALAIKIAI ĮSIPAREIGOJIMAI"},{"$f":"Fin_duomenys!C42","v":0},{"$f":"Fin_duomenys!D42","v":0},{"$f":"Fin_duomenys!E42","v":0},{"$f":"Fin_duomenys!F42","v":0},{"$f":"Fin_duomenys!G42","v":0},{"$f":"Fin_duomenys!H42","v":0}]
[{"$f":"Fin_duomenys!A43","v":"Skoliniai įsipareigojimai"},{"$f":"Fin_duomenys!C43","v":0},{"$f":"Fin_duomenys!D43","v":0},{"$f":"Fin_duomenys!E43","v":0},{"$f":"Fin_duomenys!F43","v":0},{"$f":"Fin_duomenys!G43","v":0},{"$f":"Fin_duomenys!H43","v":0}]
[{"$f":"Fin_duomenys!A44","v":"Skolos kredito įstaigoms"},{"$f":"Fin_duomenys!C44","v":0},{"$f":"Fin_duomenys!D44","v":0},{"$f":"Fin_duomenys!E44","v":0},{"$f":"Fin_duomenys!F44","v":0},{"$f":"Fin_duomenys!G44","v":0},{"$f":"Fin_duomenys!H44","v":0}]
[{"$f":"Fin_duomenys!A45","v":"Gauti avansai"},{"$f":"Fin_duomenys!C45","v":0},{"$f":"Fin_duomenys!D45","v":0},{"$f":"Fin_duomenys!E45","v":0},{"$f":"Fin_duomenys!F45","v":0},{"$f":"Fin_duomenys!G45","v":0},{"$f":"Fin_duomenys!H45","v":0}]
[{"$f":"Fin_duomenys!A46","v":"Skolos tiekėjams"},{"$f":"Fin_duomenys!C46","v":0},{"$f":"Fin_duomenys!D46","v":0},{"$f":"Fin_duomenys!E46","v":0},{"$f":"Fin_duomenys!F46","v":0},{"$f":"Fin_duomenys!G46","v":0},{"$f":"Fin_duomenys!H46","v":0}]
[{"$f":"Fin_duomenys!A47","v":"Pagal vekselius ir čekius mokėtinos sumos"},{"$f":"Fin_duomenys!C47","v":0},{"$f":"Fin_duomenys!D47","v":0},{"$f":"Fin_duomenys!E47","v":0},{"$f":"Fin_duomenys!F47","v":0},{"$f":"Fin_duomenys!G47","v":0},{"$f":"Fin_duomenys!H47","v":0}]
[{"$f":"Fin_duomenys!A48","v":"Įmonių grupės įmonėms mokėtinos sumos"},{"$f":"Fin_duomenys!C48","v":0},{"$f":"Fin_duomenys!D48","v":0},{"$f":"Fin_duomenys!E48","v":0},{"$f":"Fin_duomenys!F48","v":0},{"$f":"Fin_duomenys!G48","v":0},{"$f":"Fin_duomenys!H48","v":0}]
[{"$f":"Fin_duomenys!A49","v":"Asocijuotosioms įmonėms mokėtinos sumos"},{"$f":"Fin_duomenys!C49","v":0},{"$f":"Fin_duomenys!D49","v":0},{"$f":"Fin_duomenys!E49","v":0},{"$f":"Fin_duomenys!F49","v":0},{"$f":"Fin_duomenys!G49","v":0},{"$f":"Fin_duomenys!H49","v":0}]
[{"$f":"Fin_duomenys!A50","v":"Pelno mokesčio įsipareigojimai"},{"$f":"Fin_duomenys!C50","v":0},{"$f":"Fin_duomenys!D50","v":0},{"$f":"Fin_duomenys!E50","v":0},{"$f":"Fin_duomenys!F50","v":0},{"$f":"Fin_duomenys!G50","v":0},{"$f":"Fin_duomenys!H50","v":0}]
[{"$f":"Fin_duomenys!A51","v":"Su darbo santykiais susiję įsipareigojimai"},{"$f":"Fin_duomenys!C51","v":0},{"$f":"Fin_duomenys!D51","v":0},{"$f":"Fin_duomenys!E51","v":0},{"$f":"Fin_duomenys!F51","v":0},{"$f":"Fin_duomenys!G51","v":0},{"$f":"Fin_duomenys!H51","v":0}]
[{"$f":"Fin_duomenys!A52","v":"Kitos mokėtinos sumos ir trumpalaikiai įsipareigojimai"},{"$f":"Fin_duomenys!C52","v":0},{"$f":"Fin_duomenys!D52","v":0},{"$f":"Fin_duomenys!E52","v":0},{"$f":"Fin_duomenys!F52","v":0},{"$f":"Fin_duomenys!G52","v":0},{"$f":"Fin_duomenys!H52","v":0}]
[{"$f":"Fin_duomenys!A53","v":"SUKAUPTOS SĄNAUDOS ATEINANČIŲ LAIKOTARPIŲ PAJAMOS"},{"$f":"Fin_duomenys!C53","v":0},{"$f":"Fin_duomenys!D53","v":0},{"$f":"Fin_duomenys!E53","v":0},{"$f":"Fin_duomenys!F53","v":0},{"$f":"Fin_duomenys!G53","v":0},{"$f":"Fin_duomenys!H53","v":0}]
[{"$f":"Fin_duomenys!A54","v":"NUOSAVO KAPITALO IR ĮSIPAREIGOJIMŲ IŠ VISO:"},{"$f":"Fin_duomenys!C54","v":0},{"$f":"Fin_duomenys!D54","v":0},{"$f":"Fin_duomenys!E54","v":0},{"$f":"Fin_duomenys!F54","v":0},{"$f":"Fin_duomenys!G54","v":0},{"$f":"Fin_duomenys!H54","v":0}]
[{"$f":"Fin_duomenys!A55","v":"Ar balansuojasi?"},{"$f":"Fin_duomenys!C55","v":"+"},{"$f":"Fin_duomenys!D55","v":"+"},{"$f":"Fin_duomenys!E55","v":"+"},{"$f":"Fin_duomenys!F55","v":"+"},{"$f":"Fin_duomenys!G55","v":"+"},{"$f":"Fin_duomenys!H55","v":"+"}]
["PINIGŲ SRAUTAS",{"$f":"B14","v":"2018 m. faktas"},{"$f":"C14","v":"2019 m. faktas"},{"$f":"D1","v":"2020 m.                mėn. faktas"},"2020 m. prognozė","2021 m. prognozė","2022 m. prognozė"]
[{"$f":"Fin_duomenys!A58","v":"EBITDA"},{"$f":"Fin_duomenys!C58","v":0},{"$f":"Fin_duomenys!D58","v":0},{"$f":"Fin_duomenys!E58","v":0},{"$f":"Fin_duomenys!F58","v":0},{"$f":"Fin_duomenys!G58","v":0},{"$f":"Fin_duomenys!H58","v":0}]
[{"$f":"Fin_duomenys!A59","v":"Apyvartinio kapitalo pokytis "},{"$f":"Fin_duomenys!C59","v":0},{"$f":"Fin_duomenys!D59","v":0},{"$f":"Fin_duomenys!E59","v":0},{"$f":"Fin_duomenys!F59","v":0},{"$f":"Fin_duomenys!G59","v":0},{"$f":"Fin_duomenys!H59","v":0}]
[{"$f":"Fin_duomenys!A60","v":"PS iš veiklos"},{"$f":"Fin_duomenys!C60","v":0},{"$f":"Fin_duomenys!D60","v":0},{"$f":"Fin_duomenys!E60","v":0},{"$f":"Fin_duomenys!F60","v":0},{"$f":"Fin_duomenys!G60","v":0},{"$f":"Fin_duomenys!H60","v":0}]
[{"$f":"Fin_duomenys!A61","v":"Finansinės veiklos rezultatas "},{"$f":"Fin_duomenys!C61","v":0},{"$f":"Fin_duomenys!D61","v":0},{"$f":"Fin_duomenys!E61","v":0},{"$f":"Fin_duomenys!F61","v":0},{"$f":"Fin_duomenys!G61","v":0},{"$f":"Fin_duomenys!H61","v":0}]
[{"$f":"Fin_duomenys!A62","v":"Pelno mokestis"},{"$f":"Fin_duomenys!C62","v":0},{"$f":"Fin_duomenys!D62","v":0},{"$f":"Fin_duomenys!E62","v":0},{"$f":"Fin_duomenys!F62","v":0},{"$f":"Fin_duomenys!G62","v":0},{"$f":"Fin_duomenys!H62","v":0}]
[{"$f":"Fin_duomenys!A63","v":"PS po finansinės veiklos, mokesčių"},{"$f":"Fin_duomenys!C63","v":0},{"$f":"Fin_duomenys!D63","v":0},{"$f":"Fin_duomenys!E63","v":0},{"$f":"Fin_duomenys!F63","v":0},{"$f":"Fin_duomenys!G63","v":0},{"$f":"Fin_duomenys!H63","v":0}]
[{"$f":"Fin_duomenys!A64","v":"Skolų dengimas ir palūkanos"},{"$f":"Fin_duomenys!C64","v":0},{"$f":"Fin_duomenys!D64","v":0},{"$f":"Fin_duomenys!E64","v":0},{"$f":"Fin_duomenys!F64","v":0},{"$f":"Fin_duomenys!G64","v":0},{"$f":"Fin_duomenys!H64","v":0}]
[{"$f":"Fin_duomenys!A65","v":"Palūkanos"},{"$f":"Fin_duomenys!C65","v":0},{"$f":"Fin_duomenys!D65","v":0},{"$f":"Fin_duomenys!E65","v":0},{"$f":"Fin_duomenys!F65","v":0},{"$f":"Fin_duomenys!G65","v":0},{"$f":"Fin_duomenys!H65","v":0}]
[{"$f":"Fin_duomenys!A66","v":"Numatyti paskolų dengimai"},{"$f":"Fin_duomenys!C66","v":0},{"$f":"Fin_duomenys!D66","v":0},{"$f":"Fin_duomenys!E66","v":0},{"$f":"Fin_duomenys!F66","v":0},{"$f":"Fin_duomenys!G66","v":0},{"$f":"Fin_duomenys!H66","v":0}]
[{"$f":"Fin_duomenys!A67","v":"PS po paskolų dengimo"},{"$f":"Fin_duomenys!C67","v":0},{"$f":"Fin_duomenys!D67","v":0},{"$f":"Fin_duomenys!E67","v":0},{"$f":"Fin_duomenys!F67","v":0},{"$f":"Fin_duomenys!G67","v":0},{"$f":"Fin_duomenys!H67","v":0}]
[{"$f":"Fin_duomenys!A68","v":"Grynosios plėtros investicijos"},{"$f":"Fin_duomenys!C68","v":0},{"$f":"Fin_duomenys!D68","v":0},{"$f":"Fin_duomenys!E68","v":0},{"$f":"Fin_duomenys!F68","v":0},{"$f":"Fin_duomenys!G68","v":0},{"$f":"Fin_duomenys!H68","v":0}]
[{"$f":"Fin_duomenys!A69","v":"Turto pardavimas"},{"$f":"Fin_duomenys!C69","v":0},{"$f":"Fin_duomenys!D69","v":0},{"$f":"Fin_duomenys!E69","v":0},{"$f":"Fin_duomenys!F69","v":0},{"$f":"Fin_duomenys!G69","v":0},{"$f":"Fin_duomenys!H69","v":0}]
[{"$f":"Fin_duomenys!A70","v":"Palaikomosios investicijos"},{"$f":"Fin_duomenys!C70","v":0},{"$f":"Fin_duomenys!D70","v":0},{"$f":"Fin_duomenys!E70","v":0},{"$f":"Fin_duomenys!F70","v":0},{"$f":"Fin_duomenys!G70","v":0},{"$f":"Fin_duomenys!H70","v":0}]
[{"$f":"Fin_duomenys!A71","v":"PS po plėtros investicijų ir turto pardavimo "},{"$f":"Fin_duomenys!C71","v":0},{"$f":"Fin_duomenys!D71","v":0},{"$f":"Fin_duomenys!E71","v":0},{"$f":"Fin_duomenys!F71","v":0},{"$f":"Fin_duomenys!G71","v":0},{"$f":"Fin_duomenys!H71","v":0}]
[{"$f":"Fin_duomenys!A72","v":"Nuosavo kapitalo pokyčiai"},{"$f":"Fin_duomenys!C72","v":0},{"$f":"Fin_duomenys!D72","v":0},{"$f":"Fin_duomenys!E72","v":0},{"$f":"Fin_duomenys!F72","v":0},{"$f":"Fin_duomenys!G72","v":0},{"$f":"Fin_duomenys!H72","v":0}]
[{"$f":"Fin_duomenys!A73","v":"PS po dividendų išmokėjimų"},{"$f":"Fin_duomenys!C73","v":0},{"$f":"Fin_duomenys!D73","v":0},{"$f":"Fin_duomenys!E73","v":0},{"$f":"Fin_duomenys!F73","v":0},{"$f":"Fin_duomenys!G73","v":0},{"$f":"Fin_duomenys!H73","v":0}]
[{"$f":"Fin_duomenys!A74","v":"Dotacija"},{"$f":"Fin_duomenys!C74","v":0},{"$f":"Fin_duomenys!D74","v":0},{"$f":"Fin_duomenys!E74","v":0},{"$f":"Fin_duomenys!F74","v":0},{"$f":"Fin_duomenys!G74","v":0},{"$f":"Fin_duomenys!H74","v":0}]
[{"$f":"Fin_duomenys!A75","v":"Kita"},{"$f":"Fin_duomenys!C75","v":16242},{"$f":"Fin_duomenys!D75","v":-334753},{"$f":"Fin_duomenys!E75","v":0},{"$f":"Fin_duomenys!F75","v":0},{"$f":"Fin_duomenys!G75","v":0},{"$f":"Fin_duomenys!H75","v":0}]
[{"$f":"Fin_duomenys!A76","v":"Pinigų pasikeitimas"},{"$f":"Fin_duomenys!C76","v":16242},{"$f":"Fin_duomenys!D76","v":-334753},{"$f":"Fin_duomenys!E76","v":0},{"$f":"Fin_duomenys!F76","v":0},{"$f":"Fin_duomenys!G76","v":0},{"$f":"Fin_duomenys!H76","v":0}]
[{"$f":"Fin_duomenys!A77","v":"Pinigai laikotarpio pabaigoje"},{"$f":"Fin_duomenys!C77","v":16242},{"$f":"Fin_duomenys!D77","v":-318511},{"$f":"Fin_duomenys!E77","v":-318511},{"$f":"Fin_duomenys!F77","v":-318511},{"$f":"Fin_duomenys!G77","v":-318511},{"$f":"Fin_duomenys!H77","v":-318511}]
[{"$f":"Fin_duomenys!A78","v":"Ar balansuojasi?"},{"$f":"Fin_duomenys!C78","v":0},{"$f":"Fin_duomenys!D78","v":0},{"$f":"Fin_duomenys!E78","v":0},{"$f":"Fin_duomenys!F78","v":0},{"$f":"Fin_duomenys!G78","v":0},{"$f":"Fin_duomenys!H78","v":0}]
[null,{"$f":"Fin_duomenys!C79","v":-16242},{"$f":"Fin_duomenys!D79","v":318511},{"$f":"Fin_duomenys!E79","v":318511},{"$f":"Fin_duomenys!F79","v":318511},{"$f":"Fin_duomenys!G79","v":318511},{"$f":"Fin_duomenys!H79","v":318511}]
[{"$f":"Fin_duomenys!A80","v":"RODIKLIAI"},{"$f":"B54","v":"2018 m. faktas"},{"$f":"C54","v":"2019 m. faktas"},{"$f":"D1","v":"2020 m.                mėn. faktas"},"2020 m. prognozė","2021 m. prognozė","2022 m. prognozė"]
[{"$f":"Fin_duomenys!A81","v":"Pardavimai"},{"$f":"Fin_duomenys!C81","v":0},{"$f":"Fin_duomenys!D81","v":0},{"$f":"Fin_duomenys!E81","v":0},{"$f":"Fin_duomenys!F81","v":0},{"$f":"Fin_duomenys!G81","v":0},{"$f":"Fin_duomenys!H81","v":0}]
[{"$f":"Fin_duomenys!A82","v":"Bendras pelnas"},{"$f":"Fin_duomenys!C82","v":0},{"$f":"Fin_duomenys!D82","v":0},{"$f":"Fin_duomenys!E82","v":0},{"$f":"Fin_duomenys!F82","v":0},{"$f":"Fin_duomenys!G82","v":0},{"$f":"Fin_duomenys!H82","v":0}]
[{"$f":"Fin_duomenys!A83","v":"Tipinės veiklos pelnas"},{"$f":"Fin_duomenys!C83","v":0},{"$f":"Fin_duomenys!D83","v":0},{"$f":"Fin_duomenys!E83","v":0},{"$f":"Fin_duomenys!F83","v":0},{"$f":"Fin_duomenys!G83","v":0},{"$f":"Fin_duomenys!H83","v":0}]
[{"$f":"Fin_duomenys!A84","v":"Nusidėvėjimas"},{"$f":"Fin_duomenys!C84","v":0},{"$f":"Fin_duomenys!D84","v":0},{"$f":"Fin_duomenys!E84","v":0},{"$f":"Fin_duomenys!F84","v":0},{"$f":"Fin_duomenys!G84","v":0},{"$f":"Fin_duomenys!H84","v":0}]
[{"$f":"Fin_duomenys!A85","v":"EBITDA"},{"$f":"Fin_duomenys!C85","v":0},{"$f":"Fin_duomenys!D85","v":0},{"$f":"Fin_duomenys!E85","v":0},{"$f":"Fin_duomenys!F85","v":0},{"$f":"Fin_duomenys!G85","v":0},{"$f":"Fin_duomenys!H85","v":0}]
[{"$f":"Fin_duomenys!A86","v":"Grynasis pelnas"},{"$f":"Fin_duomenys!C86","v":0},{"$f":"Fin_duomenys!D86","v":0},{"$f":"Fin_duomenys!E86","v":0},{"$f":"Fin_duomenys!F86","v":0},{"$f":"Fin_duomenys!G86","v":0},{"$f":"Fin_duomenys!H86","v":0}]
[{"$f":"Fin_duomenys!A87","v":"Bendrojo pelno marža (%)"},{"$f":"Fin_duomenys!C87","v":{"$error":"#DIV/0!"}},{"$f":"Fin_duomenys!D87","v":{"$error":"#DIV/0!"}},{"$f":"Fin_duomenys!E87","v":{"$error":"#DIV/0!"}},{"$f":"Fin_duomenys!F87","v":{"$error":"#DIV/0!"}},{"$f":"Fin_duomenys!G87","v":{"$error":"#DIV/0!"}},{"$f":"Fin_duomenys!H87","v":{"$error":"#DIV/0!"}}]
[{"$f":"Fin_duomenys!A88","v":"EBITDA marža (%)"},{"$f":"Fin_duomenys!C88","v":{"$error":"#DIV/0!"}},{"$f":"Fin_duomenys!D88","v":{"$error":"#DIV/0!"}},{"$f":"Fin_duomenys!E88","v":{"$error":"#DIV/0!"}},{"$f":"Fin_duomenys!F88","v":{"$error":"#DIV/0!"}},{"$f":"Fin_duomenys!G88","v":{"$error":"#DIV/0!"}},{"$f":"Fin_duomenys!H88","v":{"$error":"#DIV/0!"}}]
[{"$f":"Fin_duomenys!A89","v":"Grynojo pelno marža (%)"},{"$f":"Fin_duomenys!C89","v":{"$error":"#DIV/0!"}},{"$f":"Fin_duomenys!D89","v":{"$error":"#DIV/0!"}},{"$f":"Fin_duomenys!E89","v":{"$error":"#DIV/0!"}},{"$f":"Fin_duomenys!F89","v":{"$error":"#DIV/0!"}},{"$f":"Fin_duomenys!G89","v":{"$error":"#DIV/0!"}},{"$f":"Fin_duomenys!H89","v":{"$error":"#DIV/0!"}}]
[{"$f":"Fin_duomenys!A90","v":"Einamojo likvidumo koef."},{"$f":"Fin_duomenys!C90","v":{"$error":"#DIV/0!"}},{"$f":"Fin_duomenys!D90","v":{"$error":"#DIV/0!"}},{"$f":"Fin_duomenys!E90","v":{"$error":"#DIV/0!"}},{"$f":"Fin_duomenys!F90","v":{"$error":"#DIV/0!"}},{"$f":"Fin_duomenys!G90","v":{"$error":"#DIV/0!"}},{"$f":"Fin_duomenys!H90","v":{"$error":"#DIV/0!"}}]
[{"$f":"Fin_duomenys!A91","v":"Kritinio likvidumo koef."},{"$f":"Fin_duomenys!C91","v":{"$error":"#DIV/0!"}},{"$f":"Fin_duomenys!D91","v":{"$error":"#DIV/0!"}},{"$f":"Fin_duomenys!E91","v":{"$error":"#DIV/0!"}},{"$f":"Fin_duomenys!F91","v":{"$error":"#DIV/0!"}},{"$f":"Fin_duomenys!G91","v":{"$error":"#DIV/0!"}},{"$f":"Fin_duomenys!H91","v":{"$error":"#DIV/0!"}}]
[{"$f":"Fin_duomenys!A92","v":"Svertas"},{"$f":"Fin_duomenys!C92","v":{"$error":"#DIV/0!"}},{"$f":"Fin_duomenys!D92","v":{"$error":"#DIV/0!"}},{"$f":"Fin_duomenys!E92","v":{"$error":"#DIV/0!"}},{"$f":"Fin_duomenys!F92","v":{"$error":"#DIV/0!"}},{"$f":"Fin_duomenys!G92","v":{"$error":"#DIV/0!"}},{"$f":"Fin_duomenys!H92","v":{"$error":"#DIV/0!"}}]
[{"$f":"Fin_duomenys!A93","v":"Atsargų apyvartumas dienomis"},{"$f":"Fin_duomenys!C93","v":{"$error":"#DIV/0!"}},{"$f":"Fin_duomenys!D93","v":{"$error":"#DIV/0!"}},{"$f":"Fin_duomenys!E93","v":0},{"$f":"Fin_duomenys!F93","v":{"$error":"#DIV/0!"}},{"$f":"Fin_duomenys!G93","v":{"$error":"#DIV/0!"}},{"$f":"Fin_duomenys!H93","v":{"$error":"#DIV/0!"}}]
[{"$f":"Fin_duomenys!A94","v":"Debitorių apyvartumas dienomis"},{"$f":"Fin_duomenys!C94","v":{"$error":"#DIV/0!"}},{"$f":"Fin_duomenys!D94","v":{"$error":"#DIV/0!"}},{"$f":"Fin_duomenys!E94","v":0},{"$f":"Fin_duomenys!F94","v":{"$error":"#DIV/0!"}},{"$f":"Fin_duomenys!G94","v":{"$error":"#DIV/0!"}},{"$f":"Fin_duomenys!H94","v":{"$error":"#DIV/0!"}}]
[{"$f":"Fin_duomenys!A95","v":"Kreditorių apyvartumas dienomis"},{"$f":"Fin_duomenys!C95","v":{"$error":"#DIV/0!"}},{"$f":"Fin_duomenys!D95","v":{"$error":"#DIV/0!"}},{"$f":"Fin_duomenys!E95","v":0},{"$f":"Fin_duomenys!F95","v":{"$error":"#DIV/0!"}},{"$f":"Fin_duomenys!G95","v":{"$error":"#DIV/0!"}},{"$f":"Fin_duomenys!H95","v":{"$error":"#DIV/0!"}}]
[{"$f":"Fin_duomenys!A96","v":"Apyvartinių lėšų perteklius (poreikis) dienomis"},{"$f":"Fin_duomenys!C96","v":{"$error":"#DIV/0!"}},{"$f":"Fin_duomenys!D96","v":{"$error":"#DIV/0!"}},{"$f":"Fin_duomenys!E96","v":0},{"$f":"Fin_duomenys!F96","v":{"$error":"#DIV/0!"}},{"$f":"Fin_duomenys!G96","v":{"$error":"#DIV/0!"}},{"$f":"Fin_duomenys!H96","v":{"$error":"#DIV/0!"}}]
[{"$f":"Fin_duomenys!A97","v":"Nuosavas kapitalas"},{"$f":"Fin_duomenys!C97","v":0},{"$f":"Fin_duomenys!D97","v":0},{"$f":"Fin_duomenys!E97","v":0},{"$f":"Fin_duomenys!F97","v":0},{"$f":"Fin_duomenys!G97","v":0},{"$f":"Fin_duomenys!H97","v":0}]
[{"$f":"Fin_duomenys!A98","v":"Balanso apyvarta"},{"$f":"Fin_duomenys!C98","v":0},{"$f":"Fin_duomenys!D98","v":0},{"$f":"Fin_duomenys!E98","v":0},{"$f":"Fin_duomenys!F98","v":0},{"$f":"Fin_duomenys!G98","v":0},{"$f":"Fin_duomenys!H98","v":0}]
[{"$f":"Fin_duomenys!A99","v":"Nuosavo kapitalo rodiklis"},{"$f":"Fin_duomenys!C99","v":{"$error":"#DIV/0!"}},{"$f":"Fin_duomenys!D99","v":{"$error":"#DIV/0!"}},{"$f":"Fin_duomenys!E99","v":{"$error":"#DIV/0!"}},{"$f":"Fin_duomenys!F99","v":{"$error":"#DIV/0!"}},{"$f":"Fin_duomenys!G99","v":{"$error":"#DIV/0!"}},{"$f":"Fin_duomenys!H99","v":{"$error":"#DIV/0!"}}]
[{"$f":"Fin_duomenys!A100","v":"Nuosavybės grąža (ROE)"},{"$f":"Fin_duomenys!C100","v":{"$error":"#DIV/0!"}},{"$f":"Fin_duomenys!D100","v":{"$error":"#DIV/0!"}},{"$f":"Fin_duomenys!E100","v":{"$error":"#DIV/0!"}},{"$f":"Fin_duomenys!F100","v":{"$error":"#DIV/0!"}},{"$f":"Fin_duomenys!G100","v":{"$error":"#DIV/0!"}},{"$f":"Fin_duomenys!H100","v":{"$error":"#DIV/0!"}}]
[{"$f":"Fin_duomenys!A101","v":"Turto grąža (ROA)"},{"$f":"Fin_duomenys!C101","v":{"$error":"#DIV/0!"}},{"$f":"Fin_duomenys!D101","v":{"$error":"#DIV/0!"}},{"$f":"Fin_duomenys!E101","v":{"$error":"#DIV/0!"}},{"$f":"Fin_duomenys!F101","v":{"$error":"#DIV/0!"}},{"$f":"Fin_duomenys!G101","v":{"$error":"#DIV/0!"}},{"$f":"Fin_duomenys!H101","v":{"$error":"#DIV/0!"}}]
[{"$f":"Fin_duomenys!A102","v":"Investicijų grąža (ROI)"},{"$f":"Fin_duomenys!C102","v":{"$error":"#DIV/0!"}},{"$f":"Fin_duomenys!D102","v":{"$error":"#DIV/0!"}},{"$f":"Fin_duomenys!E102","v":{"$error":"#DIV/0!"}},{"$f":"Fin_duomenys!F102","v":{"$error":"#DIV/0!"}},{"$f":"Fin_duomenys!G102","v":{"$error":"#DIV/0!"}},{"$f":"Fin_duomenys!H102","v":{"$error":"#DIV/0!"}}]
[]
[]
["PASLAUGŲ SU VP"]
[{"$f":"Paslaugu!A2","v":"Kokia finansavimo nuosavomis lėšomis suma, kurią planuoja užtikrinti juridinis asmuo?"},null,null,null,{"$f":"Paslaugu!B2","v":0},"EUR"]
[{"$f":"Paslaugu!A3","v":"Kaip paraiškoje pagrindžiamas nuosavų lėšų šaltinis?"}]
[{"$f":"Paslaugu!A4","v":0}]
[{"$f":"Paslaugu!A5","v":"Kredito istorija"}]
[{"$f":"Paslaugu!A6","v":"Išvados iš kredito istorijos vertinimo:"},null,null,null,{"$f":"Paslaugu!B7","v":0},"Taip/Ne/N/A"]
[{"$f":"Paslaugu!A7","v":"Ar šis juridinis asmuo turi kitų projektų/paraiškų LVPA?"}]
[{"$f":"Paslaugu!A8","v":"Jei taip, detalizuoti:"}]
[{"$f":"Paslaugu!A9","v":0}]
[{"$f":"Paslaugu!A10","v":"Pinigų srautai"},{"$f":"Paslaugu!B10","v":"2018 m. faktas"},{"$f":"Paslaugu!C10","v":"2019 m. faktas"},{"$f":"D1","v":"2020 m.                mėn. faktas"},{"$f":"Paslaugu!E10","v":"2020 m. prognozė"},{"$f":"Paslaugu!F10","v":"2021 m. prognozė"},{"$f":"Paslaugu!G10","v":"2022 m. prognozė"}]
[{"$f":"Paslaugu!A11","v":"Pagrindinės veiklos pinigų srautas (metinis)"},{"$f":"Paslaugu!B11","v":0},{"$f":"Paslaugu!C11","v":0},{"$f":"Paslaugu!D11","v":0},{"$f":"Paslaugu!E11","v":0},{"$f":"Paslaugu!F11","v":0},{"$f":"Paslaugu!G11","v":0}]
[{"$f":"Paslaugu!A14","v":"Apyvartinis kapitalas"},{"$f":"Paslaugu!B14","v":0},{"$f":"Paslaugu!C14","v":0},{"$f":"Paslaugu!D14","v":0},{"$f":"Paslaugu!E14","v":0},{"$f":"Paslaugu!F14","v":0},{"$f":"Paslaugu!G14","v":0}]
[{"$f":"Paslaugu!A15","v":"Trumpalaikis turtas"},{"$f":"Paslaugu!B15","v":0},{"$f":"Paslaugu!C15","v":0},{"$f":"Paslaugu!D15","v":0},{"$f":"Paslaugu!E15","v":0},{"$f":"Paslaugu!F15","v":0},{"$f":"Paslaugu!G15","v":0}]
[{"$f":"Paslaugu!A16","v":"Trumpalaikiai įsipareigojimai"},{"$f":"Paslaugu!B16","v":0},{"$f":"Paslaugu!C16","v":0},{"$f":"Paslaugu!D16","v":0},{"$f":"Paslaugu!E16","v":0},{"$f":"Paslaugu!F16","v":0},{"$f":"Paslaugu!G16","v":0}]
[{"$f":"Paslaugu!A19","v":"Bendrojo trumpalaikio mokumo koeficientas"},{"$f":"Paslaugu!B19","v":{"$error":"#DIV/0!"}},{"$f":"Paslaugu!C19","v":{"$error":"#DIV/0!"}},{"$f":"Paslaugu!D19","v":{"$error":"#DIV/0!"}},{"$f":"Paslaugu!E19","v":{"$error":"#DIV/0!"}},{"$f":"Paslaugu!F19","v":{"$error":"#DIV/0!"}},{"$f":"Paslaugu!G19","v":{"$error":"#DIV/0!"}}]
[{"$f":"Paslaugu!A22","v":"Įsiskolinimo lygis"},{"$f":"B111","v":"2018 m. faktas"},{"$f":"C111","v":"2019 m. faktas"},{"$f":"D1","v":"2020 m.                mėn. faktas"},{"$f":"E111","v":"2020 m. prognozė"},{"$f":"F111","v":"2021 m. prognozė"},{"$f":"G111","v":"2022 m. prognozė"}]
[{"$f":"Paslaugu!A23","v":"Bendrasis skolos koeficientas"},{"$f":"Paslaugu!B23","v":{"$error":"#DIV/0!"}},{"$f":"Paslaugu!C23","v":{"$error":"#DIV/0!"}},{"$f":"Paslaugu!D23","v":{"$error":"#DIV/0!"}},{"$f":"Paslaugu!E23","v":{"$error":"#DIV/0!"}},{"$f":"Paslaugu!F23","v":{"$error":"#DIV/0!"}},{"$f":"Paslaugu!G23","v":{"$error":"#DIV/0!"}}]
[{"$f":"Paslaugu!A24","v":"Visi įsipareigojimai"},{"$f":"Paslaugu!B24","v":0},{"$f":"Paslaugu!C24","v":0},{"$f":"Paslaugu!D24","v":0},{"$f":"Paslaugu!E24","v":0},{"$f":"Paslaugu!F24","v":0},{"$f":"Paslaugu!G24","v":0}]
[{"$f":"Paslaugu!A25","v":"Visas turtas"},{"$f":"Paslaugu!B25","v":0},{"$f":"Paslaugu!C25","v":0},{"$f":"Paslaugu!D25","v":0},{"$f":"Paslaugu!E25","v":0},{"$f":"Paslaugu!F25","v":0},{"$f":"Paslaugu!G25","v":0}]
[{"$f":"Paslaugu!A28","v":"Palūkanų padengimo koeficientas"},{"$f":"Paslaugu!B28","v":{"$error":"#DIV/0!"}},{"$f":"Paslaugu!C28","v":{"$error":"#DIV/0!"}},{"$f":"Paslaugu!D28","v":{"$error":"#DIV/0!"}},{"$f":"Paslaugu!E28","v":{"$error":"#DIV/0!"}},{"$f":"Paslaugu!F28","v":{"$error":"#DIV/0!"}},{"$f":"Paslaugu!G28","v":{"$error":"#DIV/0!"}}]
[{"$f":"Paslaugu!A29","v":"Veiklos pelnas (EBIT)"},{"$f":"Paslaugu!B29","v":0},{"$f":"Paslaugu!C29","v":0},{"$f":"Paslaugu!D29","v":0},{"$f":"Paslaugu!E29","v":0},{"$f":"Paslaugu!F29","v":0},{"$f":"Paslaugu!G29","v":0}]
[{"$f":"Paslaugu!A30","v":"Palūkanų sąnaudos"},{"$f":"Paslaugu!B30","v":0},{"$f":"Paslaugu!C30","v":0},{"$f":"Paslaugu!D30","v":0},{"$f":"Paslaugu!E30","v":0},{"$f":"Paslaugu!F30","v":0},{"$f":"Paslaugu!G30","v":0}]
[{"$f":"Paslaugu!A33","v":"Bankroto rizika pagal Altman Z-score (proc.)"},{"$f":"Paslaugu!B33","v":{"$error":"#DIV/0!"}},{"$f":"Paslaugu!C33","v":{"$error":"#DIV/0!"}},{"$f":"Paslaugu!D33","v":{"$error":"#DIV/0!"}},{"$f":"Paslaugu!E33","v":{"$error":"#DIV/0!"}},{"$f":"Paslaugu!F33","v":{"$error":"#DIV/0!"}},{"$f":"Paslaugu!G33","v":{"$error":"#DIV/0!"}}]
[{"$f":"Paslaugu!A34","v":"Nepaskirstytasis pelnas"},{"$f":"Paslaugu!B34","v":0},{"$f":"Paslaugu!C34","v":0},{"$f":"Paslaugu!D34","v":0},{"$f":"Paslaugu!E34","v":0},{"$f":"Paslaugu!F34","v":0},{"$f":"Paslaugu!G34","v":0}]
[{"$f":"Paslaugu!A35","v":"Nuosavas kapitalas"},{"$f":"Paslaugu!B35","v":0},{"$f":"Paslaugu!C35","v":0},{"$f":"Paslaugu!D35","v":0},{"$f":"Paslaugu!E35","v":0},{"$f":"Paslaugu!F35","v":0},{"$f":"Paslaugu!G35","v":0}]
[{"$f":"Paslaugu!A36","v":"Pardavimų pajamos"},{"$f":"Paslaugu!B36","v":0},{"$f":"Paslaugu!C36","v":0},{"$f":"Paslaugu!D36","v":0},{"$f":"Paslaugu!E36","v":0},{"$f":"Paslaugu!F36","v":0},{"$f":"Paslaugu!G36","v":0}]
[{"$f":"Paslaugu!A40","v":"Turtas"},{"$f":"B117","v":"2018 m. faktas"},{"$f":"C117","v":"2019 m. faktas"},{"$f":"D1","v":"2020 m.                mėn. faktas"},"2020 m. prognozė","2021 m. prognozė","2022 m. prognozė"]
[{"$f":"Paslaugu!A41","v":"Piniginis turtas (near-cash assets)"},{"$f":"Paslaugu!B41","v":0},{"$f":"Paslaugu!C41","v":0},{"$f":"Paslaugu!D41","v":0},{"$f":"Paslaugu!E41","v":0},{"$f":"Paslaugu!F41","v":0},{"$f":"Paslaugu!G41","v":0}]
[{"$f":"Paslaugu!A42","v":"Pinigai ir jų ekvivalentai"},{"$f":"Paslaugu!B42","v":0},{"$f":"Paslaugu!C42","v":0},{"$f":"Paslaugu!D42","v":0},{"$f":"Paslaugu!E42","v":0},{"$f":"Paslaugu!F42","v":0},{"$f":"Paslaugu!G42","v":0}]
[{"$f":"Paslaugu!A43","v":"Pirkėjų skolos"},{"$f":"Paslaugu!B43","v":0},{"$f":"Paslaugu!C43","v":0},{"$f":"Paslaugu!D43","v":0},{"$f":"Paslaugu!E43","v":0},{"$f":"Paslaugu!F43","v":0},{"$f":"Paslaugu!G43","v":0}]
[{"$f":"Paslaugu!A44","v":"Išvados iš kreditorių ir debitorių sąrašo:"}]
[{"$f":"Paslaugu!A45","v":0}]
[]
[]
[]
[]
[]
[]
[]
[{"$f":"Paslaugu!A46","v":"Specifika"},{"$f":"B128","v":"2018 m. faktas"},{"$f":"C128","v":"2019 m. faktas"},{"$f":"D1","v":"2020 m.                mėn. faktas"},"2020 m. prognozė","2021 m. prognozė","2022 m. prognozė"]
[{"$f":"Paslaugu!A47","v":"Ar finansavimo šaltinis - prognozuojami juridinio asmens pinigų srautai?"},null,null,null,{"$f":"Paslaugu!B47","v":0},"Taip/Ne"]
[{"$f":"Paslaugu!A48","v":"Prognozuojamas įmonės (pardavimų) augimo tempas (proc.)"},{"$f":"Paslaugu!B48","v":{"$error":"#DIV/0!"}},{"$f":"Paslaugu!C48","v":{"$error":"#DIV/0!"}},{"$f":"Paslaugu!D48","v":0},{"$f":"Paslaugu!E48","v":{"$error":"#DIV/0!"}},{"$f":"Paslaugu!F48","v":{"$error":"#DIV/0!"}},{"$f":"Paslaugu!G48","v":{"$error":"#DIV/0!"}}]
[{"$f":"Paslaugu!A49","v":"Kuo grindžiamos pardavimų prognozės? Ar verslo plane tinkamai paaiškinta, kodėl planuojami būtent tokie pardavimai?"}]
[{"$f":"Paslaugu!A50","v":0}]
[{"$f":"Paslaugu!A51","v":"Vidinio augimo norma (proc.)"},{"$f":"Paslaugu!B51","v":{"$error":"#DIV/0!"}},{"$f":"Paslaugu!C51","v":{"$error":"#DIV/0!"}},{"$f":"Paslaugu!D51","v":{"$error":"#DIV/0!"}},{"$f":"Paslaugu!E51","v":{"$error":"#DIV/0!"}},{"$f":"Paslaugu!F51","v":{"$error":"#DIV/0!"}},{"$f":"Paslaugu!G51","v":{"$error":"#DIV/0!"}}]
[{"$f":"Paslaugu!A52","v":"Visas turtas"},{"$f":"Paslaugu!B52","v":0},{"$f":"Paslaugu!C52","v":0},{"$f":"Paslaugu!D52","v":0},{"$f":"Paslaugu!E52","v":0},{"$f":"Paslaugu!F52","v":0},{"$f":"Paslaugu!G52","v":0}]
[{"$f":"Paslaugu!A53","v":"Grynasis pelnas"},{"$f":"Paslaugu!B53","v":0},{"$f":"Paslaugu!C53","v":0},{"$f":"Paslaugu!D53","v":0},{"$f":"Paslaugu!E53","v":0},{"$f":"Paslaugu!F53","v":0},{"$f":"Paslaugu!G53","v":0}]
[{"$f":"Paslaugu!A54","v":"Ar įmonės prognozuojamas pardavimų augimas viršija vidinio augimo normą?"},null,null,null,{"$f":"Paslaugu!B54","v":0},"Taip/ne"]
[{"$f":"Paslaugu!A55","v":"Jei taip, ar detalizuotas išorinio finansavimo poreikis ir jo šaltinis?"}]
[{"$f":"Paslaugu!A56","v":0}]
[{"$f":"Paslaugu!A57","v":"Tvari augimo norma (proc.)"},{"$f":"Paslaugu!B57","v":{"$error":"#DIV/0!"}},{"$f":"Paslaugu!C57","v":{"$error":"#DIV/0!"}},{"$f":"Paslaugu!D57","v":{"$error":"#DIV/0!"}},{"$f":"Paslaugu!E57","v":{"$error":"#DIV/0!"}},{"$f":"Paslaugu!F57","v":{"$error":"#DIV/0!"}},{"$f":"Paslaugu!G57","v":{"$error":"#DIV/0!"}}]
[{"$f":"Paslaugu!A58","v":"Nuosavas kapitalas"},{"$f":"Paslaugu!B58","v":0},{"$f":"Paslaugu!C58","v":0},{"$f":"Paslaugu!D58","v":0},{"$f":"Paslaugu!E58","v":0},{"$f":"Paslaugu!F58","v":0},{"$f":"Paslaugu!G58","v":0}]
[{"$f":"Paslaugu!A59","v":"Ar įmonės prognozuojamas pardavimų augimas viršija tvarią augimo normą?"},null,null,null,{"$f":"Paslaugu!B59","v":0},"Taip/Ne"]
[{"$f":"Paslaugu!A60","v":"Jei taip, ar detalizuotas papildomo išorinio finansavimo poreikis ir jo šaltiniai?"}]
[{"$f":"Paslaugu!A61","v":0}]

{"sheet":"Paslaugu_be_VP","index":12,"n_rows":44,"n_cols":4,"rows_kept":44,"cut":false,"hidden":true,"merged":[[0,0,0,2]]}
["PASLAUGŲ BE VP"]
["Kokia finansavimo nuosavomis lėšomis suma, kurią planuoja užtikrinti juridinis asmuo?",null,"EUR"]
["Kaip paraiškoje pagrindžiamas nuosavų lėšų šaltinis?"]
[]
["Kredito istorija"]
["Išvados iš kredito istorijos vertinimo:"]
["Ar šis juridinis asmuo turi kitų projektų/paraiškų LVPA?",null,"Klasifikatotorius"]
["Jei taip, detalizuoti:"]
[]
["Pinigų srautai (jei pateikta ataskaita)",{"$f":"Fin_duomenys!C2","v":"2018 m. faktas"},{"$f":"Fin_duomenys!D2","v":"2019 m. faktas"},{"$f":"+(Navigacija!F2)&\" m.                 \" &Navigacija!H2&\" mėn.\"&\" faktas\"","v":"2020 m.                  mėn. faktas"}]
["Pagrindinės veiklos pinigų srautas (metinis)",{"$f":"Fin_duomenys!C60","v":0},{"$f":"Fin_duomenys!D60","v":0},{"$f":"Fin_duomenys!E60","v":0}]
["Teigiamas dydis reiškia, kad įmonė iš savo pagrindinės veiklos uždirba pinigų."]
["Jei šis dydis neigiamas arba mažėja, reikia analizuoti, kodėl."]
["Apyvartinis kapitalas",{"$f":"B15-B16","v":0},{"$f":"C15-C16","v":0},0]
["Trumpalaikis turtas",{"$f":"Fin_duomenys!C22","v":0},{"$f":"Fin_duomenys!D22","v":0},{"$f":"Fin_duomenys!E22","v":0}]
["Trumpalaikiai įsipareigojimai",{"$f":"Fin_duomenys!C42","v":0},{"$f":"Fin_duomenys!D42","v":0},{"$f":"Fin_duomenys!E42","v":0}]
["Jei šis dydis neigiamas, įmonei gali kilti problemų vykdant trumpalaikius įsipareigojimus."]
["Jei šis dydis mažėja, reikia analizuoti, kodėl."]
["Bendrojo trumpalaikio mokumo koeficientas",{"$f":"B15/B16","v":{"$error":"#DIV/0!"}},{"$f":"C15/C16","v":{"$error":"#DIV/0!"}},{"$f":"D15/D16","v":{"$error":"#DIV/0!"}}]
["Rekomenduojamas rodiklio intervalas yra [1,2 ; 2]."]
["Jei šis rodiklis mažesnis nei 1,2 - įmonei gali kilti problemų vykdant trumpalaikius įsipareigojimus."]
["Įsiskolinimo lygis",{"$f":"B10","v":"2018 m. faktas"},{"$f":"C10","v":"2019 m. faktas"},{"$f":"D10","v":"2020 m.                  mėn. faktas"}]
["Bendrasis skolos koeficientas",{"$f":"B24/B25","v":{"$error":"#DIV/0!"}},{"$f":"C24/C25","v":{"$error":"#DIV/0!"}},{"$error":"#DIV/0!"}]
["Visi įsipareigojimai",{"$f":"Fin_duomenys!C40","v":0},{"$f":"Fin_duomenys!D40","v":0},{"$f":"Fin_duomenys!E40","v":0}]
["Visas turtas",{"$f":"Fin_duomenys!C31","v":0},{"$f":"Fin_duomenys!D31","v":0},{"$f":"Fin_duomenys!E31","v":0}]
["Parodo, kokia turto dalis finansuojama skolintu kapitalu (įsipareigojimais)."]
["Lyginti su sektoriaus ar pramonės šakos rodikliais - ar ne per didelis įsiskolinimas"]
["Palūkanų padengimo koeficientas",{"$f":"B29/B30","v":{"$error":"#DIV/0!"}},{"$f":"C29/C30","v":{"$error":"#DIV/0!"}},{"$error":"#DIV/0!"}]
["Veiklos pelnas (EBIT)",{"$f":"Fin_duomenys!C9","v":0},{"$f":"Fin_duomenys!D9","v":0},{"$f":"Fin_duomenys!E9","v":0}]
["Palūkanų sąnaudos",{"$f":"Fin_duomenys!C12","v":0},{"$f":"Fin_duomenys!D12","v":0},{"$f":"Fin_duomenys!E12","v":0}]
["Rekomenduojama, kad šis rodiklis būtų ne mažesnis nei 2,5"]
["Jei rodiklis yra 1,5 ar mažesnis, įmonei gali kilti sunkumų mokėti palūkanas"]
["Bankroto rizika pagal Altman Z-score",{"$f":"6.56*(B14/B25)+3.26*(B34/B25)+6.72*(B29/B25)+1.05*(B36/B24)","v":{"$error":"#DIV/0!"}},{"$f":"6.56*(C14/C25)+3.26*(C34/C25)+6.72*(C29/C25)+1.05*(C36/C24)","v":{"$error":"#DIV/0!"}},{"$f":"6.56*(D14/D25)+3.26*(D34/D25)+6.72*(D29/D25)+1.05*(D36/D24)","v":{"$error":"#DIV/0!"}}]
["Nepaskirstytasis pelnas",{"$f":"Fin_duomenys!C37","v":0},{"$f":"Fin_duomenys!D37","v":0},{"$f":"Fin_duomenys!E37","v":0}]
["Nuosavas kapitalas",{"$f":"Fin_duomenys!C32","v":0},{"$f":"Fin_duomenys!D32","v":0},{"$f":"Fin_duomenys!E32","v":0}]
["Pardavimų pajamos",{"$f":"Fin_duomenys!C4","v":0},{"$f":"Fin_duomenys!D4","v":0},{"$f":"Fin_duomenys!E4","v":0}]
["Jei Z-score yra mažiau nei 1,1 - gresia bankrotas"]
["Jei Z-score yra tarp 1,1 ir 2,6 - gali grėsti bankrotas"]
["Jei Z-score yra virš 2,6 - finansiškai stabili įmonė"]
["Turtas",{"$f":"B22","v":"2018 m. faktas"},{"$f":"C22","v":"2019 m. faktas"},{"$f":"D10","v":"2020 m.                  mėn. faktas"}]
["Piniginis turtas (near-cash assets)",{"$f":"B42+B43","v":0},{"$f":"C42+C43","v":0},0]
["Pinigai ir jų ekvivalentai",{"$f":"Fin_duomenys!C29","v":0},{"$f":"Fin_duomenys!D29","v":0},{"$f":"Fin_duomenys!E29","v":0}]
["Pirkėjų skolos",{"$f":"Fin_duomenys!C25","v":0},{"$f":"Fin_duomenys!D25","v":0},{"$f":"Fin_duomenys!E25","v":0}]
["Išvados iš kreditorių ir debitorių sąrašo:"]

{"sheet":"SP_Paslaugu_be_VP","index":13,"n_rows":132,"n_cols":6,"rows_kept":132,"cut":false,"hidden":true,"merged":[[107,0,107,3],[108,0,108,5],[131,0,131,5],[101,0,101,5],[102,0,102,3],[103,0,103,5],[104,0,104,5],[105,0,105,3],[106,0,106,3]]}
["PELNO - NUOSTOLIŲ ATASKAITA",{"$f":"Fin_duomenys!C2","v":"2018 m. faktas"},{"$f":"Fin_duomenys!D2","v":"2019 m. faktas"},{"$f":"+(Navigacija!F2)&\" m.                \" &Navigacija!H2&\" mėn.\"&\" faktas\"","v":"2020 m.                 mėn. faktas"}]
[{"$f":"Fin_duomenys!A4","v":"Pardavimo pajamos"},{"$f":"Fin_duomenys!C4","v":0},{"$f":"Fin_duomenys!D4","v":0},{"$f":"Fin_duomenys!E4","v":0}]
[{"$f":"Fin_duomenys!A5","v":"Pardavimo savikaina"},{"$f":"Fin_duomenys!C5","v":0},{"$f":"Fin_duomenys!D5","v":0},{"$f":"Fin_duomenys!E5","v":0}]
[{"$f":"Fin_duomenys!A6","v":"BENDRAS PELNAS (NUOSTOLIS)"},{"$f":"Fin_duomenys!C6","v":0},{"$f":"Fin_duomenys!D6","v":0},{"$f":"Fin_duomenys!E6","v":0}]
[{"$f":"Fin_duomenys!A7","v":"Pardavimo sąnaudos"},{"$f":"Fin_duomenys!C7","v":0},{"$f":"Fin_duomenys!D7","v":0},{"$f":"Fin_duomenys!E7","v":0}]
[{"$f":"Fin_duomenys!A8","v":"Bendrosios ir administracinės sąnaudos"},{"$f":"Fin_duomenys!C8","v":0},{"$f":"Fin_duomenys!D8","v":0},{"$f":"Fin_duomenys!E8","v":0}]
[{"$f":"Fin_duomenys!A9","v":"TIPINĖS VEIKLOS PELNAS (NUOSTOLIS)"},{"$f":"Fin_duomenys!C9","v":0},{"$f":"Fin_duomenys!D9","v":0},{"$f":"Fin_duomenys!E9","v":0}]
[{"$f":"Fin_duomenys!A10","v":"Kitos veiklos rezultatas"},{"$f":"Fin_duomenys!C10","v":0},{"$f":"Fin_duomenys!D10","v":0},{"$f":"Fin_duomenys!E10","v":0}]
[{"$f":"Fin_duomenys!A11","v":"Finansinės ir investicinės veiklos pajamos"},{"$f":"Fin_duomenys!C11","v":0},{"$f":"Fin_duomenys!D11","v":0},{"$f":"Fin_duomenys!E11","v":0}]
[{"$f":"Fin_duomenys!A12","v":"Finansinės ir investicinės veiklos sąnaudos"},{"$f":"Fin_duomenys!C12","v":0},{"$f":"Fin_duomenys!D12","v":0},{"$f":"Fin_duomenys!E12","v":0}]
[{"$f":"Fin_duomenys!A13","v":"PELNAS (NUOSTOLIAI) PRIEŠ APMOKESTINIMĄ"},{"$f":"Fin_duomenys!C13","v":0},{"$f":"Fin_duomenys!D13","v":0},{"$f":"Fin_duomenys!E13","v":0}]
[{"$f":"Fin_duomenys!A14","v":"Pelno mokestis"},{"$f":"Fin_duomenys!C14","v":0},{"$f":"Fin_duomenys!D14","v":0},{"$f":"Fin_duomenys!E14","v":0}]
[{"$f":"Fin_duomenys!A15","v":"GRYNASIS PELNAS (NUOSTOLIAI)"},{"$f":"Fin_duomenys!C15","v":0},{"$f":"Fin_duomenys!D15","v":0},{"$f":"Fin_duomenys!E15","v":0}]
[{"$f":"Fin_duomenys!A16","v":"BALANSAS"},{"$f":"B1","v":"2018 m. faktas"},{"$f":"C1","v":"2019 m. faktas"},{"$f":"D1","v":"2020 m.                 mėn. faktas"}]
[{"$f":"Fin_duomenys!A17","v":"ILGALAIKIS TURTAS"},{"$f":"Fin_duomenys!C17","v":0},{"$f":"Fin_duomenys!D17","v":0},{"$f":"Fin_duomenys!E17","v":0}]
[{"$f":"Fin_duomenys!A18","v":"NEMATERIALUSIS TURTAS"},{"$f":"Fin_duomenys!C18","v":0},{"$f":"Fin_duomenys!D18","v":0},{"$f":"Fin_duomenys!E18","v":0}]
[{"$f":"Fin_duomenys!A19","v":"MATERIALUSIS TURTAS"},{"$f":"Fin_duomenys!C19","v":0},{"$f":"Fin_duomenys!D19","v":0},{"$f":"Fin_duomenys!E19","v":0}]
[{"$f":"Fin_duomenys!A20","v":"FINANSINIS TURTAS"},{"$f":"Fin_duomenys!C20","v":0},{"$f":"Fin_duomenys!D20","v":0},{"$f":"Fin_duomenys!E20","v":0}]
[{"$f":"Fin_duomenys!A21","v":"KITAS ILGALAIKIS TURTAS"},{"$f":"Fin_duomenys!C21","v":0},{"$f":"Fin_duomenys!D21","v":0},{"$f":"Fin_duomenys!E21","v":0}]
[{"$f":"Fin_duomenys!A22","v":"TRUMPALAIKIS TURTAS"},{"$f":"Fin_duomenys!C22","v":0},{"$f":"Fin_duomenys!D22","v":0},{"$f":"Fin_duomenys!E22","v":0}]
[{"$f":"Fin_duomenys!A23","v":"ATSARGOS"},{"$f":"Fin_duomenys!C23","v":0},{"$f":"Fin_duomenys!D23","v":0},{"$f":"Fin_duomenys!E23","v":0}]
[{"$f":"Fin_duomenys!A24","v":"PER VIENERIUS METUS GAUTINOS SUMOS"},{"$f":"Fin_duomenys!C24","v":0},{"$f":"Fin_duomenys!D24","v":0},{"$f":"Fin_duomenys!E24","v":0}]
[{"$f":"Fin_duomenys!A25","v":"Pirkėjų įsiskolinimas"},{"$f":"Fin_duomenys!C25","v":0},{"$f":"Fin_duomenys!D25","v":0},{"$f":"Fin_duomenys!E25","v":0}]
[{"$f":"Fin_duomenys!A26","v":"Dukterinių ir asocijuotų įmonių skolos"},{"$f":"Fin_duomenys!C26","v":0},{"$f":"Fin_duomenys!D26","v":0},{"$f":"Fin_duomenys!E26","v":0}]
[{"$f":"Fin_duomenys!A27","v":"Kitos gautinos sumos"},{"$f":"Fin_duomenys!C27","v":0},{"$f":"Fin_duomenys!D27","v":0},{"$f":"Fin_duomenys!E27","v":0}]
[{"$f":"Fin_duomenys!A28","v":"TRUMPALAIKĖS INVESTICIJOS"},{"$f":"Fin_duomenys!C28","v":0},{"$f":"Fin_duomenys!D28","v":0},{"$f":"Fin_duomenys!E28","v":0}]
[{"$f":"Fin_duomenys!A29","v":"PINIGAI IR PINIGŲ EKVIVALENTAI"},{"$f":"Fin_duomenys!C29","v":0},{"$f":"Fin_duomenys!D29","v":0},{"$f":"Fin_duomenys!E29","v":0}]
[{"$f":"Fin_duomenys!A30","v":"ATEINANČIŲ LAIKOTARPIŲ SĄNAUDOS IR SUKAUPTOS PAJAMOS"},{"$f":"Fin_duomenys!C30","v":0},{"$f":"Fin_duomenys!D30","v":0},{"$f":"Fin_duomenys!E30","v":0}]
[{"$f":"Fin_duomenys!A31","v":"TURTO IŠ VISO:"},{"$f":"Fin_duomenys!C31","v":0},{"$f":"Fin_duomenys!D31","v":0},{"$f":"Fin_duomenys!E31","v":0}]
[{"$f":"Fin_duomenys!A32","v":"NUOSAVAS KAPITALAS"},{"$f":"Fin_duomenys!C32","v":0},{"$f":"Fin_duomenys!D32","v":0},{"$f":"Fin_duomenys!E32","v":0}]
[{"$f":"Fin_duomenys!A33","v":"KAPITALAS"},{"$f":"Fin_duomenys!C33","v":0},{"$f":"Fin_duomenys!D33","v":0},{"$f":"Fin_duomenys!E33","v":0}]
[{"$f":"Fin_duomenys!A34","v":"AKCIJŲ PRIEDAI"},{"$f":"Fin_duomenys!C34","v":0},{"$f":"Fin_duomenys!D34","v":0},{"$f":"Fin_duomenys!E34","v":0}]
[{"$f":"Fin_duomenys!A35","v":"PERKAINOJIMO REZERVAS (REZULTATAI)"},{"$f":"Fin_duomenys!C35","v":0},{"$f":"Fin_duomenys!D35","v":0},{"$f":"Fin_duomenys!E35","v":0}]
[{"$f":"Fin_duomenys!A36","v":"REZERVAI"},{"$f":"Fin_duomenys!C36","v":0},{"$f":"Fin_duomenys!D36","v":0},{"$f":"Fin_duomenys!E36","v":0}]
[{"$f":"Fin_duomenys!A37","v":"NEPASKIRSTYTASIS PELNAS (NUOSTOLIAI)"},{"$f":"Fin_duomenys!C37","v":0},{"$f":"Fin_duomenys!D37","v":0},{"$f":"Fin_duomenys!E37","v":0}]
[{"$f":"Fin_duomenys!A38","v":"DOTACIJOS, SUBSIDIJOS"},{"$f":"Fin_duomenys!C38","v":0},{"$f":"Fin_duomenys!D38","v":0},{"$f":"Fin_duomenys!E38","v":0}]
[{"$f":"Fin_duomenys!A39","v":"ATIDĖJINIAI"},{"$f":"Fin_duomenys!C39","v":0},{"$f":"Fin_duomenys!D39","v":0},{"$f":"Fin_duomenys!E39","v":0}]
[{"$f":"Fin_duomenys!A40","v":"MOKĖTINOS SUMOS IR ĮSIPAREIGOJIMAI"},{"$f":"Fin_duomenys!C40","v":0},{"$f":"Fin_duomenys!D40","v":0},{"$f":"Fin_duomenys!E40","v":0}]
[{"$f":"Fin_duomenys!A41","v":"PO VIENERIŲ METŲ MOKĖTINOS SUMOS IR ILGALAIKIAI ĮSISPAREIGOJIMAI"},{"$f":"Fin_duomenys!C41","v":0},{"$f":"Fin_duomenys!D41","v":0},{"$f":"Fin_duomenys!E41","v":0}]
[{"$f":"Fin_duomenys!A42","v":"PER VIENERIUS METUS MOKĖTINOS SUMOS IR TRUMPALAIKIAI ĮSIPAREIGOJIMAI"},{"$f":"Fin_duomenys!C42","v":0},{"$f":"Fin_duomenys!D42","v":0},{"$f":"Fin_duomenys!E42","v":0}]
[{"$f":"Fin_duomenys!A43","v":"Skoliniai įsipareigojimai"},{"$f":"Fin_duomenys!C43","v":0},{"$f":"Fin_duomenys!D43","v":0},{"$f":"Fin_duomenys!E43","v":0}]
[{"$f":"Fin_duomenys!A44","v":"Skolos kredito įstaigoms"},{"$f":"Fin_duomenys!C44","v":0},{"$f":"Fin_duomenys!D44","v":0},{"$f":"Fin_duomenys!E44","v":0}]
[{"$f":"Fin_duomenys!A45","v":"Gauti avansai"},{"$f":"Fin_duomenys!C45","v":0},{"$f":"Fin_duomenys!D45","v":0},{"$f":"Fin_duomenys!E45","v":0}]
[{"$f":"Fin_duomenys!A46","v":"Skolos tiekėjams"},{"$f":"Fin_duomenys!C46","v":0},{"$f":"Fin_duomenys!D46","v":0},{"$f":"Fin_duomenys!E46","v":0}]
[{"$f":"Fin_duomenys!A47","v":"Pagal vekselius ir čekius mokėtinos sumos"},{"$f":"Fin_duomenys!C47","v":0},{"$f":"Fin_duomenys!D47","v":0},{"$f":"Fin_duomenys!E47","v":0}]
[{"$f":"Fin_duomenys!A48","v":"Įmonių grupės įmonėms mokėtinos sumos"},{"$f":"Fin_duomenys!C48","v":0},{"$f":"Fin_duomenys!D48","v":0},{"$f":"Fin_duomenys!E48","v":0}]
[{"$f":"Fin_duomenys!A49","v":"Asocijuotosioms įmonėms mokėtinos sumos"},{"$f":"Fin_duomenys!C49","v":0},{"$f":"Fin_duomenys!D49","v":0},{"$f":"Fin_duomenys!E49","v":0}]
[{"$f":"Fin_duomenys!A50","v":"Pelno mokesčio įsipareigojimai"},{"$f":"Fin_duomenys!C50","v":0},{"$f":"Fin_duomenys!D50","v":0},{"$f":"Fin_duomenys!E50","v":0}]
[{"$f":"Fin_duomenys!A51","v":"Su darbo santykiais susiję įsipareigojimai"},{"$f":"Fin_duomenys!C51","v":0},{"$f":"Fin_duomenys!D51","v":0},{"$f":"Fin_duomenys!E51","v":0}]
[{"$f":"Fin_duomenys!A52","v":"Kitos mokėtinos sumos ir trumpalaikiai įsipareigojimai"},{"$f":"Fin_duomenys!C52","v":0},{"$f":"Fin_duomenys!D52","v":0},{"$f":"Fin_duomenys!E52","v":0}]
[{"$f":"Fin_duomenys!A53","v":"SUKAUPTOS SĄNAUDOS ATEINANČIŲ LAIKOTARPIŲ PAJAMOS"},{"$f":"Fin_duomenys!C53","v":0},{"$f":"Fin_duomenys!D53","v":0},{"$f":"Fin_duomenys!E53","v":0}]
[{"$f":"Fin_duomenys!A54","v":"NUOSAVO KAPITALO IR ĮSIPAREIGOJIMŲ IŠ VISO:"},{"$f":"Fin_duomenys!C54","v":0},{"$f":"Fin_duomenys!D54","v":0},{"$f":"Fin_duomenys!E54","v":0}]
[{"$f":"Fin_duomenys!A55","v":"Ar balansuojasi?"},{"$f":"Fin_duomenys!C55","v":"+"},{"$f":"Fin_duomenys!D55","v":"+"},{"$f":"Fin_duomenys!E55","v":"+"}]
["PINIGŲ SRAUTAS",{"$f":"B14","v":"2018 m. faktas"},{"$f":"C14","v":"2019 m. faktas"},{"$f":"D14","v":"2020 m.                 mėn. faktas"}]
[{"$f":"Fin_duomenys!A58","v":"EBITDA"},{"$f":"Fin_duomenys!C58","v":0},{"$f":"Fin_duomenys!D58","v":0},{"$f":"Fin_duomenys!E58","v":0}]
[{"$f":"Fin_duomenys!A59","v":"Apyvartinio kapitalo pokytis "},{"$f":"Fin_duomenys!C59","v":0},{"$f":"Fin_duomenys!D59","v":0},{"$f":"Fin_duomenys!E59","v":0}]
[{"$f":"Fin_duomenys!A60","v":"PS iš veiklos"},{"$f":"Fin_duomenys!C60","v":0},{"$f":"Fin_duomenys!D60","v":0},{"$f":"Fin_duomenys!E60","v":0}]
[{"$f":"Fin_duomenys!A61","v":"Finansinės veiklos rezultatas "},{"$f":"Fin_duomenys!C61","v":0},{"$f":"Fin_duomenys!D61","v":0},{"$f":"Fin_duomenys!E61","v":0}]
[{"$f":"Fin_duomenys!A62","v":"Pelno mokestis"},{"$f":"Fin_duomenys!C62","v":0},{"$f":"Fin_duomenys!D62","v":0},{"$f":"Fin_duomenys!E62","v":0}]
[{"$f":"Fin_duomenys!A63","v":"PS po finansinės veiklos, mokesčių"},{"$f":"Fin_duomenys!C63","v":0},{"$f":"Fin_duomenys!D63","v":0},{"$f":"Fin_duomenys!E63","v":0}]
[{"$f":"Fin_duomenys!A64","v":"Skolų dengimas ir palūkanos"},{"$f":"Fin_duomenys!C64","v":0},{"$f":"Fin_duomenys!D64","v":0},{"$f":"Fin_duomenys!E64","v":0}]
[{"$f":"Fin_duomenys!A65","v":"Palūkanos"},{"$f":"Fin_duomenys!C65","v":0},{"$f":"Fin_duomenys!D65","v":0},{"$f":"Fin_duomenys!E65","v":0}]
[{"$f":"Fin_duomenys!A66","v":"Numatyti paskolų dengimai"},{"$f":"Fin_duomenys!C66","v":0},{"$f":"Fin_duomenys!D66","v":0},{"$f":"Fin_duomenys!E66","v":0}]
[{"$f":"Fin_duomenys!A67","v":"PS po paskolų dengimo"},{"$f":"Fin_duomenys!C67","v":0},{"$f":"Fin_duomenys!D67","v":0},{"$f":"Fin_duomenys!E67","v":0}]
[{"$f":"Fin_duomenys!A68","v":"Grynosios plėtros investicijos"},{"$f":"Fin_duomenys!C68","v":0},{"$f":"Fin_duomenys!D68","v":0},{"$f":"Fin_duomenys!E68","v":0}]
[{"$f":"Fin_duomenys!A69","v":"Turto pardavimas"},{"$f":"Fin_duomenys!C69","v":0},{"$f":"Fin_duomenys!D69","v":0},{"$f":"Fin_duomenys!E69","v":0}]
[{"$f":"Fin_duomenys!A70","v":"Palaikomosios investicijos"},{"$f":"Fin_duomenys!C70","v":0},{"$f":"Fin_duomenys!D70","v":0},{"$f":"Fin_duomenys!E70","v":0}]
[{"$f":"Fin_duomenys!A71","v":"PS po plėtros investicijų ir turto pardavimo "},{"$f":"Fin_duomenys!C71","v":0},{"$f":"Fin_duomenys!D71","v":0},{"$f":"Fin_duomenys!E71","v":0}]
[{"$f":"Fin_duomenys!A72","v":"Nuosavo kapitalo pokyčiai"},{"$f":"Fin_duomenys!C72","v":0},{"$f":"Fin_duomenys!D72","v":0},{"$f":"Fin_duomenys!E72","v":0}]
[{"$f":"Fin_duomenys!A73","v":"PS po dividendų išmokėjimų"},{"$f":"Fin_duomenys!C73","v":0},{"$f":"Fin_duomenys!D73","v":0},{"$f":"Fin_duomenys!E73","v":0}]
[{"$f":"Fin_duomenys!A74","v":"Dotacija"},{"$f":"Fin_duomenys!C74","v":0},{"$f":"Fin_duomenys!D74","v":0},{"$f":"Fin_duomenys!E74","v":0}]
[{"$f":"Fin_duomenys!A75","v":"Kita"},{"$f":"Fin_duomenys!C75","v":16242},{"$f":"Fin_duomenys!D75","v":-334753},{"$f":"Fin_duomenys!E75","v":0}]
[{"$f":"Fin_duomenys!A76","v":"Pinigų pasikeitimas"},{"$f":"Fin_duomenys!C76","v":16242},{"$f":"Fin_duomenys!D76","v":-334753},{"$f":"Fin_duomenys!E76","v":0}]
[{"$f":"Fin_duomenys!A77","v":"Pinigai laikotarpio pabaigoje"},{"$f":"Fin_duomenys!C77","v":16242},{"$f":"Fin_duomenys!D77","v":-318511},{"$f":"Fin_duomenys!E77","v":-318511}]
[{"$f":"Fin_duomenys!A78","v":"Ar balansuojasi?"},{"$f":"Fin_duomenys!C78","v":0},{"$f":"Fin_duomenys!D78","v":0},{"$f":"Fin_duomenys!E78","v":0}]
["Korekcija",{"$f":"Fin_duomenys!C79","v":-16242},{"$f":"Fin_duomenys!D79","v":318511},{"$f":"Fin_duomenys!E79","v":318511}]
[{"$f":"Fin_duomenys!A80","v":"RODIKLIAI"},{"$f":"B54","v":"2018 m. faktas"},{"$f":"C54","v":"2019 m. faktas"},{"$f":"D54","v":"2020 m.                 mėn. faktas"}]
[{"$f":"Fin_duomenys!A81","v":"Pardavimai"},{"$f":"Fin_duomenys!C81","v":0},{"$f":"Fin_duomenys!D81","v":0},{"$f":"Fin_duomenys!E81","v":0}]
[{"$f":"Fin_duomenys!A82","v":"Bendras pelnas"},{"$f":"Fin_duomenys!C82","v":0},{"$f":"Fin_duomenys!D82","v":0},{"$f":"Fin_duomenys!E82","v":0}]
[{"$f":"Fin_duomenys!A83","v":"Tipinės veiklos pelnas"},{"$f":"Fin_duomenys!C83","v":0},{"$f":"Fin_duomenys!D83","v":0},{"$f":"Fin_duomenys!E83","v":0}]
[{"$f":"Fin_duomenys!A84","v":"Nusidėvėjimas"},{"$f":"Fin_duomenys!C84","v":0},{"$f":"Fin_duomenys!D84","v":0},{"$f":"Fin_duomenys!E84","v":0}]
[{"$f":"Fin_duomenys!A85","v":"EBITDA"},{"$f":"Fin_duomenys!C85","v":0},{"$f":"Fin_duomenys!D85","v":0},{"$f":"Fin_duomenys!E85","v":0}]
[{"$f":"Fin_duomenys!A86","v":"Grynasis pelnas"},{"$f":"Fin_duomenys!C86","v":0},{"$f":"Fin_duomenys!D86","v":0},{"$f":"Fin_duomenys!E86","v":0}]
[{"$f":"Fin_duomenys!A87","v":"Bendrojo pelno marža (%)"},{"$f":"Fin_duomenys!C87","v":{"$error":"#DIV/0!"}},{"$f":"Fin_duomenys!D87","v":{"$error":"#DIV/0!"}},{"$f":"Fin_duomenys!E87","v":{"$error":"#DIV/0!"}}]
[{"$f":"Fin_duomenys!A88","v":"EBITDA marža (%)"},{"$f":"Fin_duomenys!C88","v":{"$error":"#DIV/0!"}},{"$f":"Fin_duomenys!D88","v":{"$error":"#DIV/0!"}},{"$f":"Fin_duomenys!E88","v":{"$error":"#DIV/0!"}}]
[{"$f":"Fin_duomenys!A89","v":"Grynojo pelno marža (%)"},{"$f":"Fin_duomenys!C89","v":{"$error":"#DIV/0!"}},{"$f":"Fin_duomenys!D89","v":{"$error":"#DIV/0!"}},{"$f":"Fin_duomenys!E89","v":{"$error":"#DIV/0!"}}]
[{"$f":"Fin_duomenys!A90","v":"Einamojo likvidumo koef."},{"$f":"Fin_duomenys!C90","v":{"$error":"#DIV/0!"}},{"$f":"Fin_duomenys!D90","v":{"$error":"#DIV/0!"}},{"$f":"Fin_duomenys!E90","v":{"$error":"#DIV/0!"}}]
[{"$f":"Fin_duomenys!A91","v":"Kritinio likvidumo koef."},{"$f":"Fin_duomenys!C91","v":{"$error":"#DIV/0!"}},{"$f":"Fin_duomenys!D91","v":{"$error":"#DIV/0!"}},{"$f":"Fin_duomenys!E91","v":{"$error":"#DIV/0!"}}]
[{"$f":"Fin_duomenys!A92","v":"Svertas"},{"$f":"Fin_duomenys!C92","v":{"$error":"#DIV/0!"}},{"$f":"Fin_duomenys!D92","v":{"$error":"#DIV/0!"}},{"$f":"Fin_duomenys!E92","v":{"$error":"#DIV/0!"}}]
[{"$f":"Fin_duomenys!A93","v":"Atsargų apyvartumas dienomis"},{"$f":"Fin_duomenys!C93","v":{"$error":"#DIV/0!"}},{"$f":"Fin_duomenys!D93","v":{"$error":"#DIV/0!"}},{"$f":"Fin_duomenys!E93","v":0}]
[{"$f":"Fin_duomenys!A94","v":"Debitorių apyvartumas dienomis"},{"$f":"Fin_duomenys!C94","v":{"$error":"#DIV/0!"}},{"$f":"Fin_duomenys!D94","v":{"$error":"#DIV/0!"}},{"$f":"Fin_duomenys!E94","v":0}]
[{"$f":"Fin_duomenys!A95","v":"Kreditorių apyvartumas dienomis"},{"$f":"Fin_duomenys!C95","v":{"$error":"#DIV/0!"}},{"$f":"Fin_duomenys!D95","v":{"$error":"#DIV/0!"}},{"$f":"Fin_duomenys!E95","v":0}]
[{"$f":"Fin_duomenys!A96","v":"Apyvartinių lėšų perteklius (poreikis) dienomis"},{"$f":"Fin_duomenys!C96","v":{"$error":"#DIV/0!"}},{"$f":"Fin_duomenys!D96","v":{"$error":"#DIV/0!"}},{"$f":"Fin_duomenys!E96","v":0}]
[{"$f":"Fin_duomenys!A97","v":"Nuosavas kapitalas"},{"$f":"Fin_duomenys!C97","v":0},{"$f":"Fin_duomenys!D97","v":0},{"$f":"Fin_duomenys!E97","v":0}]
[{"$f":"Fin_duomenys!A98","v":"Balanso apyvarta"},{"$f":"Fin_duomenys!C98","v":0},{"$f":"Fin_duomenys!D98","v":0},{"$f":"Fin_duomenys!E98","v":0}]
[{"$f":"Fin_duomenys!A99","v":"Nuosavo kapitalo rodiklis"},{"$f":"Fin_duomenys!C99","v":{"$error":"#DIV/0!"}},{"$f":"Fin_duomenys!D99","v":{"$error":"#DIV/0!"}},{"$f":"Fin_duomenys!E99","v":{"$error":"#DIV/0!"}}]
[{"$f":"Fin_duomenys!A100","v":"Nuosavybės grąža (ROE)"},{"$f":"Fin_duomenys!C100","v":{"$error":"#DIV/0!"}},{"$f":"Fin_duomenys!D100","v":{"$error":"#DIV/0!"}},{"$f":"Fin_duomenys!E100","v":{"$error":"#DIV/0!"}}]
[{"$f":"Fin_duomenys!A101","v":"Turto grąža (ROA)"},{"$f":"Fin_duomenys!C101","v":{"$error":"#DIV/0!"}},{"$f":"Fin_duomenys!D101","v":{"$error":"#DIV/0!"}},{"$f":"Fin_duomenys!E101","v":{"$error":"#DIV/0!"}}]
[{"$f":"Fin_duomenys!A102","v":"Investicijų grąža (ROI)"},{"$f":"Fin_duomenys!C102","v":{"$error":"#DIV/0!"}},{"$f":"Fin_duomenys!D102","v":{"$error":"#DIV/0!"}},{"$f":"Fin_duomenys!E102","v":{"$error":"#DIV/0!"}}]
[]
[]
["PASLAUGŲ BE VP"]
[{"$f":"Paslaugu_be_VP!A2","v":"Kokia finansavimo nuosavomis lėšomis suma, kurią planuoja užtikrinti juridinis asmuo?"},null,null,null,{"$f":"Paslaugu_be_VP!B2","v":0},"EUR"]
[{"$f":"Paslaugu_be_VP!A3","v":"Kaip paraiškoje pagrindžiamas nuosavų lėšų šaltinis?"}]
[{"$f":"Paslaugu_be_VP!A4","v":0}]
[{"$f":"Paslaugu_be_VP!A6","v":"Išvados iš kredito istorijos vertinimo:"}]
[{"$f":"Paslaugu_be_VP!A7","v":"Ar šis juridinis asmuo turi kitų projektų/paraiškų LVPA?"},null,null,null,{"$f":"Paslaugu_be_VP!B7","v":0},"Taip/Ne/N/A"]
[{"$f":"Paslaugu_be_VP!A8","v":"Jei taip, detalizuoti:"}]
[{"$f":"Paslaugu_be_VP!A9","v":0}]
[{"$f":"Paslaugu_be_VP!A10","v":"Pinigų srautai (jei pateikta ataskaita)"},{"$f":"Paslaugu_be_VP!B10","v":"2018 m. faktas"},{"$f":"Paslaugu_be_VP!C10","v":"2019 m. faktas"},{"$f":"Paslaugu_be_VP!D10","v":"2020 m.                  mėn. faktas"}]
[{"$f":"Paslaugu_be_VP!A11","v":"Pagrindinės veiklos pinigų srautas (metinis)"},{"$f":"Paslaugu_be_VP!B11","v":0},{"$f":"Paslaugu_be_VP!C11","v":0},{"$f":"Paslaugu_be_VP!D11","v":0}]
[{"$f":"Paslaugu_be_VP!A14","v":"Apyvartinis kapitalas"},{"$f":"Paslaugu_be_VP!B14","v":0},{"$f":"Paslaugu_be_VP!C14","v":0},{"$f":"Paslaugu_be_VP!D14","v":0}]
[{"$f":"Paslaugu_be_VP!A15","v":"Trumpalaikis turtas"},{"$f":"Paslaugu_be_VP!B15","v":0},{"$f":"Paslaugu_be_VP!C15","v":0},{"$f":"Paslaugu_be_VP!D15","v":0}]
[{"$f":"Paslaugu_be_VP!A16","v":"Trumpalaikiai įsipareigojimai"},{"$f":"Paslaugu_be_VP!B16","v":0},{"$f":"Paslaugu_be_VP!C16","v":0},{"$f":"Paslaugu_be_VP!D16","v":0}]
[{"$f":"Paslaugu_be_VP!A19","v":"Bendrojo trumpalaikio mokumo koeficientas"},{"$f":"Paslaugu_be_VP!B19","v":{"$error":"#DIV/0!"}},{"$f":"Paslaugu_be_VP!C19","v":{"$error":"#DIV/0!"}},{"$f":"Paslaugu_be_VP!D19","v":{"$error":"#DIV/0!"}}]
[{"$f":"Paslaugu_be_VP!A22","v":"Įsiskolinimo lygis"},{"$f":"B110","v":"2018 m. faktas"},{"$f":"C110","v":"2019 m. faktas"},{"$f":"D110","v":"2020 m.                  mėn. faktas"}]
[{"$f":"Paslaugu_be_VP!A23","v":"Bendrasis skolos koeficientas"},{"$f":"Paslaugu_be_VP!B23","v":{"$error":"#DIV/0!"}},{"$f":"Paslaugu_be_VP!C23","v":{"$error":"#DIV/0!"}},{"$f":"Paslaugu_be_VP!D23","v":{"$error":"#DIV/0!"}}]
[{"$f":"Paslaugu_be_VP!A24","v":"Visi įsipareigojimai"},{"$f":"Paslaugu_be_VP!B24","v":0},{"$f":"Paslaugu_be_VP!C24","v":0},{"$f":"Paslaugu_be_VP!D24","v":0}]
[{"$f":"Paslaugu_be_VP!A25","v":"Visas turtas"},{"$f":"Paslaugu_be_VP!B25","v":0},{"$f":"Paslaugu_be_VP!C25","v":0},{"$f":"Paslaugu_be_VP!D25","v":0}]
[{"$f":"Paslaugu_be_VP!A28","v":"Palūkanų padengimo koeficientas"},{"$f":"Paslaugu_be_VP!B28","v":{"$error":"#DIV/0!"}},{"$f":"Paslaugu_be_VP!C28","v":{"$error":"#DIV/0!"}},{"$f":"Paslaugu_be_VP!D28","v":{"$error":"#DIV/0!"}}]
[{"$f":"Paslaugu_be_VP!A29","v":"Veiklos pelnas (EBIT)"},{"$f":"Paslaugu_be_VP!B29","v":0},{"$f":"Paslaugu_be_VP!C29","v":0},{"$f":"Paslaugu_be_VP!D29","v":0}]
[{"$f":"Paslaugu_be_VP!A30","v":"Palūkanų sąnaudos"},{"$f":"Paslaugu_be_VP!B30","v":0},{"$f":"Paslaugu_be_VP!C30","v":0},{"$f":"Paslaugu_be_VP!D30","v":0}]
[{"$f":"Paslaugu_be_VP!A33","v":"Bankroto rizika pagal Altman Z-score"},{"$f":"Paslaugu_be_VP!B33","v":{"$error":"#DIV/0!"}},{"$f":"Paslaugu_be_VP!C33","v":{"$error":"#DIV/0!"}},{"$f":"Paslaugu_be_VP!D33","v":{"$error":"#DIV/0!"}}]
[{"$f":"Paslaugu_be_VP!A34","v":"Nepaskirstytasis pelnas"},{"$f":"Paslaugu_be_VP!B34","v":0},{"$f":"Paslaugu_be_VP!C34","v":0},{"$f":"Paslaugu_be_VP!D34","v":0}]
[{"$f":"Paslaugu_be_VP!A35","v":"Nuosavas kapitalas"},{"$f":"Paslaugu_be_VP!B35","v":0},{"$f":"Paslaugu_be_VP!C35","v":0},{"$f":"Paslaugu_be_VP!D35","v":0}]
[{"$f":"Paslaugu_be_VP!A36","v":"Pardavimų pajamos"},{"$f":"Paslaugu_be_VP!B36","v":0},{"$f":"Paslaugu_be_VP!C36","v":0},{"$f":"Paslaugu_be_VP!D36","v":0}]
[{"$f":"Paslaugu_be_VP!A40","v":"Turtas"},{"$f":"B116","v":"2018 m. faktas"},{"$f":"C116","v":"2019 m. faktas"},{"$f":"D116","v":"2020 m.                  mėn. faktas"}]
[{"$f":"Paslaugu_be_VP!A41","v":"Piniginis turtas (near-cash assets)"},{"$f":"Paslaugu_be_VP!B41","v":0},{"$f":"Paslaugu_be_VP!C41","v":0},{"$f":"Paslaugu_be_VP!D41","v":0}]
[{"$f":"Paslaugu_be_VP!A42","v":"Pinigai ir jų ekvivalentai"},{"$f":"Paslaugu_be_VP!B42","v":0},{"$f":"Paslaugu_be_VP!C42","v":0},{"$f":"Paslaugu_be_VP!D42","v":0}]
[{"$f":"Paslaugu_be_VP!A43","v":"Pirkėjų skolos"},{"$f":"Paslaugu_be_VP!B43","v":0},{"$f":"Paslaugu_be_VP!C43","v":0},{"$f":"Paslaugu_be_VP!D43","v":0}]
[{"$f":"Paslaugu_be_VP!A44","v":"Išvados iš kreditorių ir debitorių sąrašo:"}]
[{"$f":"Paslaugu_be_VP!A45","v":0}]

{"sheet":"Rodiklių aprašymas","index":14,"n_rows":18,"n_cols":3,"rows_kept":18,"cut":false,"hidden":true,"merged":[]}
["Rodiklis","Formulė","Aprašymas"]
["EBITDA","veiklos pelnas+ nusidėvėjimas"]
["Apyvartinis kapitalas ","trumpalaikis turtas-trumpalaikiai įsipareigojimai","Neigiamas apyvartinio kapitalo dydis vertinamas kaip ženkli rizika, jog įmonė gali nesugebėti vykdyti savo trumpalaikių įsipareigojimų. Taip pat svarbi apyvartinio kapitalo dydžio dinamika, pastovus jo mažėjimas gali būti ženklas jog įmonė susiduria su mokumo problemomis. Tačiau tai gali būti ir ženklas, kad įmonės vadovybė pradėjo efektyviau naudoti lėšas. "]
["Pinigų srautas iš veiklos","EBITDA + apyvartinio kapitalo pokytis"]
["Bendrojo pelno marža (%)","bendrasis pelnas / pardavimai","Parodo vidutinį įmonės taikomą antkainį."]
["EBITDA marža (%)","EBITDA/pardavimai","EBITDA (Earnings Before Interest, Taxes, Depreciation and Amortization) tai pelnas prieš nusidėvėjimą, amortizacijos, palūkanų sąnaudas ir pelno mokestį. EBITDA leidžia labiau nei kiti pelno rodikliai palyginti skirtingų įmonių pelno dydžius, rodiklį galima būtų apibūdinti kaip įmonės gebėjimą apmokėti skolas ir sumokėti pelno mokestį bei vykdyti pagrindinę įmonės veiklą. Didesnė rodiklio reikšmė parodo aukštesnį įmonės pelningumą."]
["Grynojo pelno marža (%)","grynasis pelningumas/pardavimai","Grynasis pelningumas, kaip pardavimo pajamų ir grynojo pelno koeficientas  apibūdina galutinį įmonės veiklos pelningumą. Didesnė rodiklio reikšmė parodo aukštesnį įmonės pelningumą."]
["Einamojo likvidumo koef.","trumpalaikis turtas / trumpalaikiai įsipareigojimai","Bendrasis likvidumo koeficientas (Current Ratio) dar vadinamas einamuoju likvidumo koeficientu parodo įmonės sugebėjimą savo trumpalaikiu turtu padengti trumpalaikius įsipareigojimus. Labai svarbu įvertinti įmonės trumpalaikio turto kokybę. Vertė parodo kiek vienas trumpalaikių įsipareigojimų euras dengiamas trumpalaikiu turtu. Reikšmė mažesnė nei 1,0 leidžia daryti prielaidą, kad įmonė gali susidurti su mokumo problemomis ir nesugebėti įvykdyti trumpalaikius įsipareigojimus.\nRodiklio reikšmė tarp 1,2 ir 2,0 yra priimtina. Aukšta reikšmė rodo nesugebėjimą efektyviai panaudoti įmonės turto."]
["Kritinio likvidumo koef.","(trumpalaikis turtas-atsargos) / trumpalaikiai įsipareigojimai","Parodo įmonės sugebėjimą greitai (skubiai) realizuojamu trumpalaikiu turtu padengti trumpalaikius įsipareigojimus, tam iš trumpalaikio turto yra atimamos atsargos kaip mažai likvidus turtas. Skaičiuojant rodiklį svarbu įventinti pirkėjų skolų kokybę, t.y. ar nėra praterminuotų skolų. Žemesnė nei 0,5 reikšmė laikoma nepatenkinama, tarp 1,0 ir 1,5 normali."]
["Kapitalo rodiklis","nuosavas kapitalas/turtas","Šis santykis parodo kokia dalimi turtas suformuotas iš nuosavų įmonės lėšų."]
["Svertas","įsipareigojimai/turtas","Ilgalaikių skolų - nuosavybės koeficientas parodo veiklos priklausomumą nuo išorinių finansavimo šaltinių. Kuo rodiklis didesnis tuo didesnė išorinių finansavimo šaltinių įtaka."]
["Atsargų apyvartumas dienomis","(atsargos / savikaina) x360","Parodo per kiek dienų bus realizuotos turimos atsargos, esant nurodytoms pardavimų apimtims.  Kuo mažesnė reikšmė, tuo geriau, tačiau reikia atsižvelgti į įmonės veiklos šaką."]
["Debitorių apyvartumas dienomis","(pirkėjų skolos / pardavimų) x 360","Parodo, kaip greitai įmonės debitoriai apmoka savo sąskaitas. Kuo mažesnė reikšmė, tuo geriau."]
["Kreditorių apyvartumas dienomis","(skolos tiekėjams / savikainos) x 360","Parodo per kiek dienų grąžinamas įsiskolinimas tiekėjams. Didesnis geresnis, jei tai neatsiliepia santykių su tiekėjais pablogėjimu.\n\n "]
["Apyvartinių lėšų perteklius (poreikis) dienomis","atsargų apyvartumas dienomis+debitorių apyvartumas dienomis-kreditorių apyvartumas dienomis","Jeigu teigiamas prekybos skolos padengia apyvartinių lėšų poreikį."]
["Nuosavybės grąža (ROE)","grynasis pelnas / nuosavas kapitalas","Parodo kiek efektyviai panaudojamas nuosavas įmonės kapitalas, t.y. kiek kiekvienam įmonės nuosavo kapitalo eurui tenka grynojo pelno. "]
["Turto grąža (ROA)","grynasis pelnas/turtas","Parodo kiek įmonės turtas efektyviai valdomas, t.y. kiek kiekvienam įmonės turto eurui tenka grynojo pelno, kuris yra vienas iš populiariausių įmonės vertinimo dydžių. Vertinant ROA reikšmes vyrauja nuomonė, kad žemesnis 8% turto pelningumas nėra tinkamas."]
["Investicijų grąža (ROI)","grynas pelnas/(nuosavas kapitalas + ilgalaikės finansinės skolos)","Investicijų pelningumo rodiklis (Return On Investment) parodo, kiek efektyvios yra investicijos."]